{"text_format":"1","workbook":"xlsx","n_sheets":5,"sheets":["Données","Labo","Comparaison","Tableau","LMR"],"not_rendered":{"charts":0,"images":0,"macros":1,"external_links":0,"defined_names":20,"comments":0,"pivot_tables":0},"unopened":[],"bounds":{"document_bytes":16777216,"sheet_cells":100000,"rows_first":2000,"rows_last":500,"rows_between":2000,"halvings":0,"cell_chars":16384,"cell_head_chars":4096},"cells_cut":0,"cells_raw":0,"read":"whole","date_system":"1900"}

{"sheet":"Données","index":0,"n_rows":608,"n_cols":7,"rows_kept":608,"cut":false,"hidden":true,"merged":[[0,1,0,6]]}
[null,"LABORATOIRES"]
["Liste réglementaire ","Eurofins","Eurofins Shijiazhuang ","Bureau National Accréditation Lituanien","Sino Analytica","Eurofins Zhejiang Baixing","Wessling"]
["1,1-dichloro-2,2-bis(4-éthylphényl)éthane","2,4,5-T ","Acetamipride","3,5-Dichloroaniline","Acephate","2,4'-Formoxylidid","Aclonifen"]
["1,2-dibrométhane (dibromure d´éthylène) ","2,4-D","Acetochlor","3-Hydroxycarbofurane","Acetamipride","3,4,5-Trimethacarb","Acrinathrine"]
["1,2-dichloroéthane (dichlorure d´éthlène) ","2,4-DB","Alachlor","Abamectine","Acetochlor","3-Hydroxycarbofurane","Alachlor"]
["1,3-Dichloropropène","2,4-DP ","Aldicarb sulfone","Acephate","Aldicarb sulfone","4-CPA","Aldrin"]
["1-Méthylcyclopropène","2,4'-Formoxylidid","Aldicarb sulfoxyde","Acetamipride","Aldicarb sulfoxyde","Abamectine ","Alléthrine "]
["2,4,5-T ","2,4-MCPA","Aldicarbe","Acrinathrine","Aldicarbe","Acephate","Ametryne"]
["2,4-D","2,4-MCPB","Aldicarbe (somme)","Aldicarb sulfone","Atrazine","Acetamipride","Anthraquinone "]
["2,4-DB","2,6-Dichlorobenzamide","Aldrin","Aldicarb sulfoxyde","Azynphos-methyl","Acibenzolar-s-methyl","Atrazine "]
["2-Phénylphénol","2-Phénylphénol","Aldrin/ Dieldrin (Somme)","Aldicarbe","Azoxystrobine","Acifluorfen","Atrazine déisopropyl"]
["8-hydroxyquinoline ","3-Hydroxycarbofurane","Ametryne","Aldicarbe (somme)","Benalaxyl","Acrinathrine","Atrazine-desethyl"]
["Abamectine","4,4-Dibromobenzophénone","Amitraz (somme)","Aldrin/ Dieldrin (Somme)","Bendiocarb","Alachlor","Azynphos-ethyl "]
["Acephate","4-CPA (Acide 4-ChlorophenoxyAcetique)","Aramite ","Alpha-endosulfane","Benfluraline","Aldicarbe","Azynphos-methyl"]
["Acequinocyl","6-Benzyladenine","Atrazine ","Amitraz (somme)","Benfuracarb","Aldicarbe (somme)","Benalaxyl"]
["Acetamipride","Abamectine","Azynphos-methyl","Amitraze","Benoxacor","Aldicarb sulfone","Benfluraline"]
["Acetochlor","Acequinocyl","Azoxystrobine","Avermectine B1a","Bensulfuron-methyl","Aldicarb sulfoxyde","Benzoylprop-ethyl"]
["Acibenzolar-s-methyl","Acetamipride","Benalaxyl","Avermectine B1b","Bifenthrine","Amitraz (somme)","Biphényl"]
["Acide (2-naphtyloxy)acétique","Acetochlor","Benoxacor","Azoxystrobine","Bromopropylate","Asulam","Bifenthrine "]
["Acide naphtylacétique","Acibenzolar-s-methyl","Bifenthrine","Azynphos-ethyl ","Bupirimate","Avermectine B1a","Bifenox "]
["Aclonifen","Acide (2-naphtyloxy)acétique","Bendiocarb","Azynphos-methyl","Boscalide","Amitraze","Bromfenvinphos"]
["Acrinathrine","Acide naphtylacétique","Biphényl","Benalaxyl","Buprofezine","Avermectine B1b","Bromocyclen"]
["Alachlor","Acifluorfen","Bitertanol","Beta-endosulfane","Butachlore","Azimsulfuron","Bromophos"]
["Aldicarbe (somme)","Aclonifen","Boscalide","Bifenthrine ","Butocarboxim","Azynphos-ethyl","Bromophos-éthyl"]
["Aldrin/ Dieldrin (somme)","Acrinathrine","Bromopropylate","Biphényl","Cadusafos","Azynphos-methyl","Bromopropylate"]
["Ametoctradin","Alachlor","Bupirimate","Bitertanol","Captan","Azoxystrobine","Bupirimate"]
["Amidosulfuron ","Aldicarb sulfone","Buprofezine","Boscalide","Carbaryl","Benalaxyl","Buprofezine"]
["Aminopyralide","Aldicarb sulfoxyde","Butachlore","Bromopropylate","Carbendazime","Bendiocarb","Butachlore"]
["Amisulbrone","Aldicarbe","Butoxyde de Pipéronyl","Bromuconazole (somme)","Carbofurane","Benoxacor","Butraline"]
["Amitraz (somme)","Aldicarbe (somme)","Captan","Bupirimate","Carbosulfan","Bensulfuron-methyl","Cadusafos"]
["Amitrole","Aldrin","Carbaryl ","Buprofezine","Chlordane (somme)","Bentazone","Captafol "]
["Anilazine","Aldrin/ Dieldrin (somme)","Carbendazime","Butoxyde de Pipéronyl","Chlorfenapyr","Bitertanol","Captan"]
["Anthraquinone ","Alléthrine ","Carbofurane","Cadusafos","Chlorobenzuron","Boscalide","Carbophenothion"]
["Aramite ","Ametoctradin","Carbofurane (somme)","Carbaryl ","Chlorpyrifos","Bromoxynil","Carbophenothion-methyl"]
["Asulam","Ametryne","Carbosulfan","Carbendazime","Chlorpyrifos-methyl","Bromuconazole (somme)","Chinomethionat"]
["Atrazine ","Aminocarbe","Carfentrazone-ethyl","Carbofurane","Clethodim","Bromuconazole cis","Chlorbenside "]
["Azadirachtine","Amisulbrone","Chlordane (somme)","Carbofurane (somme)","Clothianidin","Bromuconazole trans","Chlorobenzilate"]
["Azimsulfuron","Amitraz (somme)","Chlordane alpha","Chlorantraniliprole","Cyanazine","Bupirimate","Chlorbufam"]
["Azocyclotin","Amitraze","Chlordane gamma","Chlorfenson ","Cyfluthrine","Butocarboxim (somme)","Chlordane (somme)"]
["Azoxystrobine","Anilofos","Chlorfenapyr","Chloridazon","Cypermethrine","Butoxycarboxim","Chlordane alpha"]
["Azynphos-ethyl ","Anthraquinone ","Chlorfenvinphos","Chlorobenzilate","Cyprodinile","Carbaryl","Chlordane gamma"]
["Azynphos-methyl","Atrazine ","Chlorobenzuron","Chlorothalonil","Cyromazine","Carbendazime","Chlordimeform"]
["Barbane","Atrazine déisopropyl","Chlorothalonil ","Chlorpropham","DDD o,p-","Carbofurane","Chlorfenapyr"]
["Beflubutamid","Atrazine-desethyl","Chlorpyrifos","Chlorpyrifos","DDD p,p-","Carbofurane (somme)","Chlorfenprop-methyl"]
["Benalaxyl","Azaconazole","Chlorpyrifos-methyl","Chlorthal diméthyle","DDE p,p-","Carfentrazone-ethyl","Chlorfenson "]
["Benfluraline","Azadirachtine","Chlorthal diméthyle","Clofentézine","DDT o,p-","Chlorfluazuron","Chlormephos"]
["Benfuracarb","Azocyclotin","Chromafenoziod","Clomazone","DDT p,p-","Chloridazon","Chloroneb"]
["Bentazone","Azoxystrobine","Clethodim/Sethoxydim (Somme)","Clothianidin","Deltamethrine","Chlorobenzuron","Chlorothalonil"]
["Benthiavalicarb-isopropyl","Azynphos-ethyl ","Clofentézine","Coumaphos","Diazinon","Chlorpropham","Chlorpropham"]
["Bifenazat","Azynphos-methyl","Cyanophos","Cyfluthrine","Dichlofluanide","Chlorpyrifos","Chloropropylate"]
["Bifenox ","Benalaxyl","Cyfluthrine","Cymoxanil","Dichlorvos","Chlorpyrifos-methyl","Chlorpyrifos-ethyl"]
["Bifenthrine ","Bendiocarb","Cymoxanil","Cypermethrine","Dicloran","Chromafenoziod","Chlorpyrifos-methyl"]
["Binapacryl ","Benfluraline","Cypermethrine","Cyproconazole","Dicofol","Clethodim","Chlorthal diméthyle"]
["Biphényl","Benodanil","Cyproconazole","Cyprodinile","Diethofencarbe","Clofentézine","Chlorthiamide"]
["Bitertanol","Benoxacor","Cyromazine","DDD o,p-","Difenoconazole","Clomazone","Chlorthion"]
["Bixafen","Bensulide","DDD o,p-","DDD p,p-","Dimethoate","Clothianidin","Chlorthiophos"]
["Boscalide","Bentazone","DDD p,p-","DDE o,p-","Dimetomorphe","Cyazofamide","Chlozolinate"]
["Bromophos-éthyl","Benthiavalicarb-isopropyl","DDE o,p-","DDE p,p-","Diniconazole","Cymoxanil","Climbazole"]
["Bromopropylate","Benzoximate","DDE p,p-","DDT (somme)","Edifenphos","Cyproconazole","Cyanofenphos"]
["Bromoxynil","Beta-endosulfan","DDT (somme)","DDT o,p-","Emamectine","Cyprodinile","Cycloate"]
["Bromuconazole (somme)","Bifenazat","DDT o,p-","DDT p,p-","Endosulfan alpha","Cyromazine","Cyfluthrine"]
["Bupirimate","Bifenthrine ","DDT p,p-","DEET","Endosulfan beta","Demeton-s-methyl","Lambda-Cyhalothrin"]
["Buprofezine","Biphényl","Deltamethrine","Delta-hexachlorociclohexane","Endosulfane sulfate","Demeton-s-methyl-sulfone","Cypermethrine"]
["Butraline","Bitertanol","Demeton-s-methyl","Deltamethrine","Ethiofencarbe","Diazinon","Cyphenothrine"]
["Butylate","Bixafen","Demeton-s-methyl-sulfone","Demeton-s-methyl","Ethion","Diethofencarbe","Cyprodinile"]
["Cadusafos","Boscalide","Diazinon","Demeton-s-methyl-sulfone","Ethoprophos","DEET","DDD o,p-"]
["Camphechlore","Bromopropylate","Dichlofluanide","Demeton-s-methyl-sulfoxyde","Etofenprox","Difenoconazole","DDD p,p-"]
["Captafol ","Bromoxynil","Dichlorvos","Diafenthiuron","Etrimphos","Diflubenzuron","DDE o,p-"]
["Captan","Bromuconazole (somme)","Dicloran","Diazinon","Famoxadone","Diflufenicanil","DDE p,p-"]
["Carbaryl ","BTS 27271 ","Dicofol (somme)","Dichlobenil","Fenarimol","Dimepiperate","DDT o,p-"]
["Carbendazime (MBC) et benomyl","BTS 44595","Dicofol o,p-","Dichlofluanide","Fenhexamid","Dimethachlor","DDT p,p-"]
["Carbétamide","BTS 44596","Dicofol p,p-","Dichlorvos","Fenitrothion","Dimethoate","Deltamethrine"]
["Carbofurane","Bupirimate","Dieldrine","Diclofop ","Fenobucarb","Dimethoate (somme)","Desmetryne"]
["Carbosulfan","Buprofezine","Difenoconazole","Diclofop-methyl","Fenoxycarb","Dimetomorphe","Dialifos"]
["Carboxine","Butachlore","Diflufenican","Dicloran","Fenpropathrin","Diniconazole","Diallat"]
["Carfentrazone-ethyl","Butafenacile","Dimethoate","Dicofol","Fenpropimorph","Dinocap","Diazinon"]
["Cation triméthylsulfonium","Butocarboxim sulfoxide","Dimethoate (somme)","Dicrotophos","Fenpyroximate","Disulfoton (somme)","Dibrom"]
["Chlorantraniliprole","Butoxyde de Pipéronyl","Dimetomorphe","Dieldrine","Fenthion","Disulfoton sulfoxyde","Dicapthon"]
["Chlorbenside ","Butraline","Diniconazole","Diethofencarbe","Fenvalerate (RS-/SR-Isomere)","Disulfoton sulfone","Dichlobenil"]
["Chlorbufam","Butylate","Diphenylamine","Difénoconazole","Fipronil","Diuron","Dichlofenthion"]
["Chlordane (somme)","Cadusafos","Endosulfane","Diflubenzuron","Fluazifop-P-butyle","Emamectine ","Dichlofluanide"]
["Chlordécone ","Captan","Endosulfane alpha","Dimethachlor","Flucythrinate","Emamectine B1a","Dichlorvos"]
["Chlorfenapyr","Carbaryl ","Endosulfane beta","Dimethoate","Flufenoxuron","Emamectine B1b","Dicloran"]
["Chlorfenson ","Carbendazime","Endosulfane sulfate","Diméthoate (somme)","Flusilazole","Epoxiconazole","Dicofol (somme)"]
["Chlorfenvinphos","Carbendazime (MBC) et benomyl","Endrin","Dimethomorphe","Fluvanilate","Ethiofencarbe","Dicrotophos"]
["Chloridazon","Carbendazime D4","EPN","Diniconazole","Furathiocarb","Ethiofencarbe (somme)","Dieldrine"]
["Chlormequat","Carbétamide","Epoxiconazole","Dinotefuran","HCH, gamma - Lindane","Ethiofencarb-sulfone","Diflufenicanil"]
["Chlorobenzilate","Carbofurane","Ethion","Diphenylamine","Heptenophos","Ethiofencarb-sulfoxyde","Dioxathion"]
["Chloropicrine","Carbophenothion","Ethoxyquin","Dodemorph","Imazalil","Ethoxyquin","Diméthénamide"]
["Chlorothalonil","Carboxine","Etofenprox","Dodine","Imidacloprid","Etofenprox","Diniconazole"]
["Chlorotoluron","Carfentrazone-ethyl","Etrimphos","Endosulfane","Indoxacarbe","Fenarimol","Diphenylamine"]
["Chloroxuron","Carpropamide","Famoxadone","Endosulfane sulfate","Iprodione","Fenazaquine","Difénamide"]
["Chlorpropham","Chlorantraniliprole","Fenamiphos","EPN","Iprovalicarb","Fenbuconazole","Disulfoton (somme)"]
["Chlorpyrifos","Chlorbromuron","Fenarimol","Epoxiconazole","Isocarbosos","Fenhexamid","Ditalimfos"]
["Chlorpyrifos-methyl","Chlorbufam","Fenazaquine","Ethion","Isofenphos","Fenobucarb","Dodemorph"]
["Chlorsulfuron","Chlordane (somme)","Fenitrothion","Ethirimol","Isofenphos (methyl)","Fenoxycarb","Edifenphos"]
["Chlorthal diméthyle","Chlordane alpha ","Fenobucarb","Ethofumesate","Isoprocarb","Fenpropimorph","Endosulfane alpha"]
["Chlorthiamide","Chlordane gamma","2-Phénylphénol","Ethofumesate (somme)","2-Phénylphénol","2,4-D","Endosulfane beta"]
["Chlorure de benzalkonium","Chlorfenapyr","Fenpropathrin","Ethoprophos","Isoprothiolane","Fenpyroximate","Endosulfane sulfate"]
["Chlorure de didécyldiméthylammonium ","Chlorfenvinphos","Fenthion","Ethoxyquin","Isoproturon","Fensulfothion","Endrin"]
["Chlozolinate","Chlorfluazuron","Fenvalerate (RR-/SS-Isomere)","Ethofenprox","Kresoxym-methyl","Fensulfothion-oxon-sulfone","Endrinaldehyd"]
["Chromafenoziod","Chloridazon ","Fenvalerate (RS-/SR-Isomere)","Etoxazole","Lambda-Cyhalothrin","Fensulfothion-oxon-sulfoxide","Endrin-Keton"]
["Cinidon-éthyle","Chlorobenzilate","Fluazifop-P-butyle","Etridiazole","Linuron","Fensulfothion-PS-sulfone","EPN"]
["Clethodim/Sethoxydim (Somme)","Chloropropylate","Flucythrinate","Etrimphos","Malathion","Fenthion","Epoxiconazole"]
["Clodinafop-propargyl","Chlorothalonil","Flusilazole","Famoxadone","Metalaxyl","Fenthion (somme)","EPTC"]
["Clofentézine","Chlorotoluron","Folpet","Fenamidone","Metamitrone","Fenthion-oxone","Etaconazole"]
["Clomazone","Chloroxuron","Fonofos","Fenamiphos","Methamidophos","Fention-PO-sulfon","Ethion"]
["Clopyralid","Chlorpropham","Formetanate","Fenamiphos (somme)","Methidathion","Fenthion-PO-sulfoxid","Ethofumesate"]
["Clothianidin","Chlorpyrifos-ethyl","HCH Alpha","Fenamiphos-sulfone","Methiocarbe","Fenthion-PS-sulfoxid","Ethoprophos"]
["Composés du cuivre ","Chlorpyrifos-methyl","HCH Béta","Fenamiphos-sulfoxyde","Methomyl","Fention-PS-sulfon","Ethoxyquin"]
["Composés du mercure","Chlorthal diméthyle","HCH Delta","Fenarimol","Methoxyfenozid","Fipronil","Etoxazole"]
["Cyanamide","Chlozolinate","HCH Epsilon","Fenazaquine","Metolachlor","Fipronil sulfite","Etridiazole"]
["Cyazofamide","Chromafenoziod","HCH isomères (sauf lindane)","Fenbuconazole","Mevinphos","Fipronil sulfon","Etrimphos"]
["Cyclanilide ","Cinidon-éthyle","HCH, gamma - Lindane","Fenbutatin oxide","Monocrotophos","Fluazifop-P-butyle","Famphur"]
["Cycloxydime","Clefoxydim","Heptachlor","Fenchlorphos","Myclobutanyl","Fluaziname","Fenamiphos"]
["Cyflufenamide","Clethodim","Heptachlor (somme)","Fenchlorphos (somme)","Napropamide","Fludioxonil ","Fenarimol"]
["Cyfluthrine","Clethodim/Sethoxydim (Somme)","Heptenophos","Fenhexamid","Nicosulfuron","Flufenoxuron","Fenchlorphos"]
["Cyhalofop-butyl","Climbazole","Hexachlorobenzene","Fenitrothion","Nitrothal-isopropyle","Fluopicolid","Fenchlorphos (somme)"]
["Cymoxanil","Clodinafop-propargyl","Hexaconazole","Fenoxycarb","Omethoate","Flusilazole","Fenitrothion"]
["Cypermethrine","Clofentézine","Hexythiazox","Fenpropathrin","Oxadiazon","Flutolanil","Fenpiclonil"]
["Cyproconazole","Clomazone","Imazalil","Fenpropidin","Oxadixyl","FM-6-1","Fenpropathrin"]
["Cyprodinile","Clomeprop","Imidacloprid","Fenpropidin (somme)","Oxydemeton-methyl","Fomesafen","Fenson"]
["Cyromazine","Cloprop","Indoxacarbe","Fenpropimorph","Paclobutrazol","Forchlorfenuron","Fensulfothion"]
["Dalapon","Cloquintocet-mexyl","Iprobenfos","Fenpyroximate","Parathion","Formetanate","Fenthion"]
["Daminozide ","Clothianidin","Iprodione","Fensulfothion","Parathion-methyl","Fosthiazate","Fenthion-oxone"]
["Dazomet","Clothianidin/Thiamethoxam (total)","Iprovalicarb","Fenthion","Penconazole","Furathiocarb","Fenthion-PO-sulfoxid"]
["DDT (somme)","Coumaphos","Isazophos","Fenthion (somme)","Pendimethalin","Hexaconazole","Fention-PO-sulfon"]
["Deltamethrine","Crimidine","Isocarbosos","Fenthion-PO-sulfoxid","Permethrine","Hexaflumuron","Fenvalerate (RR-/SS-Isomere)"]
["Desmedipham","Cyanazine","Isofenphos","Fenthion-PS-sulfoxid","Phenthoate","Hexythiazox","Fenvalerate (RS-/SR-Isomere)"]
["Diallat","Cyanofenphos","Isofenphos (methyl)","Fentin","Phorate","Imazalil","Fipronil"]
["Diazinon","Cyanophos","Isoprocarb","Fention-PO-sulfon","Phorate-sulfone","Imibenconazole","Flamprop-méthyl"]
["Dicamba","Cyazofamide","Isoprothiolane","Fention-PS-sulfon","Phorate-sulfoxide","Imidacloprid","Flamprop-isopropyl"]
["Dichlobenil","Cycloate","Kresoxym-methyl","Fenvalerate ","Phosalone","Indoxacarbe","Fluazifop-P-butyle"]
["Dichlorprop","Cycloxydime","Lambda-Cyhalothrin","Fipronil","Phosmet","Iodosulfuron methyl","Fluchloralin"]
["Dichlorvos","Cyflufenamide","Linuron","Fipronil (somme)","Phosphamidon","Iprodione","Flucythrinate"]
["Diclofop ","Cyfluthrine","Malaoxon","Fipronil sulfon","Phoxime","Iprovalicarb","Fludioxonil"]
["Dicloran","Cyhexatin","Malathion","Fluaziname","Pirimicarbe","Isoprocarb","Fluotrimazol"]
["Dicofol (somme)","Cyhexatin/Azocyclotin (Somme)","Malathion (somme)","Fludioxonil","Pirimiphos-ethyl","Isoproturon","Fluquinconazole"]
["Diethofencarbe","Cymoxanil","Metalaxyl","Flufenoxuron","Pirimiphos-methyl","Linuron","Flumetralin"]
["Difénoconazole","Cypermethrine","Methamidophos","Fluopicolid","Prochloraz","Lufénuron","Flurtamone"]
["Diflubenzuron","Cyphenothrine","Methidathion","Fluquinconazole","Procymidone","Malathion","Flutriafol"]
["Diflufenicanil","Cyproconazole","Methidathion","Flusilazole","Profenofos","Malathion (somme)","Folpet"]
["Dimethachlor","Cyprodinile","Methomyl","Flutolanil","Promecarb","Mepanipyrim","Fonofos"]
["Diméthénamide","Cyromazine","Méthomyl/Thiodicarbe (somme)","Flutriafol","Prométryne","Metalaxyl","Formothion"]
["Dimethipin","Dazomet","Metolachlor","Fonofos","Propamocarbe","Metamitrone","Halfenprox"]
["Diméthoate","DDD o,p-","Mevinphos","Formetanate","Propargite","Methamidophos","Heptachlor"]
["Dimethomorphe","DDD p,p-","Mirex","Formothion","Propham","Methidathion","Heptachlore époxide cis"]
["Dimoxystrobine","DDE o,p-","Acephate","2-Phénylphénol","3-Hydroxycarbofurane","2,4-D, total","Acibenzolar-s-methyl"]
["Diniconazole","DDE p,p-","Monocrotophos","Fosthiazate","Propiconazole","Methiocarb (somme)","Heptachlore époxide trans"]
["Dinocap","DDT (somme)","Myclobutanyl","Fuberidazole","Propoxur","Methiocarbe","Heptenophos"]
["Dinoseb","DDT o,p-","Napropamide","Furathiocarb","Propyzamide","Methiocarb sulfone","Hexachlorobenzene"]
["Dinoterb","DDT p,p-","Neburon","HCH Alpha","Pymétrozine","Methiocarb sulfoxyde","HCH Alpha"]
["Dioxathion","DEET ","Nitrothal-isopropyle","HCH Béta","Pyrazophos","Methomyl","HCH Béta"]
["Diphenylamine","Deltamethrine","Omethoate","HCH isomères (sauf lindane)","Pyridabène","Méthomyl/Thiodicarbe (somme)","HCH Delta"]
["Diquat","Demeton-s-methyl","Ostachlorodipropyl ether","HCH, gamma - Lindane","Pyridaphenthion","Methoxyfenozid","HCH Epsilon"]
["Disulfoton (somme)","Demeton-s-methyl-sulfone","Oxadixyl","Heptachlor","Pyriméthanil","Metolachlor","HCH, gamma - Lindane"]
["Dithianon","Desethyl-terbutylazine","Oxydemeton-methyl","Heptachlor (somme)","Quinalphos","Metolcarb","Indoxacarbe"]
["Dithiocarbamates ","Desmedipham","Oxydemeton-methyl (somme)","Heptachlore époxide cis","Quintozene ","Monocrotophos","Iodofenphos"]
["Diuron","Desmetryne","Paclobutrazol","Heptachlore époxide trans","Quizalofop-P-ethyl","Myclobutanyl","Ioxynil"]
["DNOC","Desthio-prothioconazole","Parathion","Hexachlorobenzene","Rimsulfuron","Napropamide","Iprobenfos"]
["Dodine","Diafenthiuron","Parathion-methyl","Hexaconazole","S 421","Neburon","Iprodione"]
["Emamectine","Diallat","Parathion-methyl (somme)","Hexythiazox","Simazine","Nicosulfuron","Isazophos"]
["Endosulfane","Diazinon","Pendimethalin","Imazalil","Spinosad","Nitenpyram","Isocarbamid"]
["Endrin","Diazinon","Permethrine","Imidacloprid","Spiroxamine","Novaluron","Isocarbosos"]
["Epoxiconazole","Dicamba","Phenthoate","Indoxacarbe","Tébuconazole","Nuarimol","Isofenphos"]
["EPTC","Dichlobenil","Phorate","Iprodione","Tebufenozide","Omethoate","Isofenphos-méthyl"]
["Éthalfluraline","Dichlofenthion","Phorate (somme)","Iprovalicarb","Tetrachlorvinphos","Oxadixyl","Isoprothiolane"]
["Éthametsulfurone-méthyle","Dichlofluanide","Phorate-sulfoxide","Isocarbosos","Tetradifon","Oxamyl","Isoxathion"]
["Ethéphon","Dichlormid","Phorat-sulfon","Isofenphos","Thiabendazole","Oxamyl-oxime","Kresoxym-methyl"]
["Ethion","Dichlorobenzophenone","Phosalone","Isofenphos-méthyl","Thiacloprid","Oxydemeton-methyl","Leptophos"]
["Ethirimol","Dichlorvos","Phosmet","Isoprocarb","Thiamethoxam","Oxydemeton-methyl (somme)","Malathion"]
["Ethofenprox","Diclobutrazole","Phoxime","Isoprothiolane","Thifensulfuron-methyl","Paraoxon","Mecarbam"]
["Ethofumesate","Dicloran","Pirimicarbe","Kresoxym-methyl","Thiodicarbe","Paraoxon-methyl","Metalaxyl"]
["Ethoprophos","Dicofol (somme)","Pirimiphos-ethyl","Lambda-Cyhalothrin","Thiofanox-Sulfone","Penconazole","Metazachlore"]
["Ethoxyquin","Dicrotophos","Pirimiphos-methyl","Linuron","Thiofanox-Sulfoxid","Pencycuron","Methacrifos"]
["Ethoxysulfuron","Dieldrine","Prochloraz","Lufénuron","Tolclofos-methyl","Pendimethalin","Methidathion"]
["Etoxazole","Diethofencarbe","Procymidone","Malaoxon","Tolylfluanide","Phorate (somme)","Methoprotryn"]
["Etridiazole","Difénamide","Procymidone","Malathion","Triadimefone","Phorate-sulfone","Méthoxychlore"]
["Famoxadone","Difénoconazole","Profenofos","Malathion (somme)","Triadimenole","Phorate-sulfoxide","Methylpentachlorphenylsulfid"]
["Fenamidone","Difénoxuron","Prométryne","Mandipropamide","Triasulfuron","Phosalone","Metolachlor"]
["Fenamiphos","Diflubenzuron","Propanile","Mecarbam","Triazophos","Phosmet","Mevinphos"]
["Fenarimol","Diflufenicanil","Propargite","Mepanipyrim","Trichlorfon","Phoxime","Mirex"]
["Fenazaquine","Dimefuron","Propham","Mepronil","Triflumizole","Butoxyde de Pipéronyl","Molinate"]
["Fenbuconazole","Dimepiperate","Propiconazole","Metalaxyl","Trifluralin","Pirimicarbe","Myclobutanil"]
["Fenbutatin oxide","Dimethachlor","Propoxur","Metamitrone","Triflusulfuron-methyl","Pirimicarbe (somme)","Napropamide"]
["Fenchlorphos (somme)","Diméthénamide","Propyzamide","Metazachlore","Vamidothion","Pirimicarbe, desmethyl","Nitralin"]
["Fenhexamid","Dimethoate","Pyrazophos","Metconazole","Vinclozoline","Pirimicarb, desmethyl-formamido-","Nitrofene"]
["Fenitrothion","Dimethomorphe","Pyridaphenthion","Methamidophos",null,"Primisulfuron-methyl","Oxadiazon"]
["Fenoxaprop-P","Dimetilan","Pyrifenox","Methidathion",null,"Prochloraz","Oxyfluorfene"]
["Fenoxycarb","Dimoxystrobine","Pyriméthanil","Methiocarb sulfone",null,"Promecarb","Paclobutrazol"]
["Fenpropathrin","Diniconazole","Quinalphos","Methiocarb sulfoxyde",null,"Propamocarbe","Parathion"]
["Fenpropidin","Dinocap","Quinoxyfen","Methiocarbe",null,"Propargite","Parathion-methyl"]
["Fenpropimorph","Dinoseb","Quintozene ","Methomyl",null,"Propham","Paraoxon-methyl"]
["Fenpyrazamine","Dinotefuran","Quintozene (somme)","Méthomyl/Thiodicarbe (somme)",null,"Propiconazole","Paraoxon"]
["Fenpyroximate","Dinoterb","Simazine","Methoxyfenozid",null,"Propoxur","Penconazole"]
["Fenthion (somme)","Dioxacarb","Spriromesifene","Methyl Parathion",null,"Propoxycarbazone","Pendimethalin"]
["Fentin","Diphenylamine","Tau-fluvanilate","Metobromuron",null,"Propyzamide","Pentachloroaniline"]
["Fentine acétate","Disulfoton (somme)","Tébuconazole","Metribuzine",null,"Prosulfocarbe","Pentachloroanisole (PCA)"]
["Fenvalerate ","Disulfoton sulfone","Tebufenpyrad","Mévinphos",null,"Prosulfuron","Pentachlorbenzol"]
["Fenvalerate (RS-/SR-Isomere)","Disulfoton sulfoxyde","Tecnazène","Monocrotophos",null,"Pymétrozine","Permethrine"]
["Fipronil (somme)","Dithianon","Tefluthrine","Monolinuron",null,"Pyraclostrobine","Perthan"]
["Flazasulfuron","Diuron","Terbufos","Myclobutanil",null,"Pyréthrines (total)","Phenkapton"]
["Flonicamid (total)","Diuron D6","Tetrachlorvinphos","Nitenpyram",null,"Pyridabène","Phénothrine"]
["Florasulam","DMSA","Tetraconazole","Nuarimol",null,"Pyriméthanil","Phenthoate"]
["Fluazifop-P-butyle","DMST","Tetradifon","Omethoate",null,"Pyriproxyfen","2-Phénylphénol"]
["Fluaziname","Dodemorph","Thiabendazole","Oxadixyl",null,"Quinoxyfen","Phorate"]
["Flubendiamide","Dodine","Thiacloprid","Oxamyl",null,"Resmethrin","Phosalone"]
["Flucycloxuron","Edifenphos","Thiamethoxam","Oxydemeton-methyl",null,"Rimsulfuron","Phosmet"]
["Flucythrinate","Emamectine","Thiamethoxam (somme)","Paclobutrazol",null,"Rotenone","Picoxystrobin"]
["Fludioxonil","Endosulfan alpha","Thiophanate-methyl","Paraoxon",null,"Sethoxydim","Butoxyde de Pipéronyl"]
["Flufenacet","Endosulfan sulfate","Tolclofos-methyl","Paraoxon-methyl",null,"Simazine","Pirimiphos-methyl"]
["Flufenoxuron","Endosulfane","Tolylfluanide","Parathion-ethyl",null,"Simeconazole","Pirimiphos-ethyl"]
["Flufenzine","EPN","Triadimenol","Penconazole",null,"Spinosad","Pirimiphos-methyl, N-Desethyl-"]
["Flumioxazin","Epoxiconazole","Triazophos","Pencycuron",null,"Spinosyne A","Procymidone"]
["Fluometuron","EPTC","Trichlorfon","Pendimethalin",null,"Spinosyne D","Profenofos"]
["Fluopicolid","Etaconazole","Tridemorph","Pentachloroaniline",null,"Spirodiclofen","Profluralin"]
["Fluopyram","Ethiofencarb-sulfone","Triflumizole (somme)","Phenmédiphane",null,"Spiroxamine","Propachlore"]
["Fluoroglycofène","Ethiofencarb-sulfoxyde","Vinclozoline","Phenthoate",null,"Tébuconazole","Propanile"]
["Fluorure de sulfuryle","Ethion","Zoxamide","Phorate",null,"Tebufenozide","Propargite"]
["Fluoxastrobine","Ethiprol",null,"Phosalone",null,"Tebufenpyrad","Propazine"]
["Flupyrsulfuron-methyl","Ethirimol",null,"Phosmet",null,"Teflubenzuron","Propiconazole"]
["Fluquinconazole","Ethofenprox",null,"Phosmet (somme)",null,"Tepraloxydim","Propyzamide"]
["Flurochloridone","Ethofumesate",null,"Phosmet-oxone",null,"Tetraconazole","Prothiophos"]
["Fluroxypyr (somme)","Ethoprophos",null,"Phosphamidon",null,"Thiabendazole","Pyraflufen-éthyl"]
["Flurprimidol","Ethylchlozate",null,"Phoxime",null,"Thiacloprid","Pyrazophos"]
["Flurtamone","Etoxazole",null,"Pirimicarbe",null,"Thiamethoxam","Pyridabène"]
["Flusilazole","Etridiazole",null,"Pirimicarbe (somme)",null,"Thiamethoxam (somme)","Pyridaphenthion"]
["Flutolanil","Etrimphos",null,"Pirimicarbe, desmethyl",null,"Thifensulfuron-methyl","Pyrifenox"]
["Flutriafol","Famoxadone",null,"Pirimiphos-methyl",null,"Thiodicarbe","Pyriméthanil"]
["Fluxapyroxade","Fenamidone",null,"Primisulfuron-methyl",null,"Thiofanox-Sulfone","Quinalphos"]
["Folpet","Fenamiphos",null,"Prochloraz",null,"Thiofanox-Sulfoxid","Quinoxyfen"]
["Fomesafen","Fenamiphos-sulfone",null,"Profenofos",null,"Tolclofos-methyl","S 421"]
["Foramsulfuron","Fenamiphos-sulfoxyde",null,"Prométryne",null,"Tralkoxydim","Silafluofen"]
["Forchlorfenuron","Fenarimol",null,"Propamocarbe",null,"Triadimefone","Silthiofame"]
["Formetanate","Fenazaquine",null,"Propanile",null,"Triadiménol/Triadiméfone (somme de)","Secbumeton"]
["Formothion","Fenbuconazole",null,"Propargite",null,"Triadimenole","Simazine"]
["Fosétyl-A","Fenbutatin oxide",null,"Propiconazole",null,"Triasulfuron","Sulfotep"]
["Fosthiazate","Fenhexamid",null,"Propoxur",null,"Triasulfuron-methyl","Sulprofos-sulfoxide"]
["Fuberidazole","Fenitrothion",null,"Propyzamide",null,"Tribenuron-methyl","Tau-fluvalinate "]
["Furathiocarb","Fenobucarb",null,"Proquinazid",null,"Trichlorfon","Tébuconazole"]
["Furfural","Fenoprop",null,"Prothioconazole",null,"Tridemorph","Tecnazène"]
["Glufosinate-ammonium)","Fenoxaprop-P",null,"Prothiophos",null,"Trifloxystrobin","Tefluthrine"]
["Glyphosate","Fenoxycarb",null,"Pymétrozine",null,"Trifloxysulfuron","TEPP"]
["Guazatine","Fenpiclonil",null,"Pyraclostrobine",null,"Triflumizole (somme)","Terbacile"]
["Halosulfuron-methyl","Fenpropathrin",null,"Pyrazophos",null,"Triflumizole","Terbumeton"]
["Haloxyfop","Fenpropidin",null,"Pyridabène",null,"Triflumuron","Terbuthylazine"]
["HCH isomères (sauf lindane)","Fenpropimorph",null,"Pyridaphenthion",null,"Triflusulfuron-methyl","Terbutryne"]
["HCH, gamma - Lindane","Fenpyrazamine",null,"Pyridate",null,"Vamidothion","Tetrachlorvinphos"]
["Heptachlor (somme)","Fenpyroximate",null,"Pyrifenox",null,"Vamidothion-sulfone","Tetraconazole"]
["Hexachlorobenzene","Fensulfothion",null,"Pyriméthanil",null,"Vamidothion-sulfoxide","Tetradifon"]
["Hexaconazole","Fenthion",null,"Pyriproxyfen",null,"Zoxamide","Tetramethrine"]
["Hexythiazox","Fenthion (somme)",null,"Quinalphos",null,null,"Tetrasul"]
["Hydrazide maléique","Fenthion-oxone",null,"Quinoxyfen",null,null,"Thiometon"]
["Hymexazol","Fenthion-PO-sulfoxid",null,"Quintozene ",null,null,"Thionazin"]
["Imazalil","Fenthion-PS-sulfoxid",null,"Quintozene (somme)",null,null,"Tolclofos-methyl"]
["Imazamox ","Fention-PO-sulfon",null,"Rotenone",null,null,"Tolylfluanide"]
["Imazapic","Fention-PS-sulfon",null,"Simazine",null,null,"Tralomethrin"]
["Imazaquine","Fenvalerate ",null,"Spinosad",null,null,"Triadimefone"]
["Imazosulfuron","Fenvalerate (RR-/SS-Isomere)",null,"Spinosyne A",null,null,"Triadimenole"]
["Imidacloprid","Fenvalerate (RS-/SR-Isomere)",null,"Spinosyne D",null,null,"Triallate"]
["Indoxacarbe","Fipronil",null,"Spirodiclofen",null,null,"Triamiphos"]
["Iodosulfuron methyl","Fipronil (somme)",null,"Spiromesifene",null,null,"Triazophos"]
["Ion bromure","Fipronil sulfite",null,"Spiroxamine",null,null,"Tribufos"]
["Ion fluorure","Fipronil sulfon",null,"Sulfotep",null,null,"Trichloronat"]
["Ioxynil","Flamprop-méthyl",null,"Tau-fluvalinate ",null,null,"Trifloxystrobin"]
["Ipconazole","Flonicamid (total)",null,"Tébuconazole",null,null,"Trifluralin"]
["Iprodione","Flonicamide",null,"Tebufénozide",null,null,"Triticonazole"]
["Iprovalicarb","Fluazifop (somme)",null,"Tebufenpyrad",null,null,"Vamidothion"]
["Isoprothiolane","Fluazifop-P",null,"Tecnazéne",null,null,"Vinclozoline"]
["Isoproturon","Fluazifop-P-butyle",null,"Teflubenzuron",null,null,"Acephate"]
["Isopyrazam","Fluaziname",null,"Tefluthrine",null,null,"Acetamipride"]
["Isoxaben","Fluazolate",null,"Terbuthylazine",null,null,"Acetochlor"]
["Isoxaflutole","Fluazuron",null,"Tetraconazole",null,null,"Aldicarb sulfone"]
["Kresoxym-methyl","Flubendiamide",null,"Tetradifon",null,null,"Aldicarb sulfoxyde"]
["Lactofen","Flucycloxuron",null,"Tetramethrine",null,null,"Aldicarbe"]
["Lambda-Cyhalothrin","Flucythrinate",null,"Thiabendazole",null,null,"Alanycarb"]
["Lénacile","Fludioxonil",null,"Thiacloprid",null,null,"Amidosulfuron "]
["Linuron","Flufenacet",null,"Thiamethoxam",null,null,"Aminocarbe"]
["Lufénuron","Flufenoxuron",null,"Thiamethoxam (somme)",null,null,"Amitraze"]
["Malathion (somme)","Flufenzine",null,"Thiodicarbe",null,null,"Anilazine"]
["Mandipropamide","Flumioxazin",null,"Thiophanate-methyl",null,null,"Avermectine B1a"]
["MCPA/MCPB (somme)","Fluometuron",null,"Tolclofos-methyl",null,null,"Avermectine B1b"]
["Mecarbam","Fluopicolid",null,"Tolylfluanide",null,null,"Azaconazole"]
["Mécoprop","Fluopyram",null,"Tolylfluanide (somme)",null,null,"Azadirachtine"]
["Mepanipyrim","Fluotrimazol",null,"Tralkoxydim",null,null,"Azamethiphos"]
["Mépiquat","Fluoxastrobine",null,"Transfluthrin",null,null,"Azoxystrobine"]
["Mepronil","Fluquinconazole",null,"Triadiménol/Triadiméfone (somme de)",null,null,"Barbane"]
["Meptyldinocap","Flurochloridone",null,"Triallate",null,null,"Bendiocarb"]
["Mésosulfuron-methyl","Fluroxypyr",null,"Triazophos",null,null,"Benfuracarb"]
["Mésotrione","Fluroxypyr (somme)",null,"Trichlorfon",null,null,"Bensulfuron-methyl"]
["Metaflumizone","Fluroxypyr-methylheptyl",null,"Tricyclazole",null,null,"Benthiavalicarb-isopropyl"]
["Metalaxyl","Flurprimidol",null,"Trifloxystrobin",null,null,"Benzoximate"]
["Métaldéhyde","Flurtamone",null,"Triflumizole",null,null,"Bifenazat"]
["Metamitrone","Flusilazole",null,"Triflumuron",null,null,"Bitertanol"]
["Metazachlore","Fluthiacet-methyl",null,"Trifluralin",null,null,"Bixafen"]
["Metconazole","Flutolanil",null,"Triforine",null,null,"Boscalide"]
["Methabenzthiazuron","Flutriafol",null,"Triticonazole",null,null,"Bromoxynil"]
["Methacrifos","Fluxapyroxade",null,"Vinclozoline",null,null,"Bromuconazole (somme)"]
["Methamidophos","FM-6-1",null,"Vinclozoline (somme)",null,null,"Butafenacile"]
["Methidathion","Folpet",null,"Zoxamide",null,null,"Butocarboxim sulfoxide"]
["Methiocarb (somme)","Fomesafen",null,null,null,null,"Butoxycarboxim"]
["Méthomyl/Thiodicarbe (somme)","Fonofos",null,null,null,null,"Buturon"]
["Méthoprène","Forchlorfenuron",null,null,null,null,"Carbaryl "]
["Méthoxychlore","Formetanate",null,null,null,null,"Carbétamide"]
["Methoxyfenozid","Formothion",null,null,null,null,"Carbofurane"]
["Metolachlor","Fosthiazate",null,null,null,null,"3-Hydroxycarbofurane"]
["Métosulame","Fuberidazole",null,null,null,null,"Carbosulfan"]
["Metrafenone","Furalaxyl",null,null,null,null,"Carboxine"]
["Metribuzine","Furametpyre",null,null,null,null,"Carfentrazone-ethyl"]
["Metsulfuron-methyl","Furathiocarb",null,null,null,null,"Chlorantraniliprole"]
["Mevinphos","Haloxyfop",null,null,null,null,"Chlorbromuron"]
["Milbectine (somme)","HCH Alpha",null,null,null,null,"Chlorfenvinphos"]
["Molinate","HCH Béta",null,null,null,null,"Chlorfluazuron"]
["Monocrotophos","HCH Delta",null,null,null,null,"Chlorflurenol"]
["Monolinuron","HCH isomères (sauf lindane)",null,null,null,null,"Chloridazon "]
["Monuron","HCH, gamma - Lindane",null,null,null,null,"Chloroxuron"]
["Myclobutanil","Heptachlor",null,null,null,null,"Chlorotoluron"]
["Napropamide","Heptachlor (somme)",null,null,null,null,"Chlorsulfuron"]
["Nicosulfuron","Heptachlore époxide cis",null,null,null,null,"Chromafenoziod"]
["Nitrofene","Heptachlore époxide trans",null,null,null,null,"Cinidon-éthyle"]
["Novaluron","Heptenophos",null,null,null,null,"Cinosulfuron"]
["Orthosulfamuron","Hexachlorobenzene",null,null,null,null,"Clethodim"]
["Oryzalin","Hexaconazole",null,null,null,null,"Clodinafop-propargyl"]
["Oxadiargyl","Hexaflumuron",null,null,null,null,"Clofentézine"]
["Oxadiazon","Hexazinone",null,null,null,null,"Clomazone"]
["Oxadixyl","Hexythiazox",null,null,null,null,"Cloquintocet-mexyl"]
["Oxamyl","Hymexazol",null,null,null,null,"Clothianidin"]
["Oxasulfuron","Imazalil",null,null,null,null,"Coumaphos"]
["Oxycarboxine","Imazethapyr",null,null,null,null,"Crimidine"]
["Oxyde d´éthylène","Imibenconazole",null,null,null,null,"Crotoxyphos"]
["Oxydemeton-methyl (somme)","Imidacloprid",null,null,null,null,"Crufomat"]
["Oxyfluorfene","Imidacloprid D4",null,null,null,null,"Cyazofamide"]
["Paclobutrazol","Indaziflam",null,null,null,null,"Cyclanilide "]
["Paraquat","Indoxacarbe",null,null,null,null,"Cycloxydime"]
["Parathion","Ioxynil",null,null,null,null,"Cyflufenamide"]
["Parathion-methyl (somme)","Iprobenfos",null,null,null,null,"Cymoxanil"]
["Penconazole","Iprodione",null,null,null,null,"Cyproconazole"]
["Pencycuron","Iprovalicarb",null,null,null,null,"DEET "]
["Pendimethalin","Isazophos",null,null,null,null,"Demeton-s-methyl"]
["Penoxsulame","Isocarbosos",null,null,null,null,"Demeton-s-methyl-sulfone"]
["Penthiopyrade","Isofenphos",null,null,null,null,"Demeton-s-methyl-sulfoxyde"]
["Permethrine","Isofenphos-méthyl",null,null,null,null,"Demeton-O"]
["Pethoxamide","Isoprocarb",null,null,null,null,"Desmedipham"]
["Phenmédiphane","Isoprothiolane",null,null,null,null,"Diafenthiuron"]
["Phénothrine","Isoproturon",null,null,null,null,"Diclobutrazole"]
["Phorate (somme)","Isouron",null,null,null,null,"Diethofencarbe"]
["Phosalone","Isoxaben",null,null,null,null,"Difénoconazole"]
["Phosmet","Isoxadifen-éthyle",null,null,null,null,"Difénoxuron"]
["Phosphamidon","Isoxaflutole",null,null,null,null,"Diflubenzuron"]
["Phosphines et phosphures","Kresoxym-methyl",null,null,null,null,"Dimefuron"]
["Phoxime","Lambda-Cyhalothrin",null,null,null,null,"Dimethachlor"]
["Picloram","Lénacile",null,null,null,null,"Dimethoate"]
["Picolinafene","Linuron",null,null,null,null,"Dimethomorphe"]
["Picoxystrobin","Lufénuron",null,null,null,null,"Dimoxystrobine"]
["Pinoxaden","Malaoxon ",null,null,null,null,"Dioxacarb"]
["Pirimicarbe (somme)","Malathion",null,null,null,null,"Disulfoton sulfone"]
["Pirimiphos-methyl","Malathion (somme)",null,null,null,null,"Disulfoton sulfoxyde"]
["Prochloraz","Mandipropamide",null,null,null,null,"Diuron"]
["Procymidone","MCPA/MCPB (somme)",null,null,null,null,"Emamectine B1a"]
["Profenofos","Mecarbam",null,null,null,null,"Emamectine B1b"]
["Profoxydim","Mécoprop",null,null,null,null,"Ethiofencarbe"]
["Prohexadione (somme","Mefenpyr-diéthyl",null,null,null,null,"Ethiofencarb-sulfone"]
["Propachlore","Mepanipyrim",null,null,null,null,"Ethiofencarb-sulfoxyde"]
["Propamocarbe","Mepronil",null,null,null,null,"Ethirimol"]
["Propanile","Mésotrione",null,null,null,null,"Ethofenprox"]
["Propaquizafop","Metaflumizone",null,null,null,null,"Famoxadone"]
["Propargite","Metalaxyl",null,null,null,null,"Fenamidone"]
["Propham","Metamitrone",null,null,null,null,"Fenazaquine"]
["Propiconazole","Metazachlore",null,null,null,null,"Fenbuconazole"]
["Propinèbe ","Metconazole",null,null,null,null,"Fenchlorazol-ethyl"]
["Propisochlore","Methabenzthiazuron",null,null,null,null,"Fenfuram"]
["Propoxur","Methacrifos",null,null,null,null,"Fenhexamid"]
["Propoxycarbazon (somme)","Methamidophos",null,null,null,null,"Fenobucarb"]
["Propyzamide","Methidathion",null,null,null,null,"Fenoxaprop-P"]
["Proquinazid","Methiocarb (somme)",null,null,null,null,"Fenoxycarb"]
["Prosulfocarbe","Methiocarb sulfone",null,null,null,null,"Fenpropidin"]
["Prosulfuron","Methiocarb sulfoxyde",null,null,null,null,"Fenpropimorph"]
["Prothioconazole","Méthiocarbe",null,null,null,null,"Fenpyroximate"]
["Pymétrozine","Methomyl",null,null,null,null,"Fensulfothion"]
["Pyraclostrobine","Méthomyl/Thiodicarbe (somme)",null,null,null,null,"Fenuron"]
["Pyraflufen-éthyl","Méthoxychlore",null,null,null,null,"Flazasulfuron"]
["Pyrasulfotole","Methoxyfenozid",null,null,null,null,"Flonicamide"]
["Pyrazophos","Methyl Parathion",null,null,null,null,"Florasulam"]
["Pyréthrines (total)","Metobromuron",null,null,null,null,"Fluaziname"]
["Pyridabène","Metolachlor",null,null,null,null,"Fluazuron"]
["Pyridalyle","Metolcarb",null,null,null,null,"Flufenacet"]
["Pyridate","Métosulame",null,null,null,null,"Flufenoxuron"]
["Pyriméthanil","Métoxuron",null,null,null,null,"Flumioxazin"]
["Pyriproxyfen","Metrafenone",null,null,null,null,"Fluometuron"]
["Pyroxsulam","Metribuzine",null,null,null,null,"Fluopicolid"]
["Quinalphos","Mevinphos",null,null,null,null,"Fluoroglycofène"]
["Quinclorac","Milbectine (somme)",null,null,null,null,"Flusilazole"]
["Quinmerac","Milbemectin A3",null,null,null,null,"Fluthiacet-methyl"]
["Quinoclamine","Milbemectin A4",null,null,null,null,"Forchlorfenuron"]
["Quinoxyfen","Molinate",null,null,null,null,"Formetanate"]
["Quintozene (somme)","Monocrotophos",null,null,null,null,"Fosthiazate"]
["Quizalofop (somme)","Monolinuron",null,null,null,null,"Fuberidazole"]
["Resmethrin","Monuron",null,null,null,null,"Furalaxyl"]
["Rimsulfuron","Myclobutanil",null,null,null,null,"Furathiocarb"]
["Rotenone","Naphthalene Acetamide",null,null,null,null,"Halofenozid"]
["Saflufénacil","Napropamide",null,null,null,null,"Haloxyfop"]
["Silthiofame","Neburon",null,null,null,null,"Haloxyfop-2-ethoxyethyl"]
["Simazine","Nicarbazine",null,null,null,null,"Hexaconazole"]
["Spinetoram","Nitenpyram",null,null,null,null,"Hexaflumuron"]
["Spinosad","Nitrapyrine",null,null,null,null,"Hexazinone"]
["Spirodiclofen","Nitrofene",null,null,null,null,"Hexythiazox"]
["Spiromesifene","Nitrothal-isopropyle",null,null,null,null,"Imazalil"]
["Spirotetramate (somme)","Norflurazon",null,null,null,null,"Imidacloprid"]
["Spiroxamine","Novaluron",null,null,null,null,"Iodosulfuron methyl"]
["Sulcotrione","Noviflumuron",null,null,null,null,"Ioxynil"]
["Sulfosulfuron","Nuarimol",null,null,null,null,"Iprovalicarb"]
["Tau-fluvalinate ","Ofurace",null,null,null,null,"Isoproturon"]
["Tébuconazole","Omethoate",null,null,null,null,"Isoxaben"]
["Tebufénozide","Orysastrobine",null,null,null,null,"Isoxadifen-éthyle"]
["Tebufenpyrad","Oxadiazon",null,null,null,null,"Isoxaflutole"]
["Tecnazène","Oxadixyl",null,null,null,null,"Lénacile"]
["Teflubenzuron","Oxamyl",null,null,null,null,"Linuron"]
["Tefluthrine","Oxamyl-oxime",null,null,null,null,"Lufénuron"]
["Tembotrione ","Oxaziclomefone",null,null,null,null,"Malaoxon "]
["TEPP","Oxfendazole",null,null,null,null,"Mandipropamide"]
["Tepraloxydim","Oxycarboxine",null,null,null,null,"2,4-MCPA"]
["Terbufos","Oxydemeton methyl",null,null,null,null,"Mefenpyr-diéthyl"]
["Terbuthylazine","Oxydemeton-methyl (somme)",null,null,null,null,"Mepanipyrim"]
["Tetraconazole","Oxyfluorfene",null,null,null,null,"Mephosfolan"]
["Tetradifon","Paclobutrazol",null,null,null,null,"Mepronil"]
["Thiabendazole","Paraoxon-ethyl",null,null,null,null,"Metamitrone"]
["Thiacloprid","Paraoxon-methyl",null,null,null,null,"Metconazole"]
["Thiamethoxam","Parathion",null,null,null,null,"Methabenzthiazuron"]
["Thifensulfuron méthyle","Parathion-ethyl",null,null,null,null,"Methamidophos"]
["Thiobencarb","Parathion-methyl (somme)",null,null,null,null,"Methfuroxam"]
["Thiophanate-méthyl","PCB 153",null,null,null,null,"Methiocarb sulfone"]
["Thirame ","Pebulate",null,null,null,null,"Methiocarb sulfoxyde"]
["Tolclofos-methyl","Penconazole",null,null,null,null,"Méthiocarbe"]
["Tolylfluanide (somme)","Pencycuron",null,null,null,null,"Methomyl"]
["Topramezone ","Pendimethalin",null,null,null,null,"Methoxyfenozid"]
["Tralkoxydim","Penoxsulame",null,null,null,null,"Metobromuron"]
["Triadiménol/Triadiméfone (somme de)","Pentachloroaniline",null,null,null,null,"Metolcarb"]
["Triallate","Pentachloroanisole (PCA)",null,null,null,null,"Métosulame"]
["Triasulfuron","Penthiopyrade",null,null,null,null,"Métoxuron"]
["Triazophos","Permethrine",null,null,null,null,"Metrafenone"]
["Tribénuron-méthyle","Pethoxamide",null,null,null,null,"Metribuzine"]
["Trichlorfon","Phenmédiphane",null,null,null,null,"Metsulfuron-methyl"]
["Triclopyr","Phenthoate",null,null,null,null,"Monocrotophos"]
["Tricyclazole","Phorate",null,null,null,null,"Monolinuron"]
["Tridemorph","Phorate (somme)",null,null,null,null,"Monuron"]
["Trifloxystrobin","Phorate-sulfoxide",null,null,null,null,"2,4'-Formoxylidid"]
["Triflumizole (somme)","Phorat-sulfon",null,null,null,null,"Neburon"]
["Triflumuron","Phosalone",null,null,null,null,"Nicosulfuron"]
["Trifluralin","Phosmet",null,null,null,null,"Nitenpyram"]
["Triflusulfuron-methyl","Phosphamidon",null,null,null,null,"Norflurazon"]
["Triforine","Phoxime",null,null,null,null,"Novaluron"]
["Trinexapac-ethyl","Picaridin",null,null,null,null,"Omethoate"]
["Triticonazole","Picloram",null,null,null,null,"Oxadixyl"]
["Tritosulfuron","Picolinafene",null,null,null,null,"Oxamyl"]
["Valifenalate","Picoxystrobin",null,null,null,null,"Oxycarboxine"]
["Vinclozoline","Pinoxaden",null,null,null,null,"Oxydemeton methyl"]
["Warfarine","Pirimicarb, desmethyl-formamido-",null,null,null,null,"Pencycuron"]
["Zirame","Pirimicarbe",null,null,null,null,"Phenmédiphane"]
["Zoxamide","Pirimicarbe (somme)",null,null,null,null,"Phorat-sulfon"]
[null,"Pirimicarbe, desmethyl",null,null,null,null,"Phosphamidon"]
[null,"Pirimiphos-ethyl",null,null,null,null,"Phoxime"]
[null,"Pirimiphos-methyl",null,null,null,null,"Picloram"]
[null,"Prochloraz",null,null,null,null,"Picolinafene"]
[null,"Procymidone",null,null,null,null,"Pirimicarbe"]
[null,"Profenofos",null,null,null,null,"Pirimicarb, desmethyl-formamido-"]
[null,"Promecarb",null,null,null,null,"Pirimicarbe, desmethyl"]
[null,"Prométone",null,null,null,null,"Primisulfuron-methyl"]
[null,"Prométryne",null,null,null,null,"Prochloraz"]
[null,"Propachlore",null,null,null,null,"Profoxydim"]
[null,"Propamocarbe",null,null,null,null,"Promecarb"]
[null,"Propanile",null,null,null,null,"Prométryne"]
[null,"Propaquizafop",null,null,null,null,"Propamocarbe"]
[null,"Propargite",null,null,null,null,"Propétamphos"]
[null,"Propazine",null,null,null,null,"Propham"]
[null,"Propétamphos",null,null,null,null,"Propoxur"]
[null,"Propham",null,null,null,null,"Proquinazid"]
[null,"Propiconazole",null,null,null,null,"Prosulfocarbe"]
[null,"Propoxur",null,null,null,null,"Prosulfuron"]
[null,"Propoxycarbazon (somme)",null,null,null,null,"Pyraclofos"]
[null,"Propoxycarbazon-2-hydroxy",null,null,null,null,"Pyraclostrobine"]
[null,"Propoxycarbazone",null,null,null,null,"Pyridalyle"]
[null,"Propyzamide",null,null,null,null,"Pyriproxyfen"]
[null,"Proquinazid",null,null,null,null,"Quinoclamine"]
[null,"Prosulfocarbe",null,null,null,null,"Quizalofop-P-ethyl"]
[null,"Prothioconazole",null,null,null,null,"Rimsulfuron"]
[null,"Prothiophos",null,null,null,null,"Rotenone"]
[null,"Pymétrozine",null,null,null,null,"Sethoxydim"]
[null,"Pyraclostrobine",null,null,null,null,"Simetryne"]
[null,"Pyraflufen-éthyl",null,null,null,null,"Spinosad"]
[null,"Pyrasulfotole",null,null,null,null,"Spirodiclofen"]
[null,"Pyrazophos",null,null,null,null,"Spiromesifene"]
[null,"Pyréthrines (total)",null,null,null,null,"Spiroxamine"]
[null,"Pyridabène",null,null,null,null,"Sulfentrazon"]
[null,"Pyridalyle",null,null,null,null,"Tebufenpyrad"]
[null,"Pyridaphenthion",null,null,null,null,"Tebufénozide"]
[null,"Pyridate",null,null,null,null,"Teflubenzuron"]
[null,"Pyrifenox",null,null,null,null,"Tebuthiuron"]
[null,"Pyrifluquinazone",null,null,null,null,"Temephos"]
[null,"Pyriméthanil",null,null,null,null,"Tepraloxydim"]
[null,"Pyrimidifen",null,null,null,null,"Terbufos"]
[null,"Pyriproxyfen",null,null,null,null,"Thiabendazole"]
[null,"Pyroxsulam",null,null,null,null,"Thiabendazole D6"]
[null,"Quinalphos",null,null,null,null,"Thiacloprid"]
[null,"Quinmerac",null,null,null,null,"Thiamethoxam"]
[null,"Quinoclamine",null,null,null,null,"Thifensulfuron méthyle"]
[null,"Quinoxyfen",null,null,null,null,"Thiodicarbe"]
[null,"Quintozene",null,null,null,null,"Thiofanox-Sulfone"]
[null,"Quintozene (somme)",null,null,null,null,"Thiofanox-Sulfoxid"]
[null,"Quizalofop",null,null,null,null,"Thiofanox"]
[null,"Quizalofop (somme)",null,null,null,null,"Tralkoxydim"]
[null,"Quizalofop-P-ethyl",null,null,null,null,"Triasulfuron"]
[null,"Resmethrin",null,null,null,null,"Triazamate"]
[null,"Rimsulfuron",null,null,null,null,"Trichlorfon"]
[null,"Rotenone",null,null,null,null,"Tricyclazole"]
[null,"S 421",null,null,null,null,"Tridemorph"]
[null,"Sebuthylazine",null,null,null,null,"Triflumizole"]
[null,"Sethoxydim",null,null,null,null,"Trietazin"]
[null,"Silafluofen",null,null,null,null,"Triflumuron"]
[null,"Silthiofame",null,null,null,null,"Triflusulfuron-methyl"]
[null,"Simazine",null,null,null,null,"Triforine"]
[null,"Simeconazole",null,null,null,null,"Uniconazole"]
[null,"Simetryne",null,null,null,null,"Zoxamide"]
[null,"Spinetoram",null,null,null,null,"Carbendazime (MBC) et benomyl"]
[null,"Spinosad"]
[null,"Spirodiclofen"]
[null,"Spiromesifene"]
[null,"Spirotetramate"]
[null,"Spirotetramate (somme)"]
[null,"Spirotetramat-enol"]
[null,"Spirotetramat-enolglucoside"]
[null,"Spirotetramat-ketohydroxy"]
[null,"Spirotetramat-monohydroxy"]
[null,"Spiroxamine"]
[null,"Sulcotrione"]
[null,"Sulfentrazon"]
[null,"Sulfotep"]
[null,"Sulprofos-sulfoxide"]
[null,"Tau-fluvalinate "]
[null,"Tébuconazole"]
[null,"Tebufénozide"]
[null,"Tebufenpyrad"]
[null,"Tecnazène"]
[null,"Teflubenzuron"]
[null,"Tefluthrine"]
[null,"Tepraloxydim"]
[null,"Terbacile"]
[null,"Terbufos"]
[null,"Terbufos-sulfoxide"]
[null,"Terbumeton"]
[null,"Terbuthylazine"]
[null,"Terbutryne"]
[null,"Tetrachlorvinphos"]
[null,"Tetraconazole"]
[null,"Tetradifon"]
[null,"Tetramethrine"]
[null,"TFNA"]
[null,"TFNG"]
[null,"Thiabendazole"]
[null,"Thiabendazole D6"]
[null,"Thiacloprid"]
[null,"Thiamethoxam"]
[null,"Thiobencarb"]
[null,"Thiocyclam"]
[null,"Thiodicarbe"]
[null,"Thiofanox-Sulfone"]
[null,"Thiofanox-Sulfoxid"]
[null,"Thiophanate-méthyl"]
[null,"THPI "]
[null,"Tolclofos-methyl"]
[null,"Tolfenpyrad"]
[null,"Tolylfluanide"]
[null,"Tolylfluanide (somme)"]
[null,"Tralkoxydim"]
[null,"Transfluthrin"]
[null,"Triadimefone"]
[null,"Triadiménol/Triadiméfone (somme de)"]
[null,"Triadimenole"]
[null,"Triallate"]
[null,"Triazamate"]
[null,"Triazophos"]
[null,"Trichlorfon"]
[null,"Triclopyr"]
[null,"Tricyclazole"]
[null,"Tridemorph"]
[null,"Trifloxystrobin"]
[null,"Triflumizole"]
[null,"Triflumizole (somme)"]
[null,"Triflumuron"]
[null,"Trifluralin"]
[null,"Triflusulfuron-methyl"]
[null,"Triforine"]
[null,"Trimethacarb 3.4.5"]
[null,"Trinexapac-ethyl"]
[null,"Triphénylétain acétate "]
[null,"Triticonazole"]
[null,"Uniconazole"]
[null,"Valifenalate"]
[null,"Vamidothion"]
[null,"Vamidothion-sulfone"]
[null,"Vamidothion-sulfoxide"]
[null,"Vinclozoline"]
[null,"XMC "]
[null,"Xylylcarb"]
[null,"Zoxamide"]
[null,null,null,"Procymidone",null,"Thiophanate-methyl","Quintozene "]
[null,null,"Triflumizole","Permethrine",null,"Spiromesifene","Prométone"]
[null,null,"Pyridabène","Methacrifos",null,"Pirimiphos-methyl","Nitrothal-isopropyle"]
[null,null,"Ethoprophos","Diuron","Hexythiazox","Ethoprophos","Dimefox"]

{"sheet":"Labo","index":1,"n_rows":483,"n_cols":14,"rows_kept":483,"cut":false,"hidden":true,"merged":[]}
["N° lot","Date","Champignons","SEC/REHYDRATE/SURGELE","MP/PF","Récolte","Fournisseur","Origine","Laboratoire"]
["CS 367","08/09/2000","Girolles","-","MP","-","MONDIACEPES","ROUMANIE","-",null,null,null,null,"Bureau National Accréditation Lituanien"]
["FJ 174","08/09/2000","Granulatus","-","MP","-","ITOHWEN","CHINE","-",null,null,null,null,"Eurofins"]
["FJ 307","08/09/2000","Trompettes","-","MP","-","CML","MACEDOINE","-",null,null,null,null,"Eurofins Shijiazhuang"]
["FJ 390","08/09/2000","Morilles","-","MP","-","PONDEROSA","CANADA","-",null,null,null,null,"Eurofins Zhejiang Baixing"]
["CS 295","08/09/2000","Cèpes","-","MP","-","CML","SERBIE","-",null,null,null,null,"Sino Analytica Qingdao"]
["FJ 286","08/09/2000","Ch. Noirs","-","MP","-","ITOHWEN","CHINE","-",null,null,null,null,"Wessling"]
["FJ 609","18/05/2001","Ch. Noirs","-","MP","-","ITOHWEN","CHINE","-"]
["FJ 699","18/05/2001","Shiitakés","-","MP","-","FUJIAN","CHINE","-"]
["FJ 705","18/05/2001","Morilles","-","MP","-","KASHMIR","INDE","-"]
["FJ 698","18/05/2001","Mousserons","-","MP","-","MONDIACEPES","BULGARIE","-"]
["FJ 706","18/05/2001","Pleurotes","-","MP","-","MEDOÏL","CHINE","-"]
["FJ 174","18/05/2001","Granulatus","-","MP","-","ITOHWEN","CHINE","-"]
["FJ 686","18/05/2001","Trompettes","-","MP","-","MONDIACEPES","BIELORUSSIE","-"]
["CS 337","18/05/2001","Morilles","-","MP","-","ITOHWEN","CHINE","-"]
["FJ 726","18/05/2001","Girolles","-","MP","-","ALPIN","BULGARIE","-"]
["CS 147","18/05/2001","Cèpes","-","MP","-","IMPORT SRL","MACEDOINE","-"]
["LC 304","23/01/2003","Cèpes","-","MP","-","ALPIN","BULGARIE","-"]
["LC 328","23/01/2003","Girolles","-","MP","-","ALPIN","BULGARIE","-"]
["FN 308","23/01/2003","Girolles","-","MP","-","EUROARICI","ROUMANIE","-"]
["FN 171","10/10/2002","Cèpes","-","MP","-","JOBSON","SERBIE","-"]
["FN 172","10/10/2002","Mousserons","-","MP","-","ALPIN","BULGARIE","-"]
["Y3 127","12/08/2003","Cèpes","-","MP","-","JOBSON","SERBIE","-"]
["J3 239","12/08/2003","Girolles","-","MP","-","BORDE","BULGARIE","-"]
["Y3 394","09/06/2004","Granulatus","-","MP","-","ICTC","CHINE","-"]
["Y4 054","09/06/2004","Pleurotes","-","MP","-","BAODING","CHINE","-"]
["Y4 004","09/06/2004","Ch. Noirs","-","MP","-","ITOHWEN","CHINE","-"]
["Y4 280","17/11/2004","Cèpes","-","MP","-","JOBSON","SERBIE","-"]
["Y4 205","17/11/2004","Trompettes","-","MP","-","VISITA","BULGARIE","-"]
["Y4 601","09/08/2005","Cèpes","-","MP","-","MILANI FRAGOR","ROUMANIE","-"]
["Y4 561","09/08/2005","Granulatus","-","MP","-","ITOHWEN","CHINE","-"]
["Y4 563","09/08/2005","Pleurotes","-","MP","-","FORTUNE FOODS","CHINE","-"]
["Y4 582","09/08/2005","Ch. Noirs","-","MP","-","CHENGDU MINJIANG","CHINE","-"]
["Y6 088","07/08/2006","Pleurotes","-","MP","-","BAODING","CHINE","-"]
["Y6 055","07/08/2006","Ch. Noirs","-","MP","-","CHENGDU MINJIANG","CHINE","-"]
["Y5 074","07/08/2006","Ch. Noirs","-","MP","-","CHENGDU MINJIANG","CHINE","-"]
["Y5 077","07/08/2006","Black Black","-","MP","-","ITOHWEN","CHINE","-"]
["Y6 038","07/08/2006","Ch. Noirs","-","MP","-","CHENGDU MINJIANG","CHINE","-"]
["Y6 404","15/11/2006","Trompettes","-","MP","-","MAPE","ROUMANIE","-"]
["Y6 253","15/11/2006","Shiitakés","-","MP","-","CHENGDU MINJIANG","CHINE","-"]
["Y7 088","13/04/2007","Cèpes","-","MP","-","BONTOUT","CHINE","Lara Europes Analyses"]
["Y6 693","10/01/2007","Morilles","-","MP","-","SEVENSEAS","PAKISTAN","Lara Europes Analyses"]
["CML 2452","07/03/2007","Granulatus","-","MP","-","ITOHWEN","CHINE","Lara Europes Analyses"]
["Y6 736","29/01/2007","Ch. Noirs","-","MP","-","CHENGDU MINJIANG","CHINE","Lara Europes Analyses"]
["Y7 090/Y6 410","12/04/2007","Cèpes","-","MP","-","MAPE","ROUMANIE","Lara Europes Analyses"]
["Y7 010","12/03/2007","Pleurotes","-","MP","-","KDY","CHINE","Lara Europes Analyses"]
["Y7 100","01/08/2007","Black Black","-","MP","-","ITOHWEN","CHINE","Lara Europes Analyses"]
["Y7 286","07/01/2008","Shiitakés","-","MP","-","ICTC","CHINE","Lara Europes Analyses"]
["Y7 581","07/01/2008","Girolles","-","MP","-","CML/BONTOUT","RUSSIE","Lara Europes Analyses"]
["Y7 220","07/01/2008","Luteus","-","MP","-","HOJAS EXPORT","CHILI","Lara Europes Analyses"]
["Y8 025","10/03/2008","Cèpes","-","MP","-","CHENGDU MINJIANG","CHINE","Larebron"]
["Y7 359/Y7 450","05/05/2008","Luteus","-","MP","-","HOJAS EXPORT","CHILI","Larebron"]
["Y8 051","05/05/2008","Ch. Noirs","-","MP","-","CHENGDU MINJIANG","CHINE","Larebron"]
["Y7 077","05/05/2008","Pleurotes","-","MP","-","XIAMEN FML","CHINE","Larebron"]
["Y7 587","05/05/2008","Champignon de Paris","-",null,"-","ZHEJIANG ZHONGDA","CHINE","Larebron"]
["Y8 132","09/07/2008","Shiitakés","-","MP","-","ZHEJIANG CERAL","CHINE","Larebron"]
["Y8 311","08/08/2008","Cèpes","-","MP","-","MAPE","ROUMANIE","Larebron"]
["Y8 110","16/05/2008","Black Black","-","MP","-","CHINA TREE SEED","CHINE","Larebron"]
["Y8 349","05/09/2008","Trompettes","-","MP","-","GREEN SRL","BULGARIE","Larebron"]
["Y8 221","24/07/2008","Mousserons","-","MP","-","MID BIO TRADE","BULGARIE","Larebron"]
["Y8 317","28/08/2008","Morilles","-","MP","-","ITOHWEN","CHINE","Larebron"]
["Y9 098","06/07/2009","Morilles","-","MP","-","SANJEEV","INDE","Larebron"]
["Y9 002","06/07/2009","Ch. Noirs","-","MP","-","CHENGDU MINJIANG","CHINE","Larebron"]
["Y9 005","06/07/2009","Black Black","-","MP","-","ITOHWEN","CHINE","Larebron"]
["Y9 087","06/07/2009","Cèpes","-","MP","-","MAPE","ROUMANIE","Larebron"]
["Y8 395","11/12/2009","Granulatus","-","MP","-","DENIS FRERES","CHINE","Larebron"]
["Y9 162","11/12/2009","Mousserons","-","MP","-","JOBSON","SERBIE","Larebron"]
["Y9 215","11/12/2009","Pleurotes","-","MP","-","ZHEJIANG BAIXING","CHINE","Larebron"]
["Y9 470","11/12/2009","Trompettes","-","MP","-","GREEN SRL","BULGARIE","Larebron"]
["Y9 480","11/12/2009","Shiitakés","-","MP","-","BORDE","CHINE","Larebron"]
["A0 244","24/11/2010","Cèpes","-","MP","-","ZHEJIANG BAIXING","CHINE","Wessling"]
["A0 196","24/11/2010","Ch. Noirs","-","MP","-","HONG KONG WELL REACH","CHINE","Wessling"]
["A0 246","24/11/2010","Champignon de Paris","-",null,"-","ZHEJIANG BAIXING","CHINE","Wessling"]
["Y9 415","16/12/2010","Girolles","-","MP","-","ZHEJIANG BAIXING","CHINE","Wessling"]
["A0 164","24/11/2010","Granulatus","-","MP","-","FORTUNE FOODS","CHINE","Wessling"]
["A0 380","16/12/2010","Luteus","-","MP","-","AGROINDUSTRIA","CHILI","Wessling"]
["A0 368B","26/11/2010","Morilles","-","MP","-","RAHMAN TRADERS","PAKISTAN","Wessling"]
["A0 149","24/11/2010","Pleurotes","-","MP","-","ZHEJIANG BAIXING","CHINE","Wessling"]
["A1 119","30/09/2011","Cèpes","-","MP","-","HONG KONG WELL REACH","CHINE","Wessling"]
["A1 300","30/09/2011","Morilles","-","MP","-","STEBUS","INDE","Wessling"]
["A1 200","30/09/2011","Ch. Noirs","-","MP","-","PEXING URING","CHINE","Wessling"]
["A1 092B","30/09/2011","Pleurotes","-","MP","-","ZHEJIANG BAIXING","CHINE","Wessling"]
["A1 093B","30/09/2011","Champignon de Paris","-",null,"-","ZHEJIANG BAIXING","CHINE","Wessling"]
["A1 004","25/11/2011","Morilles","-","MP","-","SICHUAN QUALITY","CHINE","Wessling"]
["A1 364","25/11/2011","Girolles","-","MP","-","VALCOM DI ROSIN VALENTINO ","ROUMANIE","Wessling"]
["A1 229","14/12/2011","Black Black","REHYDRATE","MP",2011,"SHANGAI DASHAN","CHINE","Wessling"]
["A1 433","14/12/2011","Cèpes","REHYDRATE","MP",2011,"TOROSLAR","TURQUIE","Wessling"]
["A1 445","2012-01-10","Trompettes","REHYDRATE","MP",2011,"VALCOM DI ROSIN VALENTINO ","BULGARIE","Wessling"]
["A1 124","11/01/2012","Luteus","REHYDRATE","MP",2010,"HOJAS EXPORT","CHILI","Wessling"]
["A2 287","24/08/2012","Morilles","REHYDRATE","MP",2012,"RAHMAN TRADERS","PAKISTAN","Wessling"]
["A2 281","24/08/2012","Morilles","REHYDRATE","MP",2012,"STEBUS","INDE","Wessling"]
["A2 116","24/08/2012","Champignon de Paris","REHYDRATE","MP",2011,"ZHEJIANG BAIXING","CHINE","Wessling"]
["A2 115","17/10/2012","Shiitakés","REHYDRATE","MP",2011,"ZHEJIANG BAIXING","CHINE","Wessling"]
["A1 090","16/10/2012","Shiitakés","REHYDRATE","MP",2011,"ZHEJIANG BAIXING","CHINE","Wessling"]
["A2 253","07/12/2012","Pleurotes","REHYDRATE","MP",2012,"ZHEJIANG BAIXING","CHINE","Wessling"]
["A2 264","07/12/2012","Ch. Noirs","REHYDRATE","MP",2012,"TZL","CHINE","Wessling"]
["A2 359","07/12/2012","Cèpes","REHYDRATE","MP",2012,"ZHEJIANG BAIXING","CHINE","Wessling"]
["A2 340","05/02/2013","Luteus","REHYDRATE","MP",2012,"GRANEROS","CHILI","Wessling"]
["A2 255","07/02/2013","Black Black","REHYDRATE","MP",2011,"ZHEJIANG BAIXING","CHINE","Wessling"]
["L13049006","20/02/2013","Cèpes","SEC","PF","-","STOCK","IMPORT","Wessling"]
["L13049006-b","29/04/2013","Cèpes","SEC","PF","-","STOCK","IMPORT","Wessling"]
["A2 402","29/04/2013","Cèpes","REHYDRATE","MP",2012,"ZHEJIANG BAIXING","CHINE","Wessling"]
["A2 134","16/05/2013","Cèpes","REHYDRATE","MP",2011,"COMPAGNIE DES PRODUITS SAUVAGES","MACEDOINE","Wessling"]
["A2 150","16/05/2013","Cèpes","REHYDRATE","MP",2011,"SICHUAN QUALITY","CHINE","Wessling"]
["A2 430","16/05/2013","Cèpes","REHYDRATE","MP",2012,"DENELY","BULGARIE","Wessling"]
["A1 410","16/05/2013","Cèpes","REHYDRATE","MP",2011,"TZL","CHINE","Wessling"]
["A2 371B","16/05/2013","Cèpes","REHYDRATE","MP",2012,"LONGYUN FOODS","CHINE","Wessling"]
["A2 111","16/05/2013","Cèpes","REHYDRATE","MP",2011,"ZHEJIANG BAIXING","CHINE","Wessling"]
["L13049006-c","16/05/2013","Cèpes","SEC","PF","-","STOCK","IMPORT","Wessling"]
["L13049006-c","22/05/2013","Cèpes","SEC","PF","-","STOCK","IMPORT","Phytocontrol"]
["OR12277001","16/05/2013","Cèpes","SEC","PF","-","STOCK","IMPORT","Wessling"]
["OR12277001","22/05/2013","Cèpes","SEC","PF","-","STOCK","IMPORT","Phytocontrol"]
["A2 403","18/05/2013","Cèpes","REHYDRATE","MP",2012,"ZHEJIANG BAIXING","CHINE","Phytocontrol"]
["A2 365","12/06/2013","Granulatus","SEC","MP",2012,"FORTUNE FOODS","CHINE","Wessling"]
["A2 439","12/06/2013","Granulatus","SEC","MP",2012,"FORTUNE FOODS","CHINE","Wessling"]
["OR13137001","12/06/2013","Cèpes","SEC","PF","-","STOCK","IMPORT","Wessling"]
["A2 480","28/06/2013","Cèpes","REHYDRATE","ECH",2013,"ZHEJIANG BAIXING","CHINE","Wessling"]
["A2 481","28/06/2013","Cèpes","REHYDRATE","ECH",2013,"ZHEJIANG BAIXING","CHINE","Wessling"]
["A3 048","28/06/2013","Cèpes","REHYDRATE","ECH",2013,"ZHEJIANG BAIXING","CHINE","Wessling"]
["L12191015","06/09/2013","Cèpes","SEC","PF","-","STOCK","IMPORT","Wessling"]
["L13262028","04/10/2013","Cèpes","SEC","PF","-","STOCK","IMPORT","Wessling"]
["L09XX","04/10/2013","Cèpes/Bolets","SEC","PF","-","STOCK  déc 2009","IMPORT","Wessling"]
["A3 047","04/10/2013","Shiitakés","REHYDRATE","MP",2013,"ZHEJIANG BAIXING","CHINE","Wessling"]
["A3 011","04/10/2013","Pleurotes","REHYDRATE","MP",2013,"ZHEJIANG BAIXING","CHINE","Wessling"]
["A3 048","04/10/2013","Cèpes","REHYDRATE","MP",2013,"ZHEJIANG BAIXING","CHINE","Wessling"]
["A2 480","04/10/2013","Cèpes","REHYDRATE","MP",2013,"ZHEJIANG BAIXING","CHINE","Wessling"]
["A3 112","18/10/2013","Morilles","REHYDRATE","MP",2013,"WEST COAST WILL FOODS ","CANADA","Wessling"]
["A3 096","07/11/2013","Morilles","REHYDRATE","MP",2013,"RAHMAN TRADERS","PAKISTAN","Wessling"]
["A3 100","07/11/2013","Morilles","REHYDRATE","MP",2013,"FAZAL","PAKISTAN","Wessling"]
["A3 030","07/11/2013","Ch. Noirs","REHYDRATE","MP",2013,"TZL","CHINE","Wessling"]
["A3 276","07/11/2013","Morilles","REHYDRATE","MP",2013,"HUSSAIN","PAKISTAN","Wessling"]
["A2 426","07/11/2013","Cèpes","REHYDRATE","MP",2013,"ZHEJIANG BAIXING","CHINE","Wessling"]
["A3 235","07/11/2013","Morilles","REHYDRATE","MP",2013,"STEBUS","INDE","Wessling"]
["A3 085","07/11/2013","Morilles","REHYDRATE","MP",2013,"STEBUS","INDE","Wessling"]
["A3 201","07/11/2013","Morilles","REHYDRATE","MP",2013,"STEBUS","INDE","Wessling"]
["A3 050","07/11/2013","Granulatus","REHYDRATE","MP",2013,"FORTUNE FOODS","CHINE","Wessling"]
["A2 481","07/11/2013","Cèpes","REHYDRATE","MP",2013,"ZHEJIANG BAIXING","CHINE","Wessling"]
["A3 237","07/11/2013","Mousserons","REHYDRATE","MP",2012,"KSENOS","MACEDOINE","Wessling"]
["A3 192","29/11/2013","Cèpes","REHYDRATE","MP",2013,"EXTRAFUNGHI","MACEDOINE","Wessling"]
["A3 196B","29/11/2013","Girolles","REHYDRATE","MP",2013,"DENELY","BULGARIE","Wessling"]
["A3 263","20/12/2013","Luteus","REHYDRATE","MP",2012,"ANDIFUNGHI","CHILI","Wessling"]
["A3 352","20/12/2013","Trompettes","REHYDRATE","MP",2013,"GOBAN","SLOVENIE","Wessling"]
["A2 482","20/12/2013","Lactaires","REHYDRATE","MP",2012,"BEKTAS","TURQUIE","Wessling"]
["A3 222","20/12/2013","Cèpes","SEC","MP",2013,"ZHEJIANG BAIXING","CHINE","Wessling"]
["A3 222","20/12/2013","Cèpes","REHYDRATE","MP",2013,"ZHEJIANG BAIXING","CHINE","Wessling"]
["A3 223","20/12/2013","Cèpes","SEC","MP",2013,"ZHEJIANG BAIXING","CHINE","Wessling"]
["A3 223","16/12/2014","Cèpes","SEC","MP",2013,"ZHEJIANG BAIXING","CHINE","Phytocontrol"]
["A3 223","20/12/2013","Cèpes","REHYDRATE","MP",2013,"ZHEJIANG BAIXING","CHINE","Wessling"]
["A3 224","20/12/2013","Cèpes","SEC","MP",2013,"ZHEJIANG BAIXING","CHINE","Wessling"]
["A3 224","20/12/2013","Cèpes","REHYDRATE","MP",2013,"ZHEJIANG BAIXING","CHINE","Wessling"]
["A4 011","23/01/2014","Cèpes","SEC","MP",2013,"KSENOS","MACEDOINE","Wessling"]
["A3 379","04/02/2014","Cèpes","SEC","Fournisseur",2013,"ZHEJIANG BAIXING","CHINE","Fournisseur"]
["L14027005=A3202","24/02/2014","Cèpes","SEC","PF","-","ALDI-SUISSE","CHINE","Wessling"]
["L14027005 bidon","17/03/2014","Cèpes","SEC","PF","-","ALDI-SUISSE bidon=A2429","CHINE","Wessling"]
["L14041003","24/02/2014","Cèpes","SEC","PF","-","ALDI-SUISSE","CHINE","Wessling"]
["L14041003 bidon","17/03/2014","Cèpes","SEC","PF","-","ALDI-SUISSE bidon=A2447","CHINE","Wessling"]
["A2 429","24/02/2014","Cèpes","SEC","MP",2012,"SICHUAN QUALITY","CHINE","Wessling"]
["A2 447","24/02/2014","Cèpes","SEC","MP",2012,"SICHUAN QUALITY","CHINE","Wessling"]
["A3 203","24/02/2014","Cèpes","SEC","MP",2013,"ZHEJIANG BAIXING","CHINE","Wessling"]
["A3 379","24/02/2014","Cèpes","SEC","MP",2013,"ZHEJIANG BAIXING","CHINE","Wessling"]
["A3 371","24/02/2014","Cèpes","SEC","MP",2013,"LIJIANG ZHONGYUAN","CHINE","Wessling"]
["A3 372","24/02/2014","Cèpes","SEC","MP",2013,"LIJIANG ZHONGYUAN","CHINE","Wessling"]
["A3 193","17/03/2014","Cèpes","SEC","MP",2013,"EXTRAFUNGHI","MACEDOINE","Wessling"]
["A3 349","17/03/2014","Cèpes","SEC","MP",2013,"EXTRAFUNGHI","MACEDOINE","Wessling"]
["A3 375","17/03/2014","Cèpes","SEC","MP",2013,"DENELY","BULGARIE","Wessling"]
["A4 001","09/04/2014","Cèpes","SEC","MP",2014,"LIJIANG ZHONGYUAN","CHINE","Wessling"]
["L14083001","09/04/2014","Cèpes","SEC","PF","-","ALDI-France","IMPORT","Wessling"]
["A3 388","17/04/2014","Cèpes","SEC","MP",2013,"ZHEJIANG BAIXING","CHINE","Wessling"]
["A3 389","17/04/2014","Cèpes","SEC","MP",2013,"ZHEJIANG BAIXING","CHINE","Wessling"]
["A3 399","17/04/2014","Cèpes","SEC","MP",2013,"ZHEJIANG BAIXING","CHINE","Wessling"]
["A4 028","20/05/2014","Cèpes","SEC","MP",2014,"ZHEJIANG BAIXING","CHINE","Wessling"]
["A4080","29/07/2014","Cèpes","SEC","MP",2013,"ZHEJIANG BAIXING","CHINE","Wessling"]
["A4078","29/07/2014","Cèpes","SEC","MP",2013,"ZHEJIANG BAIXING","CHINE","Wessling"]
["A4077","29/07/2014","Cèpes","SEC","MP",2013,"ZHEJIANG BAIXING","CHINE","Wessling"]
["A4 082+A4 083+A4 084","29/07/2014","Cèpes","SEC","MP",2013,"ZHEJIANG BAIXING","CHINE","Wessling"]
["A4075","29/07/2014","Cèpes","SEC","MP",2013,"ZHEJIANG BAIXING","CHINE","Wessling"]
["A4076","29/07/2014","Cèpes","SEC","MP",2013,"ZHEJIANG BAIXING","CHINE","Wessling"]
["A4089","29/09/2014","Luteus","SEC","MP",2014,"NODIEX","PEROU","Wessling"]
["A3367","26/11/2014","Granulatus","SEC","MP",2013,"FORTUNE FOODS","CHINE","Wessling"]
["A4199","15/12/2014","Morilles","SEC","MP",2014,"SUNSHINE","CANADA","Wessling"]
["A4199-b","15/01/2015","Morilles","SEC","-",2014,"SUNSHINE","CANADA","Wessling"]
["A4258","15/12/2014","Morilles","SEC","MP",2014,"LIJIANG ZHONGYUAN","CHINE","Wessling"]
["A4258-b","15/01/2015","Morilles","SEC","-",2014,"LIJIANG ZHONGYUAN","CHINE","Wessling"]
["A4350","15/12/2014","Cèpes","SEC","MP",2014,"ECOFRUCT","ROUMANIE","Phytocontrol"]
["A4238","16/12/2014","Cèpes","SEC","MP",2014,"KSENOS","MACEDOINE","Phytocontrol"]
["A4029","17/12/2014","Cèpes","SEC","MP",2014,"ZHEJIANG BAIXING","CHINE","Phytocontrol"]
["A4029-trait","16/02/2015","Cèpes","SEC","MP",2014,"ZHEJIANG BAIXING","CHINE","Wessling"]
["A4342","21/01/2015","Cèpes","SEC","MP",2014,"LIJIANG JUALI","CHINE","Wessling"]
["A4032","21/01/2015","Ch. Noirs","SEC","MP",2014,"ZHEJIANG BAIXING","CHINE","Wessling"]
["A4314","12/02/2015","Cèpes","SEC","MP",2014,"KSENOS","MACEDOINE","Wessling"]
["A4099","12/02/2015","Granulatus","SEC","MP",2013,"FORTUNE FOODS","CHINE","Wessling"]
["A4087","12/02/2015","Pleurotes","SEC","MP",2013,"ZHEJIANG BAIXING","CHINE","Wessling"]
["A4367","12/02/2015","Granulatus","SEC","MP",2014,"FORTUNE FOODS","CHINE","Wessling"]
["A4391","12/02/2015","Girolles","SEC","MP",2014,"STRELA","SERBIE","Wessling"]
["A4263","18/02/2015","Morillons","SEC","MP",2014,"STREBUS","INDE","Wessling"]
["A4031","18/02/2015","Champignon de Paris","SEC","MP",2014,"ZHEJIANG BAIXING","CHINE","Wessling"]
["L15037013","19/02/2015","Cèpes","SEC","PF","-","STOCK","IMPORT","Wessling"]
["A4434","19/02/2015","Morilles","SEC","MP",2014,"SEVENSEAS","PAKISTAN","Wessling"]
["A4203","19/02/2015","Morilles","SEC","MP",2014,"STEBUS","INDE","Wessling"]
["A4422","19/02/2015","Luteus","SEC","MP",2014,"BORDE","CHILI","Wessling"]
["A4259","03/03/2015","Morilles","SEC","MP",2014,"FAZAL","PAKISTAN","Wessling"]
["A4260","03/03/2015","Morilles","SEC","MP",2014,"FAZAL","PAKISTAN","Wessling"]
["A4216","03/03/2015","Morilles","SEC","MP",2014,"KASHMIR","INDE","Wessling"]
["A4348","03/03/2015","Morilles","SEC","MP",2014,"STREBUS","INDE","Wessling"]
["A4439","03/03/2015","Shiitakés","SEC","MP",2014,"ZHEJIANG BAIXING","CHINE","Wessling"]
["A3347","03/03/2015","Lactaires","SEC","MP",2013,"EXTRAFUNGHI","MACEDOINE","Wessling"]
["A4225B","03/03/2015","Tricholomes st Georges","SEC","MP",2014,"ALPIN","BULGARIE","Wessling"]
["A4246B","04/03/2015","Trompettes","SEC","MP",2014,"ALPIN","BULGARIE","Wessling"]
["A5061-A5062","12/06/2015","Granulatus","SEC","MP",2015,"FORTUNE FOODS","CHINE","Sino Analytica"]
["A5043-A5044-A5116","25/05/2015","Ch. Noirs","SEC","MP",2015,"FORTUNE FOODS","CHINE","Sino Analytica"]
["SC15246001","17/11/2015","Cèpes","SEC","PSF","-","SCAMARK","IMPORT","Wessling"]
["SC15272001","17/11/2015","Cèpes","SEC","PSF","-","SCAMARK","IMPORT","Wessling"]
["L15247002","03/12/2015","Cèpes","SEC","PF","-","STOCK","IMPORT","Wessling"]
["L15309036B","03/12/2015","Cèpes","SEC","PF","-","STOCK","IMPORT","Wessling"]
["L15313029","04/12/2015","Cèpes","SEC","PF","-","STOCK","IMPORT","Wessling"]
["A5075","17/12/2015","Morilles","SEC","MP",2015,"STREBUS","INDE","Wessling"]
["A5181","14/01/2016","Cèpes","SEC","MP",2015,"KASOL","POLOGNE","Wessling"]
["A5216","14/01/2016","Cèpes","SEC","MP",2015,"ZHEJIANG BAIXING","CHINE","Wessling"]
["A5217","14/01/2016","Cèpes","SEC","MP",2015,"ZHEJIANG BAIXING","CHINE","Wessling"]
["A5161","14/01/2016","Cèpes","SEC","MP",2015,"ZHEJIANG BAIXING","CHINE","Wessling"]
["A6034","07/03/2016","Morilles","SEC","MP",2015,"LIJIANG ZHONGYUAN","CHINE","Eurofins"]
["A5092","11/02/2016","Morilles","SEC","MP",2015,"SEVENSEAS","PAKISTAN","Wessling"]
["A5094","11/02/2016","Morilles","SEC","MP",2015,"KASHMIR","INDE","Wessling"]
["A5195","25/02/2016","Luteus","SEC","MP",2015,"NODIEX","PEROU","Wessling"]
["A5233","25/02/2016","Lactaires","SEC","MP",2015,"KSENOS","MACEDOINE","Wessling"]
["A5140","29/02/2016","Girolles","SEC","MP",2015,"MAX DELIZIE","BOSNIE","Wessling"]
["A5163","29/02/2016","Girolles","SEC","MP",2015,"ET SOLARIUM","BULGARIE","Wessling"]
["A5231","29/02/2016","Granulatus","SEC","MP",2015,"LIJIANG ZHONGYUAN","Chine","Wessling"]
["A5043","29/02/2016","Ch. Noirs","SEC","MP",2015,"FORTUNE FOODS","Chine","Wessling"]
["A5266","01/04/2016","Cèpes","SEC","MP",2015,"LIJIANG ZHONGYUAN","Chine","Wessling"]
["A5267","01/04/2016","Cèpes","SEC","MP",2015,"LIJIANG ZHONGYUAN","Chine","Wessling"]
["A5164","01/04/2016","Cèpes","SEC","MP",2015,"ET SOLARIUM","BULGARIE","Wessling"]
["A5320","01/04/2016","Cèpes","SEC","MP",2015,"COMPAGNIE DES PRODUITS SAUVAGES","ROUMANIE","Wessling"]
["A6005","01/04/2016","Cèpes","SEC","MP",2015,"CALISKAN","TURQUIE","Wessling"]
["A6032","01/04/2016","Chanterelles jaunes","SEC","MP",2015,"COMPAGNIE DES PRODUITS SAUVAGES","BULGARIE","Wessling"]
["A5253","05/04/2016","Champignon de Paris","SEC","MP",2015,"ZHEJIANG BAIXING","Chine","Wessling"]
["MB ?","03/05/2000","Morilles",{"$f":"\"SURGELE\"","v":"SURGELE"},"-","-","CHAMPILAND","TURQUIE","-"]
["FJ 706","03/05/2000","Shiitakés","SURGELE","-","-","ITOHWEN","CHINE","-"]
["FJ 242","03/05/2000","Bolets bais","SURGELE","-","-","NORIS","POLOGNE","-"]
["FJ 122","04/05/2000","Pholiotes","SURGELE","-","-","ITOHWEN","CHINE","-"]
["FJ 714","04/05/2000","Pleurotes","SURGELE","-","-","CAWELA","CHINE","-"]
["FJ 255","04/05/2000","Luteus","SURGELE","-","-","PUNSIN","CHILI","-"]
["CS 333","05/09/2000","Morilles","SURGELE","-","-","EGEMEKS","TURQUIE","-"]
["CS 540","26/09/2001","Pholiotes","SURGELE","-","-","ITOHWEN","CHINE","-"]
["FJ 552","26/09/2001","Pleurotes","SURGELE","-","-","CAWELA","CHINE","-"]
["FJ 536","26/09/2001","Shiitakés","SURGELE","-","-","ITOHWEN","CHINE","-"]
["FN 148","27/09/2002","Cèpes","SURGELE","-","-","GRUPPEN DREI","AF. DU SUD","-"]
["CS 968","27/09/2002","Pholiotes","SURGELE","-","-","ITOHWEN","CHINE","-"]
["CS 971","27/09/2002","Pleurotes","SURGELE","-","-","ITOHWEN","CHINE","-"]
["LC 121","27/09/2002","Shiitakés","SURGELE","-","-","GYMA","CHINE","-"]
["C1 029","10/10/2002","Cèpes","SURGELE","-","-","EUROARICI","SERBIE","-"]
["FN 172","10/10/2002","Mousserons","SURGELE","-","-","ALPIN","BULGARIE","-"]
["FN 171","10/10/2002","Cèpes","SURGELE","-","-","JOBSON","SERBIE","-"]
["FN 293","30/01/2003","Cèpes","SURGELE","-","-","GRUPPEN DREI","AF. DU SUD","-"]
["FN 298","04/08/2003","Cèpes","SURGELE","-","-","GRUPPEN DREI","AF. DU SUD","-"]
["Y3 098","04/08/2003","Pholiotes","SURGELE","-","-","DANDONG","CHINE","-"]
["Y3 142","04/08/2003","Pleurotes","SURGELE","-","-","BAODING","CHINE","-"]
["Y3 118","04/08/2003","Shiitakés","SURGELE","-","-","DANDONG","CHINE","-"]
["Y4 041","08/06/2004","Girolles","SURGELE","-","-","URBAN PILZE","POLOGNE","-"]
["Y3 262","08/06/2004","Pleurotes","SURGELE","-","-","JIANFENG FOOD","CHINE","-"]
["Y4 048","08/06/2004","Shiitakés","SURGELE","-","-","ITOHWEN","CHINE","-"]
["Y3 467","08/06/2004","Pholiotes","SURGELE","-","-","HEBEI CHINA","CHINE","-"]
["Y4 163","17/11/2004","Cèpes","SURGELE","-","-","GYMA","CHINE","-"]
["Y3 460","17/11/2004","Pleurotes","SURGELE","-","-","BAODING","CHINE","-"]
["Y4 137","17/11/2004","Ch. Noirs blanchis","SURGELE","-","-","ZHEJIANG ZHONGDA","CHINE","-"]
["Y4 344","20/01/2005","Cèpes","SURGELE","-","-","BEKTAS","TURQUIE","-"]
["Y4 108","20/01/2005","Luteus","SURGELE","-","-","PUNSIN","CHILI","-"]
["Y4 251","05/08/2005","Cèpes","SURGELE","-","-","ICTC","CHINE","-"]
["Y4 480","05/08/2005","Pleurotes","SURGELE","-","-","BAODING","CHINE","-"]
["Y4 625","05/08/2005","Shiitakés","SURGELE","-","-","FORTUNE FOODS","CHINE","-"]
["Y4 529","05/08/2005","Ch. Noirs blanchis","SURGELE","-","-","ZHEJIANG ZHONGDA","CHINE","-"]
["Y4 706","05/08/2005","Luteus","SURGELE","-","-","MONTEIL","CHILI","-"]
["Y4 623","05/08/2005","Pholiotes","SURGELE","-","-","FORTUNE FOODS","CHINE","-"]
["Y4 616","05/08/2005","Girolles","SURGELE","-","-","GYMA","POLOGNE","-"]
["Y4 876","10/01/2006","Shiitakés","SURGELE","-","-","BAODING","CHINE","-"]
["Y4 590","04/05/2006","Shiitakés","SURGELE","-","-","BAODING","CHINE","-"]
["Y6 092","04/05/2006","Shiitakés","SURGELE","-","-","BAODING","CHINE","-"]
["Y4 764","04/05/2006","Shiitakés","SURGELE","-","-","BAODING","CHINE","-"]
["Y6 126","18/07/2006","Shiitakés","SURGELE","-","-","DANDONG","CHINE","-"]
["Y4 950","18/07/2006","Pholiotes","SURGELE","-","-","FORTUNE FOODS","CHINE","-"]
["Y6 174","18/07/2006","Ch. Noirs blanchis","SURGELE","-","-","CHENGDU MINJIANG","CHINE","-"]
["Y6 247","18/07/2006","Cèpes","SURGELE","-","-","MAPE","ROUMANIE","-"]
["Y6 173","18/07/2006","Pleurotes","SURGELE","-","-","FORTUNE FOODS","CHINE","-"]
["Y6 214","13/11/2006","Luteus","SURGELE","-","-","FRUTTICOLA","CHILI","-"]
["Y6 501","13/11/2006","Girolles","SURGELE","-","-","DANEX","POLOGNE","-"]
["Y6 127","03/05/2007","Shiitakés","SURGELE","-","-","DANDONG","CHINE","Lara Europe Analyses"]
["Y6 635","03/05/2007","Shiitakés","SURGELE","-","-","ITOHWEN","CHINE","Lara Europe Analyses"]
["Y6 279","03/05/2007","Cèpes","SURGELE","-","-","SICHUAN QUALITY","CHINE","Lara Europe Analyses"]
["Y6 612","03/05/2007","Pleurotes","SURGELE","-","-","HEBEI CHINA","CHINE","Lara Europe Analyses"]
["Y6 521","03/05/2007","Shiitakés","SURGELE","-","-","FORTUNE FOODS","CHINE","Lara Europe Analyses"]
["Y6 626","03/05/2007","Pholiotes","SURGELE","-","-","FORTUNE FOODS","CHINE","Lara Europe Analyses"]
["Y6 561","03/05/2007","Ch. Noirs blanchis","SURGELE","-","-","ZHEJIANG ZHONGDA","CHINE","Lara Europe Analyses"]
["Y6 653","03/05/2007","Luteus","SURGELE","-","-","COPRAMAR","CHILI","Lara Europe Analyses"]
["Y6 562","03/05/2007","Ch. Noirs blanchis","SURGELE","-","-","ZHEJIANG ZHONGDA","CHINE","Lara Europe Analyses"]
["Y7 079","24/04/2007","Trompettes","SURGELE","-","-","WHITE STAR","BULGARIE","Lara Europe Analyses"]
["Y7 154","01/08/2007","Morilles","SURGELE","-","-","CHENGDU MINJIANG","CHINE","Lara Europe Analyses"]
["Y7 162","07/01/2008","Luteus","SURGELE","-","-","FRUTTICOLA","CHILI","Lara Europe Analyses"]
["Y7 438","07/01/2008","Girolles","SURGELE","-","-","BONDIMEX","SERBIE","Lara Europe Analyses"]
["Y8 076","07/05/2008","Ch. de Paris","SURGELE","-","-","ZHEJIANG ZHONGDA","CHINE","Larebron"]
["Y7 451","07/05/2008","Pholiotes","SURGELE","-","-","FORTUNE FOODS","CHINE","Larebron"]
["Y8 035","07/05/2008","Shiitakés",{"$f":"\"SURGELE\"","v":"SURGELE"},"-","-","ITOHWEN","CHINE","Larebron"]
["Y7 612","07/05/2008","Pleurotes","SURGELE","-","-","FORTUNE FOODS","CHINE","Larebron"]
["Y7 586","07/05/2008","Ch. Noirs blanchis","SURGELE","-","-","ZHEJIANG ZHONGDA","CHINE","Larebron"]
["Y7 456","07/05/2008","Pholiotes","SURGELE","-","-","FORTUNE FOODS","CHINE","Larebron"]
["Y7 267","07/05/2008","Luteus","SURGELE","-","-","COPRAMAR","CHILI","Larebron"]
["Y8 061","07/05/2008","Cèpes","SURGELE","-","-","SICHUAN QUALITY","CHINE","Larebron"]
["Y7 372","18/03/2008","Girolles","SURGELE","-","-","DANEX","POLOGNE","Larebron"]
["Y8 359","24/09/2008","Girolles","SURGELE","-","-","DANEX","BIELORUSSIE","Larebron"]
["Y8 178","02/09/2008","Morilles","SURGELE","-","-","CHENGDU MINJIANG","CHINE","Larebron"]
["Y8 087","05/09/2008","Shiitakés","SURGELE","-","-","FORTUNE FOODS","CHINE","Larebron"]
["Y8 115","27/05/2008","Ch. de Paris","SURGELE","-","-","CHAMPILOIRE","HOLLANDE","Larebron"]
["Y8 436","06/07/2009","Shiitakés","SURGELE","-","-","FORTUNE FOODS","CHINE","Larebron"]
["Y8 488","06/07/2009","Pleurotes","SURGELE","-","-","FORTUNE FOODS","CHINE","Larebron"]
["Y8 658","06/07/2009","Ch. Noirs blanchis","SURGELE","-","-","ZHEJIANG ZHONGDA","CHINE","Larebron"]
["Y8 431","06/07/2009","Pholiotes","SURGELE","-","-","FORTUNE FOODS","CHINE","Larebron"]
["Y8 541","06/07/2009","Cèpes","SURGELE","-","-","SICHUAN QUALITY","CHINE","Larebron"]
["Y8 279","06/07/2009","Luteus","SURGELE","-","-","FRUTTICOLA","CHILI","Larebron"]
["Y9 074","06/07/2009","Girolles","SURGELE","-","-","DANEX","BIELORUSSIE","Larebron"]
["Y9 133","27/11/2009","Morilles","SURGELE","-","-","SICHUAN QUALITY","CHINE","Larebron"]
["A0 009","06/08/2010","Bolets bais","SURGELE","-","-","POLKO","POLOGNE","Wessling"]
["A0 049","06/08/2010","Cèpes","SURGELE","-","-","KSENOS","BULGARIE","Wessling"]
["Y9 539","06/08/2010","Ch. Noirs blanchis","SURGELE","-","-","ZHEJIANG ZHONGDA","CHINE","Wessling"]
["A0 431","16/12/2010","Ch. de Paris","SURGELE","-","-","CHAMPIMER","HOLLANDE","Wessling"]
["A0 235","16/12/2010","Girolles","SURGELE","-","-","RODOPI","BULGARIE","Wessling"]
["A0 187","06/08/2010","Morilles","SURGELE","-","-","MIRKA","TURQUIE","Wessling"]
["A0 272","21/09/2010","Mousserons","SURGELE","-","-","RODOPI","BULGARIE","Wessling"]
["A0 144","06/08/2010","Pholiotes","SURGELE","-","-","FORTUNE FOODS","CHINE","Wessling"]
["Y9 403","06/08/2010","Pleurotes","SURGELE","-","-","BAODING","CHINE","Wessling"]
["A0 091","06/08/2010","Shiitakés","SURGELE","-","-","FORTUNE FOODS","CHINE","Wessling"]
["A0 483","25/01/2011","Trompettes","SURGELE","-","-","RODOPI","BULGARIE","Wessling"]
["A0 120","24/05/2011","Shiitakés","SURGELE","-","-","BAODING","CHINE","Wessling"]
["A1 057","24/05/2011","Mousserons","SURGELE","-","-","KONSTANTIN","BULGARIE","Wessling"]
["A1 080","24/05/2011","Shiitakés","SURGELE","-","-","BAODING","CHINE","Wessling"]
["A1 081","24/05/2011","Ch. Noirs blanchis","SURGELE","-","-","PIMENT VERT","CHINE","Wessling"]
["A0 299","24/05/2011","Luteus","SURGELE","-","-","LAS TINAJAS","CHILI","Wessling"]
["A0 559","04/07/2011","Cèpes","SURGELE","-","-","SICHUAN QUALITY","CHINE","Wessling"]
["A1 168","04/07/2011","Morilles","SURGELE","-","-","MIRKA","TURQUIE","Wessling"]
["A1 131","04/07/2011","Pholiotes","SURGELE","-","-","FORTUNE FOODS","CHINE","Wessling"]
["A0 477","04/07/2011","Pleurotes","SURGELE","-","-","BAODING","CHINE","Wessling"]
["A1 095","04/07/2011","Ch. de Paris","SURGELE","-","-","CHAMPILOIRE","France","Wessling"]
["A1 293","30/09/2011","Girolles","SURGELE","-","-","BWF","BIELORUSSIE","Wessling"]
["A1 278","30/09/2011","Morilles","SURGELE","-","-","SICHUAN QUALITY","CHINE","Wessling"]
["A1 164","18/10/2011","Ch. de Paris","SURGELE","-","-","CHAMPIMER","HOLLANDE","Wessling"]
["A1 350","18/10/2011","Trompettes","SURGELE","-","-","CIE PRODUITS SAUVAGES","CROATIE","Wessling"]
["A1 420","14/12/2011","Bolets bais","SURGELE","-","-","BONDIMEX","POLOGNE","Wessling"]
["A1 503","11/01/2012","Lactaires","SURGELE","-","-","IMPEX","CHILI","Wessling"]
["A1 464","11/01/2012","Girolles","SURGELE","-","-","DANEX","POLOGNE","Wessling"]
["A1 471","11/01/2012","Girolles","SURGELE","-","-","POLKO","UKRAINE","Wessling"]
["A2 113","25/05/2012","Pholiotes","SURGELE","-","-","FORTUNE FOODS","CHINE","Wessling"]
["A2 136","25/05/2012","Morilles","SURGELE","-","-","PAKYUREK","TURQUIE","Wessling"]
["A2 034","25/05/2012","Pleurotes","SURGELE","-","-","FORTUNE FOODS","CHINE","Wessling"]
["A2 025","20/06/2012","Shiitakés","SURGELE","-","-","FORTUNE FOODS","CHINE","Wessling"]
["A2 176","20/06/2012","Ch. de Paris","SURGELE","-","-","NORIS","POLOGNE","Wessling"]
["A2 285","24/08/2012","Morilles","SURGELE","-","-","SICHUAN QUALITY","CHINE","Wessling"]
["A2 204","24/08/2012","Luteus","SURGELE","-","-","COPRAMAR","CHILI","Wessling"]
["A2 261","16/10/2012","Girolles","SURGELE","-","-","NORIS","POLOGNE","Wessling"]
["A2 245","06/12/2012","Cèpes","SURGELE","-","-","KDY","CHINE","Wessling"]
["A2 164","06/12/2012","Cèpes","SURGELE","-","-","FORTUNE FOODS","CHINE","Wessling"]
["A2 411","06/12/2012","Bolets bais","SURGELE","-","-","DANEX","POLOGNE","Wessling"]
["A2 353","07/12/2012","Cèpes","SURGELE","-","-","TZL","CHINE","Wessling"]
["A2 047","07/12/2012","Shiitakés","SURGELE","-","-","BAODING","CHINE","Wessling"]
["A2 479","05/02/2013","Lactaires","SURGELE","-","-","BEKTAS","TURQUIE","Wessling"]
["A2 372","05/02/2013","Cèpes","SURGELE","-","-","FORTUNE FOODS","CHINE","Wessling"]
["A2 250","05/02/2013","Mousserons","SURGELE","-","-","AGRIKA","BULGARIE","Wessling"]
["A2 028","06/02/2013","Shiitakés",{"$f":"\"SURGELE\"","v":"SURGELE"},"-","-","FORTUNE FOODS","CHINE","Wessling"]
["S12327001","06/02/2013","Trompettes","SURGELE","-","-","CHAMPILAND","BOSNIE","Wessling"]
["A2 474","20/02/2013","Cèpes","SURGELE","-","-","FORTUNE FOODS","CHINE","Wessling"]
["A2 468","17/05/2013","Shiitakés","SURGELE","-","-","BAODING","CHINE","Wessling"]
["S13101001","02/08/2013","Shiitakés","SURGELE","-","-","CHAMPILAND","France","Wessling"]
["A3 018","02/08/2013","Ch. de Paris","SURGELE","-","-","CHAMPIMER","HOLLANDE","Wessling"]
["A3 106","02/08/2013","Ch. de Paris","SURGELE","-","-","NORIS","POLOGNE","Wessling"]
["A3 052","02/08/2013","Morilles","SURGELE","-","-","Compagnie des produits SAUVAGE","TURQUIE","Wessling"]
["A3 031","18/10/2013","Shiitakés","SURGELE","-","-","BAODING","CHINE","Wessling"]
["A2 462","04/10/2013","Pleurotes","SURGELE","-","-","FORTUNE FOODS","CHINE","Wessling"]
["A3 021","04/10/2013","Shiitakés","SURGELE","-","-","BAODING","CHINE","Wessling"]
["A3 066","04/10/2013","Luteus","SURGELE","-","-","COPRAMAR","CHILI","Wessling"]
["A3 170","04/10/2013","Ch. de Paris","SURGELE","-","-","NORIS","POLOGNE","Wessling"]
["A3 117","04/10/2013","Pholiotes","SURGELE","-","-","FORTUNE FOODS","CHINE","Wessling"]
["S13226002","04/10/2013","Girolles","SURGELE","-","-","FORNAX/CLD","BIELORUSSIE","Wessling"]
["A3 210","18/10/2013","Cèpes","SURGELE","-","-","LIJIANG ZHONGYUAN ","CHINE","Wessling"]
["A3 272","18/10/2013","Cèpes","SURGELE","-","-","EMILIAN FUNGHI","ROUMANIE","Wessling"]
["A3 346","29/11/2013","Lactaires","SURGELE","-","-","EXTRAFUNGHI","MACEDOINE","Wessling"]
["A3 256","29/11/2013","Ch. de Paris","SURGELE","-","-","CHAMPIMER","HOLLANDE","Wessling"]
["A3 294","29/11/2013","Bolets bais","SURGELE","-","-","BONDIMEX","POLOGNE","Wessling"]
["A3 323","19/12/2013","Morilles","SURGELE","-","-","KDY","CHINE","Wessling"]
["A3 394","19/12/2013","Trompettes","SURGELE","-","-","Compagnie des produits SAUVAGE","BOSNIE","Wessling"]
["A3 393","19/12/2013","Mousserons","SURGELE","-","-","Compagnie des produits SAUVAGE","BULGARIE","Wessling"]
["A3 280","19/12/2013","Ch. Noirs blanchis","SURGELE","-","-","FORTUNE FOODS","CHINE","Wessling"]
["A3 385","04/02/2014","Shiitakés","SURGELE","-","-","FORTUNE FOODS","CHINE","Sino Analytica"]
["A3 329","03/04/2014","Shiitakés","SURGELE","-","-","FORTUNE FOODS","CHINE","Eurofins"]
["A4 024","04/12/2013","Shiitakés","SURGELE","-","-","FORTUNE FOODS","CHINE","Sino Analytica"]
["A4 026","18/03/2013","Shiitakés","SURGELE","-","-","FORTUNE FOODS","CHINE","-"]
["A4 026","20/05/2014","Shiitakés","SURGELE","-","-","FORTUNE FOODS","CHINE","Wessling"]
["A4 073","16/12/2013","Shiitakés","SURGELE","-","-","FORTUNE FOODS","CHINE","Sino Analytica"]
["A3338","31/12/2013","Pholiotes","SURGELE","-","-","FORTUNE FOODS","CHINE","Sino Analytica"]
["A4045","09/04/2014","Pleurotes","SURGELE","-","-","FORTUNE FOODS","CHINE","Sino Analytica"]
["A3386","26/01/2014","Pholiotes","SURGELE","-","-","FORTUNE FOODS","CHINE","Eurofins"]
["A4116","05/05/2014","Pleurotes","SURGELE","-","-","FORTUNE FOODS","CHINE","Sino Analytica"]
["A4096","22/04/2014","Pleurotes","SURGELE","-","-","FORTUNE FOODS","CHINE","Sino Analytica"]
["A4101","04/11/2013","Shiitakés","SURGELE","-","-","FORTUNE FOODS","CHINE","Sino Analytica"]
["A4147","07/08/2014","Cèpes","SURGELE","-","-","LIJIANG ZHONGYUAN ","CHINE","Eurofins"]
["S14202001","07/08/2014","Girolles","SURGELE","-","-","CLD/AGROETALON","UKRAINE","Eurofins"]
["A4149","07/08/2014","Morilles","SURGELE","-","-","LIJIANG ZHONGYUAN ","CHINE","Eurofins"]
["A4141","07/08/2014","Morilles","SURGELE","-","-","CALISKAN","TURQUIE","Eurofins"]
["A4102","07/08/2014","Pholiotes","SURGELE","-","-","FORTUNE FOODS","CHINE","Eurofins"]
["A4041","07/08/2014","Pleurotes","SURGELE","-","-","BAODING","CHINE","Eurofins"]
["A4116","07/08/2014","Pleurotes","SURGELE","-","-","FORTUNE FOODS","CHINE","Eurofins"]
["A4069","07/08/2014","Shiitakés","SURGELE","-","-","BAODING","CHINE","Eurofins"]
["A4093","07/08/2014","Shiitakés","SURGELE","-","-","FORTUNE FOODS","CHINE","Eurofins"]
["A4145","07/08/2014","Cèpes","SURGELE","-","-","CALISKAN","TURQUIE","Eurofins"]
["A4061","05/07/2014","Pleurotes","SURGELE","-","-","FORTUNE FOODS","CHINE","Sino Analytica"]
["A4049","21/01/2014","Pleurotes","SURGELE","-","-","FORTUNE FOODS","CHINE","Sino Analytica"]
["A4161","25/06/2014","Luteus","SURGELE","-","-","KESCO","CHILI","Andes Control"]
["A4361","11/10/2014","Cèpes","SURGELE","-","-","STAR TRADE","CHINE","Sino Analytica"]
["A4375","03/03/2014","Ch. Noirs blanchis","SURGELE","-","-","FORTUNE FOODS","CHINE","Sino Analytica"]
["A4050","25/12/2013","Pleurotes","SURGELE","-","-","FORTUNE FOODS","CHINE","Sino Analytica"]
["A4265","04/11/2014","Cèpes","SURGELE","-","-","FORTUNE FOODS","CHINE","Eurofins"]
["A4003","04/11/2014","Girolles","SURGELE","-","-","SICHUAN QUALITY","CHINE","Eurofins"]
["A4105","04/11/2014","Pholiotes","SURGELE","-","-","FORTUNE FOODS","CHINE","Eurofins"]
["A4313","04/11/2014","Ch. de Paris","SURGELE","-","-","NORIS","POLOGNE","Eurofins"]
["A4292","04/11/2014","Ch. de Paris","SURGELE","-","-","CHAMPIMER","HOLLANDE","Eurofins"]
["A4120","04/11/2014","Mousserons","SURGELE","-","-","EXTRAFUNGHI","MACEDOINE","Eurofins"]
["S14246001","04/11/2014","Trompettes","SURGELE","-","-","GOBAN/CLD","BOSNIE","Eurofins"]
["A4158","04/11/2014","Luteus","SURGELE","-","-","KESCO","CHILI","Eurofins"]
["A4185","04/11/2014","Lactaires","SURGELE","-","-","KSENOS","MACEDOINE","Eurofins"]
["A4133","04/11/2014","Cèpes","SURGELE","-","-","SICHUAN QUALITY","CHINE","Eurofins"]
["A4360","01/09/2014","Cèpes","SURGELE","-","-","FORTUNE FOODS","CHINE","Sino Analytica"]
["A4177","01/07/2014","Luteus","SURGELE","-","-","KESCO","CHILI","Andes Control"]
["A4306","24/11/2014","Cèpes",{"$f":"\"SURGELE\"","v":"SURGELE"},"-","-","CHUXIONG HONGGUI GREEN FOOD","CHINE","Eurofins"]
["A4300","18/12/2014","Morilles","SURGELE","-","-","BF COMERCIO","CHILI","Eurofins"]
["A4375","18/12/2014","Ch. Noirs blanchis","SURGELE","-","-","FORTUNE FOODS","CHINE","Eurofins"]
["A4384","11/12/2014","Cèpes","SURGELE","-","-","EMILIAN FUNGHI","ROUMANIE","Phytocontrol"]
["A4058","28/01/2015","Shiitakés","SURGELE","-","-","FORTUNE FOODS","CHINE","Eurofins"]
["A4428","28/01/2015","Bolets bais","SURGELE","-","-","POLKO","POLOGNE","Eurofins"]
["A4442","12/11/2014","Shiitakés","SURGELE","-","-","FORTUNE FOODS","CHINE","Sino Analytica"]
["A4442","11/03/2015","Shiitakés","SURGELE","-","-","FORTUNE FOODS","CHINE","Eurofins"]
["A5021","05/08/2015","Pleurotes","SURGELE","-","-","FORTUNE FOODS","CHINE","Eurofins"]
["A5026","05/08/2015","Shiitakés","SURGELE","-","-","FORTUNE FOODS","CHINE","Eurofins"]
["A5019","27/01/2015","Pleurotes","SURGELE","-","-","FORTUNE FOODS","CHINE","Sino Analytica"]
["A5128","28/07/2015","Luteus","SURGELE","-","-","KESCO","CHILI","Quality Control"]
["A5020","22/04/2015","Pleurotes","SURGELE","-","-","FORTUNE FOODS","CHINE","Sino Analytica"]
["A5026","30/10/2014","Shiitakés","SURGELE","-","-","FORTUNE FOODS","CHINE","Sino Analytica"]
["A4161","30/06/2014","Luteus","SURGELE","-","-","KESCO","CHILI","Andes Control"]
["A5022-A5204","30/12/2014","Pleurotes","SURGELE","-","-","FORTUNE FOODS","CHINE","Sino Analytica"]
["A4419B","22/10/2014","Pholiotes","SURGELE","-","-","FORTUNE FOODS","CHINE","Sino Analytica"]
["A5150","14/08/2015","Ch. Noirs blanchis","SURGELE","-","-","FORTUNE FOODS","CHINE","Sino Analytica"]
["A5144","29/07/2015","Shiitakés","SURGELE","-","-","FORTUNE FOODS","CHINE","Sino Analytica"]
["A4418-AA20","10/11/2014","Pholiotes","SURGELE","-","-","FORTUNE FOODS","CHINE","Sino Analytica"]
["A5027-A5081-A5082-A5083-A5127","04/07/2014","Shiitakés","SURGELE","-","-","FORTUNE FOODS","CHINE","Eurofins"]
["A5041","19/06/2015","Pleurotes","SURGELE","-","-","FORTUNE FOODS","CHINE","Sino Analytica"]
["A5125","24/09/2015","Luteus","SURGELE","-","-","AGROINDUSTRIA","CHILI","Eurofins"]
["A5170","14/10/2015","Bolets bais","SURGELE","-","-","GARVILE","LITUANIE","Eurofins"]
["A5141","14/10/2015","Ch. de Paris","SURGELE","-","-","CHAMPIMER","HOLLANDE","Eurofins"]
["A5067","14/10/2015","Morilles","SURGELE","-","-","CALISKAN","TURQUIE","Eurofins"]
["A5000","14/10/2015","Pholiotes","SURGELE","-","-","SINOCHEM","CHINE","Eurofins"]
["A5133","04/08/2015","Luteus","SURGELE","-","-","KESCO","CHILI","Quality Control"]
["A5150","15/10/2015","Ch. Noirs blanchis","SURGELE","-","-","FORTUNE FOODS","CHINE","Eurofins"]
["A5019","26/11/2015","Pleurotes","SURGELE","-","-","FORTUNE FOODS","CHINE","Eurofins"]
["A5151","13/08/2015","Champignons noirs","SURGELE","-","-","FORTUNE FOODS","CHINE","Sino Analytica"]
["A5135","31/07/2015","Luteus","SURGELE","-","-","KESCO","CHILI","Universidad de Talca"]
["A5219","12/10/2015","Cèpes","SURGELE","-","-","PINWEI","CHINE","-"]
["A5146-A5029","04/08/2015","Shiitakés","SURGELE","-","-","FORTUNE FOODS","CHINE","Sino Analytica"]
["A5006","13/11/2015","Pleurotes","SURGELE","-","-","BAODING","CHINE","Eurofins"]
["A5174","13/11/2015","Girolles Blanchies","SURGELE","-","-","BONDIMEX","POLOGNE","Eurofins"]
["A5143","23/11/2015","Champignons de Paris","SURGELE","-","-","NORIS","POLOGNE","Eurofins"]
["A5024","14/01/2015","Pleurotes","SURGELE","-","-","FORTUNE FOODS","CHINE","Sino Analytica"]
["A5249","17/11/2015","Shiitakés","SURGELE","-","-","FORTUNE FOODS","CHINE","Sino Analytica"]
["A5248-A5270-A5293","17/11/2016","Pleurotes","SURGELE","-","-","FORTUNE FOODS","CHINE","Sino Analytica"]
["A5084","18/11/2015","Cèpes","SURGELE","-","-","LIJIANG ZHONGYUAN ","CHINE","Eurofins"]
["A5183","19/11/2015","Girolles Blanchies","SURGELE","-","-","KASOL","RUSSIE","Eurofins"]
["A5200","26/11/2015","Cèpes","SURGELE","-","-","SICHUAN QUALITY","CHINE","Eurofins"]
["A5202","26/11/2015","Girolles","SURGELE","-","-","SICHUAN QUALITY","CHINE","Eurofins"]
["A5273","23/12/2015","Cèpes","SURGELE","-","-","BOSCOMAR","ROUMANIE","Eurofins"]
["A6004","13/01/2016","Pleurotes","SURGELE","-","-","FORTUNE FOODS","CHINE","Sino Analytica"]
["A5292","20/11/2015","Pleurotes","SURGELE","-","-","FORTUNE FOODS","CHINE","Sino Analytica"]
["A5038","30/03/2015","Shiitakés","SURGELE","-","-","FORTUNE FOODS","CHINE","Sino Analytica"]
["A5187","14/01/2016","Lactaires","SURGELE","-","-","NORIS","POLOGNE","Eurofins"]
["A4419B","14/01/2016","Pholiotes","SURGELE","-","-","FORTUNE FOODS","CHINE","Eurofins"]
["A5223","14/01/2016","Cèpes","SURGELE","-","-","PINWEI","CHINE","Eurofins"]
["A5275","12/11/2015","Pholiotes","SURGELE","-","-","FORTUNE FOODS","CHINE","Sino Analytica"]
["A5290","18/11/2015","Shiitakés","SURGELE","-","-","FORTUNE FOODS","CHINE","Sino Analytica"]
["S16048001","24/03/2016","Girolles Blanchies","SURGELE","-","-","STOCK","RUSSIE","Eurofins"]
["A5182","25/03/2016","Girolles Blanchies","SURGELE","-","-","KASOL","RUSSIE","Eurofins"]

{"sheet":"Comparaison","index":2,"n_rows":795,"n_cols":5,"rows_kept":795,"cut":false,"hidden":false,"merged":[]}
["Molécules (total)","Choix du laboratoire:",null,null,"RESULTATS"]
["1,1-dichloro-2,2-bis(4-éthylphényl)éthane","Eurofins",null,"N° lot","A5182"]
["1,2-dibrométhane (dibromure d´éthylène) ",null,null,"Date",{"$f":"IFERROR(INDEX(Labo!B$2:B$3993,MATCH(Comparaison!$E$2,Labo!$A$2:$A$3993,0)),\"\")","v":"25/03/2016"}]
["1,2-dichloroéthane (dichlorure d´éthlène) ",null,null,"Champignons",{"$f":"IFERROR(INDEX(Labo!C$2:C$3993,MATCH(Comparaison!$E$2,Labo!$A$2:$A$3993,0)),\"\")","v":"Girolles Blanchies"}]
["1,3-Dichloropropène",null,null,"SEC/REHYDRATE/SURGELE",{"$f":"IFERROR(INDEX(Labo!D$2:D$3993,MATCH(Comparaison!$E$2,Labo!$A$2:$A$3993,0)),\"\")","v":"SURGELE"}]
["1-Méthylcyclopropène",null,null,"MP/PF",{"$f":"IFERROR(INDEX(Labo!E$2:E$3993,MATCH(Comparaison!$E$2,Labo!$A$2:$A$3993,0)),\"\")","v":"-"}]
["2,4,5-T ",null,null,"Récolte",{"$f":"IFERROR(INDEX(Labo!F$2:F$3993,MATCH(Comparaison!$E$2,Labo!$A$2:$A$3993,0)),\"\")","v":"-"}]
["2,4-D",null,null,"Fournisseur",{"$f":"IFERROR(INDEX(Labo!G$2:G$3993,MATCH(Comparaison!$E$2,Labo!$A$2:$A$3993,0)),\"\")","v":"KASOL"}]
["2,4-DB",null,null,"Origine",{"$f":"IFERROR(INDEX(Labo!H$2:H$3993,MATCH(Comparaison!$E$2,Labo!$A$2:$A$3993,0)),\"\")","v":"RUSSIE"}]
["2,4-DP ",null,null,"Laboratoire",{"$f":"IFERROR(INDEX(Labo!I$2:I$3993,MATCH(Comparaison!$E$2,Labo!$A$2:$A$3993,0)),\"\")","v":"Eurofins"}]
["2,4'-Formoxylidid",null,null,"Abamectine",0.01]
["2,4-MCPA",null,null,"4,4-Dibromobenzophénone",0.04]
["2,4-MCPB",null,null,"4-CPA (Acide 4-ChlorophenoxyAcetique)",0.5]
["2,6-Dichlorobenzamide",null,null,"Acequinocyl",0.5]
["2-Phénylphénol",null,null,"2,4-D"]
["3-Hydroxycarbofurane",null,null,"6-Benzyladenine","0"]
["4,4-Dibromobenzophénone",null,null,"Acetamipride",6]
["4-CPA (Acide 4-ChlorophenoxyAcetique)",null,null,"Acetochlor",2]
["6-Benzyladenine",null,null,"2,4,5-T ",4]
["8-hydroxyquinoline ",null,null,"2,4-D",5]
["Abamectine"]
["Acephate"]
["Acequinocyl"]
["Acetamipride"]
["Acetochlor"]
["Acibenzolar-s-methyl"]
["Acide (2-naphtyloxy)acétique"]
["Acide naphtylacétique"]
["Acifluorfen"]
["Aclonifen"]
["Acrinathrine"]
["Alachlor"]
["Alanycarb"]
["Aldicarb sulfone"]
["Aldicarb sulfoxyde"]
["Aldicarbe"]
["Aldrin"]
["Aldrin/ Dieldrin (somme)"]
["Alléthrine "]
["Ametoctradin"]
["Ametryne"]
["Amidosulfuron "]
["Aminocarbe"]
["Aminopyralide"]
["Amisulbrone"]
["Amitraze"]
["Amitrole"]
["Anilazine"]
["Anilofos"]
["Anthraquinone "]
["Aramite "]
["Asulam"]
["Atrazine "]
["Atrazine déisopropyl"]
["Atrazine-desethyl"]
["Avermectine B1a"]
["Avermectine B1b"]
["Azaconazole"]
["Azadirachtine"]
["Azamethiphos"]
["Azimsulfuron"]
["Azocyclotin"]
["Azoxystrobine"]
["Azynphos-ethyl "]
["Azynphos-methyl"]
["Barbane"]
["Beflubutamid"]
["Benalaxyl"]
["Bendiocarb"]
["Benfluraline"]
["Benfuracarb"]
["Benodanil"]
["Benoxacor"]
["Bensulfuron-methyl"]
["Bensulide"]
["Bentazone"]
["Benthiavalicarb-isopropyl"]
["Benzoximate"]
["Benzoylprop-ethyl"]
["Beta-endosulfan"]
["Bifenazat"]
["Bifenox "]
["Bifenthrine "]
["Binapacryl "]
["Biphényl"]
["Bitertanol"]
["Bixafen"]
["Boscalide"]
["Bromfenvinphos"]
["Bromocyclen"]
["Bromophos"]
["Bromophos-éthyl"]
["Bromopropylate"]
["Bromoxynil"]
["Bromuconazole (somme)"]
["BTS 27271 "]
["BTS 44595"]
["BTS 44596"]
["Bupirimate"]
["Buprofezine"]
["Butachlore"]
["Butafenacile"]
["Butocarboxim sulfoxide"]
["Butoxycarboxim"]
["Butoxyde de Pipéronyl"]
["Butraline"]
["Buturon"]
["Butylate"]
["Cadusafos"]
["Camphechlore"]
["Captafol "]
["Captan"]
["Carbaryl "]
["Carbendazime"]
["Carbendazime (MBC) et benomyl"]
["Carbendazime D4"]
["Carbétamide"]
["Carbofurane"]
["Carbophenothion"]
["Carbophenothion-methyl"]
["Carbosulfan"]
["Carboxine"]
["Carfentrazone-ethyl"]
["Carpropamide"]
["Cation triméthylsulfonium"]
["Chinomethionat"]
["Chlorantraniliprole"]
["Chlorbenside "]
["Chlorbromuron"]
["Chlorbufam"]
["Chlordane (somme)"]
["Chlordane alpha"]
["Chlordane alpha "]
["Chlordane gamma"]
["Chlordécone "]
["Chlordimeform"]
["Chlorfenapyr"]
["Chlorfenprop-methyl"]
["Chlorfenson "]
["Chlorfenvinphos"]
["Chlorfluazuron"]
["Chlorflurenol"]
["Chloridazon "]
["Chlormephos"]
["Chlormequat"]
["Chlorobenzilate"]
["Chloroneb"]
["Chloropicrine"]
["Chloropropylate"]
["Chlorothalonil"]
["Chlorotoluron"]
["Chloroxuron"]
["Chlorpropham"]
["Chlorpyrifos"]
["Chlorpyrifos-ethyl"]
["Chlorpyrifos-methyl"]
["Chlorsulfuron"]
["Chlorthal diméthyle"]
["Chlorthiamide"]
["Chlorthion"]
["Chlorthiophos"]
["Chlorure de benzalkonium"]
["Chlorure de didécyldiméthylammonium "]
["Chlozolinate"]
["Chromafenoziod"]
["Cinidon-éthyle"]
["Cinosulfuron"]
["Clefoxydim"]
["Clethodim"]
["Clethodim/Sethoxydim (Somme)"]
["Climbazole"]
["Clodinafop-propargyl"]
["Clofentézine"]
["Clomazone"]
["Clomeprop"]
["Cloprop"]
["Clopyralid"]
["Cloquintocet-mexyl"]
["Clothianidin"]
["Clothianidin/Thiamethoxam (total)"]
["Composés du cuivre "]
["Composés du mercure"]
["Coumaphos"]
["Crimidine"]
["Crotoxyphos"]
["Crufomat"]
["Cyanamide"]
["Cyanazine"]
["Cyanofenphos"]
["Cyanophos"]
["Cyazofamide"]
["Cyclanilide "]
["Cycloate"]
["Cycloxydime"]
["Cyflufenamide"]
["Cyfluthrine"]
["Cyhalofop-butyl"]
["Cyhexatin"]
["Cyhexatin/Azocyclotin (Somme)"]
["Cymoxanil"]
["Cypermethrine"]
["Cyphenothrine"]
["Cyproconazole"]
["Cyprodinile"]
["Cyromazine"]
["Dalapon"]
["Daminozide "]
["Dazomet"]
["DDD o,p-"]
["DDD p,p-"]
["DDE o,p-"]
["DDE p,p-"]
["DDT (somme)"]
["DDT o,p-"]
["DDT p,p-"]
["DEET "]
["Deltamethrine"]
["Demeton-O"]
["Demeton-s-methyl"]
["Demeton-s-methyl-sulfone"]
["Demeton-s-methyl-sulfoxyde"]
["Desethyl-terbutylazine"]
["Desmedipham"]
["Desmetryne"]
["Desthio-prothioconazole"]
["Diafenthiuron"]
["Dialifos"]
["Diallat"]
["Diazinon"]
["Dibrom"]
["Dicamba"]
["Dicapthon"]
["Dichlobenil"]
["Dichlofenthion"]
["Dichlofluanide"]
["Dichlormid"]
["Dichlorobenzophenone"]
["Dichlorprop"]
["Dichlorvos"]
["Diclobutrazole"]
["Diclofop "]
["Dicloran"]
["Dicofol (somme)"]
["Dicrotophos"]
["Dieldrine"]
["Diethofencarbe"]
["Difénamide"]
["Difénoconazole"]
["Difénoxuron"]
["Diflubenzuron"]
["Diflufenicanil"]
["Dimefox"]
["Dimefuron"]
["Dimepiperate"]
["Dimethachlor"]
["Diméthénamide"]
["Dimethipin"]
["Dimethoate"]
["Dimethomorphe"]
["Dimetilan"]
["Dimoxystrobine"]
["Diniconazole"]
["Dinocap"]
["Dinoseb"]
["Dinotefuran"]
["Dinoterb"]
["Dioxacarb"]
["Dioxathion"]
["Diphenylamine"]
["Diquat"]
["Disulfoton (somme)"]
["Disulfoton sulfone"]
["Disulfoton sulfoxyde"]
["Ditalimfos"]
["Dithianon"]
["Dithiocarbamates "]
["Diuron"]
["Diuron D6"]
["DMSA"]
["DMST"]
["DNOC"]
["Dodemorph"]
["Dodine"]
["Edifenphos"]
["Emamectine"]
["Emamectine B1a"]
["Emamectine B1b"]
["Endosulfane"]
["Endosulfane alpha"]
["Endosulfane beta"]
["Endosulfane sulfate"]
["Endrin"]
["Endrinaldehyd"]
["Endrin-Keton"]
["EPN"]
["Epoxiconazole"]
["EPTC"]
["Etaconazole"]
["Éthalfluraline"]
["Éthametsulfurone-méthyle"]
["Ethéphon"]
["Ethiofencarbe"]
["Ethiofencarb-sulfone"]
["Ethiofencarb-sulfoxyde"]
["Ethion"]
["Ethiprol"]
["Ethirimol"]
["Ethofenprox"]
["Ethofumesate"]
["Ethoprophos"]
["Ethoxyquin"]
["Ethoxysulfuron"]
["Ethylchlozate"]
["Etoxazole"]
["Etridiazole"]
["Etrimphos"]
["Famoxadone"]
["Famphur"]
["Fenamidone"]
["Fenamiphos"]
["Fenamiphos-sulfone"]
["Fenamiphos-sulfoxyde"]
["Fenarimol"]
["Fenazaquine"]
["Fenbuconazole"]
["Fenbutatin oxide"]
["Fenchlorazol-ethyl"]
["Fenchlorphos"]
["Fenchlorphos (somme)"]
["Fenfuram"]
["Fenhexamid"]
["Fenitrothion"]
["Fenobucarb"]
["Fenoprop"]
["Fenoxaprop-P"]
["Fenoxycarb"]
["Fenpiclonil"]
["Fenpropathrin"]
["Fenpropidin"]
["Fenpropimorph"]
["Fenpyrazamine"]
["Fenpyroximate"]
["Fenson"]
["Fensulfothion"]
["Fenthion"]
["Fenthion (somme)"]
["Fenthion-oxone"]
["Fenthion-PO-sulfoxid"]
["Fenthion-PS-sulfoxid"]
["Fentin"]
["Fentine acétate"]
["Fention-PO-sulfon"]
["Fention-PS-sulfon"]
["Fenuron"]
["Fenvalerate "]
["Fenvalerate (RR-/SS-Isomere)"]
["Fenvalerate (RS-/SR-Isomere)"]
["Fipronil"]
["Fipronil (somme)"]
["Fipronil sulfite"]
["Fipronil sulfon"]
["Flamprop-isopropyl"]
["Flamprop-méthyl"]
["Flazasulfuron"]
["Flonicamid (total)"]
["Flonicamide"]
["Florasulam"]
["Fluazifop (somme)"]
["Fluazifop-P"]
["Fluazifop-P-butyle"]
["Fluaziname"]
["Fluazolate"]
["Fluazuron"]
["Flubendiamide"]
["Fluchloralin"]
["Flucycloxuron"]
["Flucythrinate"]
["Fludioxonil"]
["Flufenacet"]
["Flufenoxuron"]
["Flufenzine"]
["Flumetralin"]
["Flumioxazin"]
["Fluometuron"]
["Fluopicolid"]
["Fluopyram"]
["Fluoroglycofène"]
["Fluorure de sulfuryle"]
["Fluotrimazol"]
["Fluoxastrobine"]
["Flupyrsulfuron-methyl"]
["Fluquinconazole"]
["Flurochloridone"]
["Fluroxypyr"]
["Fluroxypyr (somme)"]
["Fluroxypyr-methylheptyl"]
["Flurprimidol"]
["Flurtamone"]
["Flusilazole"]
["Fluthiacet-methyl"]
["Flutolanil"]
["Flutriafol"]
["Fluxapyroxade"]
["FM-6-1"]
["Folpet"]
["Fomesafen"]
["Fonofos"]
["Foramsulfuron"]
["Forchlorfenuron"]
["Formetanate"]
["Formothion"]
["Fosétyl-A"]
["Fosthiazate"]
["Fuberidazole"]
["Furalaxyl"]
["Furametpyre"]
["Furathiocarb"]
["Furfural"]
["Glufosinate-ammonium)"]
["Glyphosate"]
["Guazatine"]
["Halfenprox"]
["Halofenozid"]
["Halosulfuron-methyl"]
["Haloxyfop"]
["Haloxyfop-2-ethoxyethyl"]
["HCH Alpha"]
["HCH Béta"]
["HCH Delta"]
["HCH Epsilon"]
["HCH isomères (sauf lindane)"]
["HCH, gamma - Lindane"]
["Heptachlor"]
["Heptachlor (somme)"]
["Heptachlore époxide cis"]
["Heptachlore époxide trans"]
["Heptenophos"]
["Hexachlorobenzene"]
["Hexaconazole"]
["Hexaflumuron"]
["Hexazinone"]
["Hexythiazox"]
["Hydrazide maléique"]
["Hymexazol"]
["Imazalil"]
["Imazamox "]
["Imazapic"]
["Imazaquine"]
["Imazethapyr"]
["Imazosulfuron"]
["Imibenconazole"]
["Imidacloprid"]
["Imidacloprid D4"]
["Indaziflam"]
["Indoxacarbe"]
["Iodofenphos"]
["Iodosulfuron methyl"]
["Ion bromure"]
["Ion fluorure"]
["Ioxynil"]
["Ipconazole"]
["Iprobenfos"]
["Iprodione"]
["Iprovalicarb"]
["Isazophos"]
["Isocarbamid"]
["Isocarbosos"]
["Isofenphos"]
["Isofenphos-méthyl"]
["Isoprocarb"]
["Isoprothiolane"]
["Isoproturon"]
["Isopyrazam"]
["Isouron"]
["Isoxaben"]
["Isoxadifen-éthyle"]
["Isoxaflutole"]
["Isoxathion"]
["Kresoxym-methyl"]
["Lactofen"]
["Lambda-Cyhalothrin"]
["Lénacile"]
["Leptophos"]
["Linuron"]
["Lufénuron"]
["Malaoxon "]
["Malathion"]
["Malathion (somme)"]
["Mandipropamide"]
["MCPA/MCPB (somme)"]
["Mecarbam"]
["Mécoprop"]
["Mefenpyr-diéthyl"]
["Mepanipyrim"]
["Mephosfolan"]
["Mépiquat"]
["Mepronil"]
["Meptyldinocap"]
["Mésosulfuron-methyl"]
["Mésotrione"]
["Metaflumizone"]
["Metalaxyl"]
["Métaldéhyde"]
["Metamitrone"]
["Metazachlore"]
["Metconazole"]
["Methabenzthiazuron"]
["Methacrifos"]
["Methamidophos"]
["Methfuroxam"]
["Methidathion"]
["Methiocarb (somme)"]
["Methiocarb sulfone"]
["Methiocarb sulfoxyde"]
["Méthiocarbe"]
["Methomyl"]
["Méthomyl/Thiodicarbe (somme)"]
["Méthoprène"]
["Methoprotryn"]
["Méthoxychlore"]
["Methoxyfenozid"]
["Methyl Parathion"]
["Methylpentachlorphenylsulfid"]
["Metobromuron"]
["Metolachlor"]
["Metolcarb"]
["Métosulame"]
["Métoxuron"]
["Metrafenone"]
["Metribuzine"]
["Metsulfuron-methyl"]
["Mevinphos"]
["Milbectine (somme)"]
["Milbemectin A3"]
["Milbemectin A4"]
["Mirex"]
["Molinate"]
["Monocrotophos"]
["Monolinuron"]
["Monuron"]
["Myclobutanil"]
["Naphthalene Acetamide"]
["Napropamide"]
["Neburon"]
["Nicarbazine"]
["Nicosulfuron"]
["Nitenpyram"]
["Nitralin"]
["Nitrapyrine"]
["Nitrofene"]
["Nitrothal-isopropyle"]
["Norflurazon"]
["Novaluron"]
["Noviflumuron"]
["Nuarimol"]
["Ofurace"]
["Omethoate"]
["Orthosulfamuron"]
["Orysastrobine"]
["Oryzalin"]
["Oxadiargyl"]
["Oxadiazon"]
["Oxadixyl"]
["Oxamyl"]
["Oxamyl-oxime"]
["Oxasulfuron"]
["Oxaziclomefone"]
["Oxfendazole"]
["Oxycarboxine"]
["Oxyde d´éthylène"]
["Oxydemeton methyl"]
["Oxydemeton-methyl (somme)"]
["Oxyfluorfene"]
["Paclobutrazol"]
["Paraoxon"]
["Paraoxon-ethyl"]
["Paraoxon-methyl"]
["Paraquat"]
["Parathion"]
["Parathion-ethyl"]
["Parathion-methyl"]
["Parathion-methyl (somme)"]
["PCB 153"]
["Pebulate"]
["Penconazole"]
["Pencycuron"]
["Pendimethalin"]
["Penoxsulame"]
["Pentachlorbenzol"]
["Pentachloroaniline"]
["Pentachloroanisole (PCA)"]
["Penthiopyrade"]
["Permethrine"]
["Perthan"]
["Pethoxamide"]
["Phenkapton"]
["Phenmédiphane"]
["Phénothrine"]
["Phenthoate"]
["Phorate"]
["Phorate (somme)"]
["Phorate-sulfoxide"]
["Phorat-sulfon"]
["Phosalone"]
["Phosmet"]
["Phosphamidon"]
["Phosphines et phosphures"]
["Phoxime"]
["Picaridin"]
["Picloram"]
["Picolinafene"]
["Picoxystrobin"]
["Pinoxaden"]
["Pirimicarb, desmethyl-formamido-"]
["Pirimicarbe"]
["Pirimicarbe (somme)"]
["Pirimicarbe, desmethyl"]
["Pirimiphos-ethyl"]
["Pirimiphos-methyl"]
["Pirimiphos-methyl, N-Desethyl-"]
["Primisulfuron-methyl"]
["Prochloraz"]
["Procymidone"]
["Profenofos"]
["Profluralin"]
["Profoxydim"]
["Prohexadione (somme"]
["Promecarb"]
["Prométone"]
["Prométryne"]
["Propachlore"]
["Propamocarbe"]
["Propanile"]
["Propaquizafop"]
["Propargite"]
["Propazine"]
["Propétamphos"]
["Propham"]
["Propiconazole"]
["Propinèbe "]
["Propisochlore"]
["Propoxur"]
["Propoxycarbazon (somme)"]
["Propoxycarbazon-2-hydroxy"]
["Propoxycarbazone"]
["Propyzamide"]
["Proquinazid"]
["Prosulfocarbe"]
["Prosulfuron"]
["Prothioconazole"]
["Prothiophos"]
["Pymétrozine"]
["Pyraclofos"]
["Pyraclostrobine"]
["Pyraflufen-éthyl"]
["Pyrasulfotole"]
["Pyrazophos"]
["Pyréthrines (total)"]
["Pyridabène"]
["Pyridalyle"]
["Pyridaphenthion"]
["Pyridate"]
["Pyrifenox"]
["Pyrifluquinazone"]
["Pyriméthanil"]
["Pyrimidifen"]
["Pyriproxyfen"]
["Pyroxsulam"]
["Quinalphos"]
["Quinclorac"]
["Quinmerac"]
["Quinoclamine"]
["Quinoxyfen"]
["Quintozene"]
["Quintozene (somme)"]
["Quizalofop"]
["Quizalofop (somme)"]
["Quizalofop-P-ethyl"]
["Resmethrin"]
["Rimsulfuron"]
["Rotenone"]
["S 421"]
["Saflufénacil"]
["Sebuthylazine"]
["Secbumeton"]
["Sethoxydim"]
["Silafluofen"]
["Silthiofame"]
["Simazine"]
["Simeconazole"]
["Simetryne"]
["Spinetoram"]
["Spinosad"]
["Spirodiclofen"]
["Spiromesifene"]
["Spirotetramate"]
["Spirotetramate (somme)"]
["Spirotetramat-enol"]
["Spirotetramat-enolglucoside"]
["Spirotetramat-ketohydroxy"]
["Spirotetramat-monohydroxy"]
["Spiroxamine"]
["Sulcotrione"]
["Sulfentrazon"]
["Sulfosulfuron"]
["Sulfotep"]
["Sulprofos-sulfoxide"]
["Tau-fluvalinate "]
["Tébuconazole"]
["Tebufénozide"]
["Tebufenpyrad"]
["Tebuthiuron"]
["Tecnazène"]
["Teflubenzuron"]
["Tefluthrine"]
["Tembotrione "]
["Temephos"]
["TEPP"]
["Tepraloxydim"]
["Terbacile"]
["Terbufos"]
["Terbufos-sulfoxide"]
["Terbumeton"]
["Terbuthylazine"]
["Terbutryne"]
["Tetrachlorvinphos"]
["Tetraconazole"]
["Tetradifon"]
["Tetramethrine"]
["Tetrasul"]
["TFNA"]
["TFNG"]
["Thiabendazole"]
["Thiabendazole D6"]
["Thiacloprid"]
["Thiamethoxam"]
["Thifensulfuron méthyle"]
["Thiobencarb"]
["Thiocyclam"]
["Thiodicarbe"]
["Thiofanox"]
["Thiofanox-Sulfone"]
["Thiofanox-Sulfoxid"]
["Thiometon"]
["Thionazin"]
["Thiophanate-méthyl"]
["Thirame "]
["THPI "]
["Tolclofos-methyl"]
["Tolfenpyrad"]
["Tolylfluanide"]
["Tolylfluanide (somme)"]
["Topramezone "]
["Tralkoxydim"]
["Tralomethrin"]
["Transfluthrin"]
["Triadimefone"]
["Triadiménol/Triadiméfone (somme de)"]
["Triadimenole"]
["Triallate"]
["Triamiphos"]
["Triasulfuron"]
["Triazamate"]
["Triazophos"]
["Tribénuron-méthyle"]
["Tribufos"]
["Trichlorfon"]
["Trichloronat"]
["Triclopyr"]
["Tricyclazole"]
["Tridemorph"]
["Trietazin"]
["Trifloxystrobin"]
["Triflumizole"]
["Triflumizole (somme)"]
["Triflumuron"]
["Trifluralin"]
["Triflusulfuron-methyl"]
["Triforine"]
["Trimethacarb 3.4.5"]
["Trinexapac-ethyl"]
["Triphénylétain acétate "]
["Triticonazole"]
["Tritosulfuron"]
["Uniconazole"]
["Valifenalate"]
["Vamidothion"]
["Vamidothion-sulfone"]
["Vamidothion-sulfoxide"]
["Vinclozoline"]
["Warfarine"]
["XMC "]
["Xylylcarb"]
["Zirame"]
["Zoxamide"]

{"sheet":"Tableau","index":3,"n_rows":10,"n_cols":804,"rows_kept":10,"cut":false,"hidden":false,"merged":[]}
["N°lot","Date","Champignons","SEC/REHYDRATE/SURGELE","MP/PF","Récolte","Fournisseur","Origine","Laboratoire","1,1-dichloro-2,2-bis(4-éthylphényl)éthane","1,2-dibrométhane (dibromure d´éthylène) ","1,2-dichloroéthane (dichlorure d´éthlène) ","1,3-Dichloropropène","1-Méthylcyclopropène","2,4,5-T ","2,4-D","2,4-DB","2,4-DP ","2,4'-Formoxylidid","2,4-MCPA","2,4-MCPB","2,6-Dichlorobenzamide","2-Phénylphénol","3-Hydroxycarbofurane","4,4-Dibromobenzophénone","4-CPA (Acide 4-ChlorophenoxyAcetique)","6-Benzyladenine","8-hydroxyquinoline ","Abamectine","Acephate","Acequinocyl","Acetamipride","Acetochlor","Acibenzolar-s-methyl","Acide (2-naphtyloxy)acétique","Acide naphtylacétique","Acifluorfen","Aclonifen","Acrinathrine","Alachlor","Alanycarb","Aldicarb sulfone","Aldicarb sulfoxyde","Aldicarbe","Aldrin","Aldrin/ Dieldrin (somme)","Alléthrine ","Ametoctradin","Ametryne","Amidosulfuron ","Aminocarbe","Aminopyralide","Amisulbrone","Amitraz (somme)","Amitraze","Amitrole","Anilazine","Anilofos","Anthraquinone ","Aramite ","Asulam","Atrazine ","Atrazine déisopropyl","Atrazine-desethyl","Avermectine B1a","Avermectine B1b","Azaconazole","Azadirachtine","Azamethiphos","Azimsulfuron","Azocyclotin","Azoxystrobine","Azynphos-ethyl ","Azynphos-methyl","Barbane","Beflubutamid","Benalaxyl","Bendiocarb","Benfluraline","Benfuracarb","Benodanil","Benoxacor","Bensulfuron-methyl","Bensulide","Bentazone","Benthiavalicarb-isopropyl","Benzoximate","Benzoylprop-ethyl","Beta-endosulfan","Bifenazat","Bifenox ","Bifenthrine ","Binapacryl ","Biphényl","Bitertanol","Bixafen","Boscalide","Bromfenvinphos","Bromocyclen","Bromophos","Bromophos-éthyl","Bromopropylate","Bromoxynil","Bromuconazole (somme)","BTS 27271 ","BTS 44595","BTS 44596","Bupirimate","Buprofezine","Butachlore","Butafenacile","Butocarboxim sulfoxide","Butoxycarboxim","Butoxyde de Pipéronyl","Butraline","Buturon","Butylate","Cadusafos","Camphechlore","Captafol ","Captan","Carbaryl ","Carbendazime","Carbendazime (MBC) et benomyl","Carbendazime D4","Carbétamide","Carbofurane","Carbophenothion","Carbophenothion-methyl","Carbosulfan","Carboxine","Carfentrazone-ethyl","Carpropamide","Cation triméthylsulfonium","Chinomethionat","Chlorantraniliprole","Chlorbenside ","Chlorbromuron","Chlorbufam","Chlordane (somme)","Chlordane alpha","Chlordane alpha ","Chlordane gamma","Chlordécone ","Chlordimeform","Chlorfenapyr","Chlorfenprop-methyl","Chlorfenson ","Chlorfenvinphos","Chlorfluazuron","Chlorflurenol","Chloridazon ","Chlormephos","Chlormequat","Chlorobenzilate","Chloroneb","Chloropicrine","Chloropropylate","Chlorothalonil","Chlorotoluron","Chloroxuron","Chlorpropham","Chlorpyrifos","Chlorpyrifos-ethyl","Chlorpyrifos-methyl","Chlorsulfuron","Chlorthal diméthyle","Chlorthiamide","Chlorthion","Chlorthiophos","Chlorure de benzalkonium","Chlorure de didécyldiméthylammonium ","Chlozolinate","Chromafenoziod","Cinidon-éthyle","Cinosulfuron","Clefoxydim","Clethodim","Clethodim/Sethoxydim (Somme)","Climbazole","Clodinafop-propargyl","Clofentézine","Clomazone","Clomeprop","Cloprop","Clopyralid","Cloquintocet-mexyl","Clothianidin","Clothianidin/Thiamethoxam (total)","Composés du cuivre ","Composés du mercure","Coumaphos","Crimidine","Crotoxyphos","Crufomat","Cyanamide","Cyanazine","Cyanofenphos","Cyanophos","Cyazofamide","Cyclanilide ","Cycloate","Cycloxydime","Cyflufenamide","Cyfluthrine","Cyhalofop-butyl","Cyhexatin","Cyhexatin/Azocyclotin (Somme)","Cymoxanil","Cypermethrine","Cyphenothrine","Cyproconazole","Cyprodinile","Cyromazine","Dalapon","Daminozide ","Dazomet","DDD o,p-","DDD p,p-","DDE o,p-","DDE p,p-","DDT (somme)","DDT o,p-","DDT p,p-","DEET ","Deltamethrine","Demeton-O","Demeton-s-methyl","Demeton-s-methyl-sulfone","Demeton-s-methyl-sulfoxyde","Desethyl-terbutylazine","Desmedipham","Desmetryne","Desthio-prothioconazole","Diafenthiuron","Dialifos","Diallat","Diazinon","Dibrom","Dicamba","Dicapthon","Dichlobenil","Dichlofenthion","Dichlofluanide","Dichlormid","Dichlorobenzophenone","Dichlorprop","Dichlorvos","Diclobutrazole","Diclofop ","Dicloran","Dicofol (somme)","Dicrotophos","Dieldrine","Diethofencarbe","Difénamide","Difénoconazole","Difénoxuron","Diflubenzuron","Diflufenicanil","Dimefox","Dimefuron","Dimepiperate","Dimethachlor","Diméthénamide","Dimethipin","Dimethoate","Dimethomorphe","Dimetilan","Dimoxystrobine","Diniconazole","Dinocap","Dinoseb","Dinotefuran","Dinoterb","Dioxacarb","Dioxathion","Diphenylamine","Diquat","Disulfoton (somme)","Disulfoton sulfone","Disulfoton sulfoxyde","Ditalimfos","Dithianon","Dithiocarbamates ","Diuron","Diuron D6","DMSA","DMST","DNOC","Dodemorph","Dodine","Edifenphos","Emamectine","Emamectine B1a","Emamectine B1b","Endosulfane","Endosulfane alpha","Endosulfane beta","Endosulfane sulfate","Endrin","Endrinaldehyd","Endrin-Keton","EPN","Epoxiconazole","EPTC","Etaconazole","Éthalfluraline","Éthametsulfurone-méthyle","Ethéphon","Ethiofencarbe","Ethiofencarb-sulfone","Ethiofencarb-sulfoxyde","Ethion","Ethiprol","Ethirimol","Ethofenprox","Ethofumesate","Ethoprophos","Ethoxyquin","Ethoxysulfuron","Ethylchlozate","Etoxazole","Etridiazole","Etrimphos","Famoxadone","Famphur","Fenamidone","Fenamiphos","Fenamiphos-sulfone","Fenamiphos-sulfoxyde","Fenarimol","Fenazaquine","Fenbuconazole","Fenbutatin oxide","Fenchlorazol-ethyl","Fenchlorphos","Fenchlorphos (somme)","Fenfuram","Fenhexamid","Fenitrothion","Fenobucarb","Fenoprop","Fenoxaprop-P","Fenoxycarb","Fenpiclonil","Fenpropathrin","Fenpropidin","Fenpropimorph","Fenpyrazamine","Fenpyroximate","Fenson","Fensulfothion","Fenthion","Fenthion (somme)","Fenthion-oxone","Fenthion-PO-sulfoxid","Fenthion-PS-sulfoxid","Fentin","Fentine acétate","Fention-PO-sulfon","Fention-PS-sulfon","Fenuron","Fenvalerate ","Fenvalerate (RR-/SS-Isomere)","Fenvalerate (RS-/SR-Isomere)","Fipronil","Fipronil (somme)","Fipronil sulfite","Fipronil sulfon","Flamprop-isopropyl","Flamprop-méthyl","Flazasulfuron","Flonicamid (total)","Flonicamide","Florasulam","Fluazifop (somme)","Fluazifop-P","Fluazifop-P-butyle","Fluaziname","Fluazolate","Fluazuron","Flubendiamide","Fluchloralin","Flucycloxuron","Flucythrinate","Fludioxonil","Flufenacet","Flufenoxuron","Flufenzine","Flumetralin","Flumioxazin","Fluometuron","Fluopicolid","Fluopyram","Fluoroglycofène","Fluorure de sulfuryle","Fluotrimazol","Fluoxastrobine","Flupyrsulfuron-methyl","Fluquinconazole","Flurochloridone","Fluroxypyr","Fluroxypyr (somme)","Fluroxypyr-methylheptyl","Flurprimidol","Flurtamone","Flusilazole","Fluthiacet-methyl","Flutolanil","Flutriafol","Fluxapyroxade","FM-6-1","Folpet","Fomesafen","Fonofos","Foramsulfuron","Forchlorfenuron","Formetanate","Formothion","Fosétyl-A","Fosthiazate","Fuberidazole","Furalaxyl","Furametpyre","Furathiocarb","Furfural","Glufosinate-ammonium)","Glyphosate","Guazatine","Halfenprox","Halofenozid","Halosulfuron-methyl","Haloxyfop","Haloxyfop-2-ethoxyethyl","HCH Alpha","HCH Béta","HCH Delta","HCH Epsilon","HCH isomères (sauf lindane)","HCH, gamma - Lindane","Heptachlor","Heptachlor (somme)","Heptachlore époxide cis","Heptachlore époxide trans","Heptenophos","Hexachlorobenzene","Hexaconazole","Hexaflumuron","Hexazinone","Hexythiazox","Hydrazide maléique","Hymexazol","Imazalil","Imazamox ","Imazapic","Imazaquine","Imazethapyr","Imazosulfuron","Imibenconazole","Imidacloprid","Imidacloprid D4","Indaziflam","Indoxacarbe","Iodofenphos","Iodosulfuron methyl","Ion bromure","Ion fluorure","Ioxynil","Ipconazole","Iprobenfos","Iprodione","Iprovalicarb","Isazophos","Isocarbamid","Isocarbosos","Isofenphos","Isofenphos-méthyl","Isoprocarb","Isoprothiolane","Isoproturon","Isopyrazam","Isouron","Isoxaben","Isoxadifen-éthyle","Isoxaflutole","Isoxathion","Kresoxym-methyl","Lactofen","Lambda-Cyhalothrin","Lénacile","Leptophos","Linuron","Lufénuron","Malaoxon ","Malathion","Malathion (somme)","Mandipropamide","MCPA/MCPB (somme)","Mecarbam","Mécoprop","Mefenpyr-diéthyl","Mepanipyrim","Mephosfolan","Mépiquat","Mepronil","Meptyldinocap","Mésosulfuron-methyl","Mésotrione","Metaflumizone","Metalaxyl","Métaldéhyde","Metamitrone","Metazachlore","Metconazole","Methabenzthiazuron","Methacrifos","Methamidophos","Methfuroxam","Methidathion","Methiocarb (somme)","Methiocarb sulfone","Methiocarb sulfoxyde","Méthiocarbe","Methomyl","Méthomyl/Thiodicarbe (somme)","Méthoprène","Methoprotryn","Méthoxychlore","Methoxyfenozid","Methyl Parathion","Methylpentachlorphenylsulfid","Metobromuron","Metolachlor","Metolcarb","Métosulame","Métoxuron","Metrafenone","Metribuzine","Metsulfuron-methyl","Mevinphos","Milbectine (somme)","Milbemectin A3","Milbemectin A4","Mirex","Molinate","Monocrotophos","Monolinuron","Monuron","Myclobutanil","Naphthalene Acetamide","Napropamide","Neburon","Nicarbazine","Nicosulfuron","Nitenpyram","Nitralin","Nitrapyrine","Nitrofene","Nitrothal-isopropyle","Norflurazon","Novaluron","Noviflumuron","Nuarimol","Ofurace","Omethoate","Orthosulfamuron","Orysastrobine","Oryzalin","Oxadiargyl","Oxadiazon","Oxadixyl","Oxamyl","Oxamyl-oxime","Oxasulfuron","Oxaziclomefone","Oxfendazole","Oxycarboxine","Oxyde d´éthylène","Oxydemeton methyl","Oxydemeton-methyl (somme)","Oxyfluorfene","Paclobutrazol","Paraoxon","Paraoxon-ethyl","Paraoxon-methyl","Paraquat","Parathion","Parathion-ethyl","Parathion-methyl","Parathion-methyl (somme)","PCB 153","Pebulate","Penconazole","Pencycuron","Pendimethalin","Penoxsulame","Pentachlorbenzol","Pentachloroaniline","Pentachloroanisole (PCA)","Penthiopyrade","Permethrine","Perthan","Pethoxamide","Phenkapton","Phenmédiphane","Phénothrine","Phenthoate","Phorate","Phorate (somme)","Phorate-sulfoxide","Phorat-sulfon","Phosalone","Phosmet","Phosphamidon","Phosphines et phosphures","Phoxime","Picaridin","Picloram","Picolinafene","Picoxystrobin","Pinoxaden","Pirimicarb, desmethyl-formamido-","Pirimicarbe","Pirimicarbe (somme)","Pirimicarbe, desmethyl","Pirimiphos-ethyl","Pirimiphos-methyl","Pirimiphos-methyl, N-Desethyl-","Primisulfuron-methyl","Prochloraz","Procymidone","Profenofos","Profluralin","Profoxydim","Prohexadione (somme","Promecarb","Prométone","Prométryne","Propachlore","Propamocarbe","Propanile","Propaquizafop","Propargite","Propazine","Propétamphos","Propham","Propiconazole","Propinèbe ","Propisochlore","Propoxur","Propoxycarbazon (somme)","Propoxycarbazon-2-hydroxy","Propoxycarbazone","Propyzamide","Proquinazid","Prosulfocarbe","Prosulfuron","Prothioconazole","Prothiophos","Pymétrozine","Pyraclofos","Pyraclostrobine","Pyraflufen-éthyl","Pyrasulfotole","Pyrazophos","Pyréthrines (total)","Pyridabène","Pyridalyle","Pyridaphenthion","Pyridate","Pyrifenox","Pyrifluquinazone","Pyriméthanil","Pyrimidifen","Pyriproxyfen","Pyroxsulam","Quinalphos","Quinclorac","Quinmerac","Quinoclamine","Quinoxyfen","Quintozene","Quintozene (somme)","Quizalofop","Quizalofop (somme)","Quizalofop-P-ethyl","Resmethrin","Rimsulfuron","Rotenone","S 421","Saflufénacil","Sebuthylazine","Secbumeton","Sethoxydim","Silafluofen","Silthiofame","Simazine","Simeconazole","Simetryne","Spinetoram","Spinosad","Spirodiclofen","Spiromesifene","Spirotetramate","Spirotetramate (somme)","Spirotetramat-enol","Spirotetramat-enolglucoside","Spirotetramat-ketohydroxy","Spirotetramat-monohydroxy","Spiroxamine","Sulcotrione","Sulfentrazon","Sulfosulfuron","Sulfotep","Sulprofos-sulfoxide","Tau-fluvalinate ","Tébuconazole","Tebufénozide","Tebufenpyrad","Tebuthiuron","Tecnazène","Teflubenzuron","Tefluthrine","Tembotrione ","Temephos","TEPP","Tepraloxydim","Terbacile","Terbufos","Terbufos-sulfoxide","Terbumeton","Terbuthylazine","Terbutryne","Tetrachlorvinphos","Tetraconazole","Tetradifon","Tetramethrine","Tetrasul","TFNA","TFNG","Thiabendazole","Thiabendazole D6","Thiacloprid","Thiamethoxam","Thifensulfuron méthyle","Thiobencarb","Thiocyclam","Thiodicarbe","Thiofanox","Thiofanox-Sulfone","Thiofanox-Sulfoxid","Thiometon","Thionazin","Thiophanate-méthyl","Thirame ","THPI ","Tolclofos-methyl","Tolfenpyrad","Tolylfluanide","Tolylfluanide (somme)","Topramezone ","Tralkoxydim","Tralomethrin","Transfluthrin","Triadimefone","Triadiménol/Triadiméfone (somme de)","Triadimenole","Triallate","Triamiphos","Triasulfuron","Triazamate","Triazophos","Tribénuron-méthyle","Tribufos","Trichlorfon","Trichloronat","Triclopyr","Tricyclazole","Tridemorph","Trietazin","Trifloxystrobin","Triflumizole","Triflumizole (somme)","Triflumuron","Trifluralin","Triflusulfuron-methyl","Triforine","Trimethacarb 3.4.5","Trinexapac-ethyl","Triphénylétain acétate ","Triticonazole","Tritosulfuron","Uniconazole","Valifenalate","Vamidothion","Vamidothion-sulfone","Vamidothion-sulfoxide","Vinclozoline","Warfarine","XMC ","Xylylcarb","Zirame","Zoxamide"]
["FJ 390","08/09/2000","Morilles","-","MP","-","PONDEROSA","CANADA","-"]
["FJ 698","18/05/2001","Mousserons","-","MP","-","MONDIACEPES","BULGARIE","-"]
["A3 272","18/10/2013","Cèpes","SURGELE","-","-","EMILIAN FUNGHI","ROUMANIE","Wessling","NR","NR","NR","NR","NR","NR","NR","NR","NR",null,null,"NR","NR",null,null,"NR","NR","NR","NR","NR",null,"NR",null,null,null,"NR","NR","NR",null,null,null,null,null,null,null,null,"NR",null,"NR",null,null,null,"NR","NR","NR",null,"NR",null,"NR",null,"NR","NR",null,null,null,null,null,null,null,null,"NR","NR",null,null,null,null,"NR",null,null,null,null,"NR","NR",null,"NR","NR",null,null,null,"NR",null,null,null,"NR",null,null,null,null,null,null,null,null,null,null,null,"NR","NR","NR",null,null,null,null,null,null,null,null,null,"NR",null,"NR",null,null,null,"NR",null,"NR",null,null,null,null,null,null,null,"NR","NR",null,null,null,null,null,null,null,"NR",null,"NR",null,null,null,null,null,null,null,null,null,"NR",null,null,"NR",null,null,null,null,null,"NR",null,null,null,null,null,null,null,"NR","NR",null,null,null,null,"NR",null,"NR",null,null,null,null,"NR","NR","NR",null,null,"NR","NR","NR",null,null,null,null,"NR","NR",null,"NR",null,null,null,null,null,null,"NR","NR","NR",null,null,null,null,null,"NR","NR","NR","NR",null,null,null,null,"NR",null,null,null,null,null,null,null,null,"NR",null,null,"NR",null,null,null,null,null,"NR",null,null,null,null,"NR","NR","NR",null,null,"NR",null,null,null,null,null,null,null,null,null,null,null,null,"NR",null,null,"NR",null,null,"NR",null,null,"NR","NR","NR","NR",null,null,null,"NR",null,null,null,null,"NR","NR",null,"NR","NR","NR","NR",null,"NR",null,"NR",null,null,"NR",null,null,null,null,null,null,null,null,null,null,"NR","NR","NR",null,null,null,null,"NR",null,null,null,null,null,"NR","NR",null,null,null,null,null,null,null,"NR","NR",null,null,null,"NR",null,null,null,null,null,null,null,"NR",null,null,null,null,null,null,"NR",null,null,null,null,"NR",null,null,"NR","NR","NR",null,"NR",null,"NR",null,null,null,"NR","NR","NR",null,null,null,"NR",null,null,"NR","NR",null,null,"NR",null,"NR",null,"NR",null,null,null,null,"NR",null,null,null,null,"NR",null,"NR",null,"NR","NR",null,"NR","NR","NR","NR","NR",null,null,null,"NR",null,"NR","NR",null,"NR",null,"NR",null,null,null,"NR",null,null,null,"NR",null,"NR","NR","NR","NR",null,null,"NR",null,null,null,null,null,null,"NR",null,null,"NR",null,null,null,null,null,null,null,null,"NR","NR",null,"NR","NR","NR","NR","NR","NR",null,"NR","NR",null,null,null,"NR","NR",null,"NR",null,null,null,null,null,null,null,null,"NR",null,null,"NR","NR",null,null,null,null,null,"NR",null,null,null,null,null,null,null,"NR",null,"NR",null,"NR",null,null,null,"NR",null,"NR","NR","NR","NR",null,"NR",null,null,null,null,null,null,null,null,"NR",null,null,null,null,"NR","NR",null,null,null,"NR",null,null,null,null,null,null,null,null,null,null,"NR","NR","NR",null,null,null,null,null,null,"NR",null,null,"NR",null,null,null,"NR",null,null,null,null,"NR","NR","NR",null,"NR","NR","NR","NR",null,null,null,"NR","NR","NR","NR",null,"NR",null,"NR",null,null,null,"NR",null,"NR",null,"NR",null,"NR","NR","NR",null,null,null,"NR",null,null,null,"NR",null,null,"NR",null,null,null,null,null,"NR","NR",null,null,null,null,"NR",null,"NR",null,null,null,"NR",null,null,"NR",null,null,null,null,null,null,null,null,null,null,"NR",null,null,null,null,null,null,"NR",null,null,null,null,null,"NR","NR",null,"NR","NR","NR",null,null,null,null,"NR",null,"NR",null,null,null,"NR",null,"NR",null,null,null,"NR",null,"NR",null,"NR",null,"NR",null,"NR","NR",null,null,"NR","NR","NR","NR",null,"NR",null,null,null,"NR","NR",null,null,null,null,null,"NR",null,"NR",null,null,null,"NR","NR","NR","NR","NR","NR",null,"NR",null,"NR",null,null,null,null,null,null,null,null,null,null,"NR",null,null,null,null,null,"NR",null,null,null,null,null,null,null,null,"NR","NR",null,null,null,null,null,"NR","NR",null,null,null,null,null,null,"NR","NR","NR",null,"NR",null,"NR","NR",null,null,"NR",null,"NR",null,null,null,null,null,null,"NR",null,null,null,"NR",null,null,null,null,null,"NR",null,null,null,null,"NR","NR","NR",null,"NR",null,"NR",null,"NR","NR",null,"NR","NR","NR","NR"]
["A5067","14/10/2015","Morilles","SURGELE","-","-","CALISKAN","TURQUIE","Eurofins","NR","NR","NR","NR","NR",null,null,null,null,null,null,null,null,null,null,null,null,null,"NR",null,"NR",null,null,null,null,null,null,null,null,null,null,"NR",null,null,null,null,null,null,null,null,"NR",null,"NR",null,null,null,"NR","NR",null,null,"NR","NR",null,null,null,"NR","NR",null,null,"NR","NR",null,null,null,null,"NR","NR",null,null,null,"NR",null,null,"NR",null,null,null,null,"NR",null,null,"NR",null,"NR",null,null,null,null,"NR","NR","NR","NR",null,null,null,null,null,null,null,null,null,null,null,"NR",null,null,"NR",null,null,"NR","NR",null,null,null,null,null,null,null,null,"NR","NR",null,null,null,"NR","NR",null,"NR",null,null,null,"NR",null,null,"NR","NR",null,"NR","NR",null,null,"NR",null,"NR","NR",null,"NR","NR",null,null,null,null,null,"NR",null,null,"NR",null,"NR","NR","NR","NR","NR",null,null,null,"NR",null,null,null,null,null,null,null,null,null,"NR",null,null,null,"NR","NR",null,null,"NR","NR","NR",null,null,null,null,"NR",null,null,null,null,"NR",null,null,null,null,null,null,null,null,"NR","NR",null,null,null,null,null,null,null,null,null,null,"NR",null,null,"NR",null,null,null,null,null,"NR",null,null,"NR",null,"NR",null,null,null,null,null,"NR",null,null,"NR",null,null,null,null,null,null,null,null,null,null,"NR",null,null,null,null,"NR",null,null,null,null,null,null,null,null,null,null,"NR",null,"NR",null,null,null,"NR",null,"NR",null,null,null,null,"NR",null,null,null,null,"NR","NR",null,"NR","NR","NR","NR","NR","NR",null,null,null,null,"NR","NR","NR","NR",null,null,null,null,null,null,null,null,"NR","NR",null,null,null,null,null,"NR",null,null,null,null,null,null,null,null,"NR","NR","NR","NR",null,null,null,null,null,null,null,null,null,null,null,null,"NR",null,null,null,null,null,null,"NR","NR",null,null,"NR",null,null,null,null,null,null,null,"NR",null,"NR",null,null,"NR",null,null,null,null,null,null,null,"NR",null,null,null,null,null,null,"NR",null,null,null,null,"NR","NR",null,null,"NR",null,null,null,null,null,null,null,null,null,null,null,null,null,null,null,null,"NR",null,null,null,"NR",null,null,null,null,null,"NR","NR","NR","NR","NR","NR","NR",null,"NR",null,null,null,"NR",null,null,null,null,null,null,null,null,null,null,null,null,"NR",null,null,"NR","NR","NR",null,"NR",null,null,null,null,null,"NR","NR","NR","NR",null,"NR",null,null,null,null,"NR",null,null,null,null,null,null,"NR",null,null,null,null,"NR",null,"NR",null,null,"NR",null,null,null,null,null,null,null,null,null,null,null,"NR","NR",null,"NR","NR",null,null,null,"NR",null,null,null,null,null,null,"NR",null,null,null,null,null,null,null,"NR","NR",null,null,null,"NR",null,null,null,null,null,null,null,"NR",null,null,null,null,"NR",null,null,null,null,null,null,null,null,null,"NR",null,"NR",null,null,null,null,null,null,null,null,null,"NR",null,"NR","NR",null,null,null,null,"NR",null,null,null,"NR",null,null,null,null,"NR",null,null,"NR",null,null,"NR",null,null,null,null,null,null,null,"NR",null,null,null,null,"NR",null,"NR",null,"NR",null,null,null,null,null,null,null,null,"NR",null,null,null,null,null,null,null,null,null,null,null,null,"NR","NR",null,null,null,"NR","NR","NR",null,null,null,null,null,null,null,null,null,null,null,null,"NR","NR",null,null,null,null,null,null,null,"NR",null,null,null,"NR",null,null,null,null,null,null,null,null,null,null,null,null,null,null,null,null,"NR",null,null,null,null,null,null,null,null,null,null,null,null,"NR",null,"NR",null,null,null,null,null,null,null,null,null,null,null,null,null,null,null,null,null,null,null,"NR",null,null,null,null,null,null,"NR",null,null,null,"NR","NR","NR",null,null,null,null,null,null,null,null,null,null,null,"NR",null,null,null,null,null,null,"NR",null,null,null,"NR",null,null,"NR","NR",null,"NR",null,null,null,null,null,"NR",null,"NR",null,null,null,null,null,"NR","NR",null,null,"NR","NR",null,"NR",null,null,null,"NR",null,null,null,null,null,null,null,null,null,null,null,"NR",null,null,null,null,null,null,"NR",null,null,"NR"]
["A5292","20/11/2015","Pleurotes","SURGELE","-","-","FORTUNE FOODS","CHINE","Sino Analytica","NR","NR","NR","NR","NR","NR","NR","NR","NR","NR","NR","NR","NR",null,null,"NR","NR","NR","NR","NR",null,"NR",null,null,"NR","NR","NR","NR","NR","NR","NR","NR",null,null,null,"NR","NR","NR","NR","NR","NR","NR","NR","NR","NR","NR","NR","NR","NR","NR","NR","NR","NR","NR","NR","NR","NR","NR","NR","NR","NR","NR",null,"NR",null,"NR","NR",null,null,null,null,"NR",null,null,"NR","NR","NR","NR","NR","NR","NR","NR","NR","NR","NR","NR","NR",null,"NR","NR","NR","NR",null,"NR","NR","NR","NR","NR",null,null,null,"NR","NR","NR","NR","NR","NR","NR",null,"NR","NR",null,"NR",null,"NR","NR","NR",null,"NR","NR",null,"NR","NR","NR","NR","NR","NR","NR","NR","NR",null,"NR","NR","NR","NR","NR",null,"NR","NR","NR","NR","NR","NR","NR","NR","NR","NR","NR","NR","NR","NR","NR","NR",null,"NR",null,"NR","NR","NR","NR","NR","NR","NR","NR","NR","NR","NR","NR",null,"NR","NR","NR","NR","NR","NR","NR","NR","NR",null,"NR","NR","NR","NR","NR","NR","NR","NR",null,"NR","NR","NR","NR","NR","NR","NR",null,"NR","NR","NR","NR",null,"NR","NR",null,null,"NR","NR","NR",null,null,"NR",null,"NR",null,null,"NR",null,"NR","NR","NR","NR","NR","NR","NR","NR","NR","NR","NR",null,"NR","NR","NR","NR","NR",null,"NR","NR","NR",null,"NR","NR",null,"NR","NR","NR",null,"NR","NR","NR","NR","NR","NR","NR","NR","NR","NR","NR",null,"NR","NR","NR",null,"NR","NR","NR","NR","NR","NR","NR","NR","NR","NR","NR","NR","NR","NR","NR","NR","NR","NR","NR","NR","NR",null,null,"NR","NR","NR","NR","NR",null,"NR","NR","NR","NR","NR","NR","NR","NR","NR","NR",null,"NR","NR",null,"NR","NR","NR","NR",null,"NR","NR","NR","NR","NR",null,null,"NR","NR","NR","NR","NR",null,"NR","NR","NR","NR","NR","NR","NR",null,null,null,"NR","NR",null,"NR",null,"NR",null,"NR",null,"NR","NR",null,"NR","NR","NR","NR","NR","NR","NR","NR","NR","NR","NR",null,null,"NR","NR","NR","NR","NR","NR","NR","NR","NR","NR","NR",null,"NR","NR","NR","NR","NR","NR",null,"NR","NR",null,"NR","NR","NR","NR","NR","NR","NR","NR","NR","NR","NR","NR","NR","NR","NR","NR","NR","NR",null,"NR","NR","NR","NR","NR","NR","NR","NR","NR","NR","NR","NR","NR","NR","NR","NR","NR",null,"NR","NR","NR","NR","NR","NR","NR","NR","NR","NR","NR","NR","NR","NR",null,"NR","NR","NR","NR",null,"NR","NR","NR","NR",null,"NR","NR",null,"NR","NR","NR","NR","NR","NR",null,"NR","NR",null,"NR","NR","NR","NR","NR","NR","NR",null,null,"NR","NR",null,null,"NR",null,null,null,"NR","NR","NR","NR","NR","NR",null,"NR",null,"NR","NR",null,"NR","NR",null,"NR","NR","NR","NR","NR","NR","NR","NR","NR","NR","NR","NR","NR","NR",null,"NR",null,"NR","NR","NR","NR",null,"NR",null,"NR","NR","NR","NR",null,"NR","NR","NR","NR",null,"NR","NR","NR",null,"NR","NR","NR","NR","NR","NR",null,"NR","NR","NR","NR","NR",null,"NR","NR","NR","NR",null,"NR","NR",null,"NR","NR","NR","NR",null,"NR","NR","NR","NR","NR",null,"NR","NR","NR","NR",null,null,"NR","NR","NR","NR","NR","NR","NR","NR","NR","NR",null,"NR","NR","NR","NR",null,"NR",null,"NR","NR","NR",null,"NR",null,"NR","NR","NR","NR","NR",null,"NR","NR","NR","NR","NR",null,null,"NR",null,"NR",null,null,null,"NR",null,"NR","NR","NR","NR","NR","NR",null,"NR","NR",null,null,"NR","NR",null,null,null,"NR","NR","NR",null,"NR",null,"NR",null,"NR","NR",null,"NR","NR",null,null,"NR","NR",null,"NR","NR","NR",null,"NR","NR","NR","NR","NR",null,"NR","NR","NR","NR",null,"NR",null,"NR",null,"NR","NR","NR",null,"NR","NR","NR",null,"NR","NR","NR","NR","NR","NR","NR","NR",null,"NR",null,"NR",null,"NR","NR","NR","NR","NR","NR",null,"NR","NR","NR",null,"NR","NR","NR","NR","NR","NR","NR","NR",null,"NR","NR","NR","NR","NR","NR",null,"NR","NR","NR","NR","NR","NR","NR","NR","NR","NR","NR","NR","NR","NR","NR","NR",null,"NR",null,"NR","NR","NR","NR",null,"NR",null,null,"NR","NR","NR",null,"NR",null,null,"NR","NR","NR","NR","NR",null,"NR",null,"NR","NR","NR","NR","NR",null,"NR",null,"NR","NR",null,"NR",null,"NR","NR",null,"NR","NR","NR","NR","NR","NR",null,"NR","NR",null,null,"NR","NR","NR","NR","NR","NR","NR","NR",null,"NR","NR",null,"NR","NR","NR","NR","NR"]
["A4003","04/11/2014","Girolles","SURGELE","-","-","SICHUAN QUALITY","CHINE","Eurofins","NR","NR","NR","NR","NR",null,null,null,null,null,null,null,null,null,null,null,null,null,"NR",null,"NR",null,null,null,null,null,null,null,null,null,null,"NR",null,null,null,null,null,null,null,null,"NR",null,"NR",null,null,null,"NR","NR",null,null,"NR","NR",null,null,null,"NR","NR",null,null,"NR","NR",null,null,null,null,"NR","NR",null,null,null,"NR",null,null,"NR",null,null,null,null,"NR",null,null,"NR",null,"NR",null,null,null,null,"NR","NR","NR","NR",null,null,null,null,null,null,null,null,null,null,null,"NR",null,null,"NR",null,null,"NR","NR",null,null,null,null,null,null,null,null,"NR","NR",null,null,null,"NR","NR",null,"NR",null,null,null,"NR",null,null,"NR","NR",null,"NR","NR",null,null,"NR",null,"NR","NR",null,"NR","NR",null,null,null,null,null,"NR",null,null,"NR",null,"NR","NR","NR","NR","NR",null,null,null,"NR",null,null,null,null,null,null,null,null,null,"NR",null,null,null,"NR","NR",null,null,"NR","NR","NR",null,null,null,null,"NR",null,null,null,null,"NR",null,null,null,null,null,null,null,null,"NR","NR",null,null,null,null,null,null,null,null,null,null,"NR",null,null,"NR",null,null,null,null,null,"NR",null,null,"NR",null,"NR",null,null,null,null,null,"NR",null,null,"NR",null,null,null,null,null,null,null,null,null,null,"NR",null,null,null,null,"NR",null,null,null,null,null,null,null,null,null,null,"NR",null,"NR",null,null,null,"NR",null,"NR",null,null,null,null,"NR",null,null,null,null,"NR","NR",null,"NR","NR","NR","NR","NR","NR",null,null,null,null,"NR","NR","NR","NR",null,null,null,null,null,null,null,null,"NR","NR",null,null,null,null,null,"NR",null,null,null,null,null,null,null,null,"NR","NR","NR","NR",null,null,null,null,null,null,null,null,null,null,null,null,"NR",null,null,null,null,null,null,"NR","NR",null,null,"NR",null,null,null,null,null,null,null,"NR",null,"NR",null,null,"NR",null,null,null,null,null,null,null,"NR",null,null,null,null,null,null,"NR",null,null,null,null,"NR","NR",null,null,"NR",null,null,null,null,null,null,null,null,null,null,null,null,null,null,null,null,"NR",null,null,null,"NR",null,null,null,null,null,"NR","NR","NR","NR","NR","NR","NR",null,"NR",null,null,null,"NR",null,null,null,null,null,null,null,null,null,null,null,null,"NR",null,null,"NR","NR","NR",null,"NR",null,null,null,null,null,"NR","NR","NR","NR",null,"NR",null,null,null,null,"NR",null,null,null,null,null,null,"NR",null,null,null,null,"NR",null,"NR",null,null,"NR",null,null,null,null,null,null,null,null,null,null,null,"NR","NR",null,"NR","NR",null,null,null,"NR",null,null,null,null,null,null,"NR",null,null,null,null,null,null,null,"NR","NR",null,null,null,"NR",null,null,null,null,null,null,null,"NR",null,null,null,null,"NR",null,null,null,null,null,null,null,null,null,"NR",null,"NR",null,null,null,null,null,null,null,null,null,"NR",null,"NR","NR",null,null,null,null,"NR",null,null,null,"NR",null,null,null,null,"NR",null,null,"NR",null,null,"NR",null,null,null,null,null,null,null,"NR",null,null,null,null,"NR",null,"NR",null,"NR",null,null,null,null,null,null,null,null,"NR",null,null,null,null,null,null,null,null,null,null,null,null,"NR","NR",null,null,null,"NR","NR","NR",null,null,null,null,null,null,null,null,null,null,null,null,"NR","NR",null,null,null,null,null,null,null,"NR",null,null,null,"NR",null,null,null,null,null,null,null,null,null,null,null,null,null,null,null,null,"NR",null,null,null,null,null,null,null,null,null,null,null,null,"NR",null,"NR",null,null,null,null,null,null,null,null,null,null,null,null,null,null,null,null,null,null,null,"NR",null,null,null,null,null,null,"NR",null,null,null,"NR","NR","NR",null,null,null,null,null,null,null,null,null,null,null,"NR",null,null,null,null,null,null,"NR",null,null,null,"NR",null,null,"NR","NR",null,"NR",null,null,null,null,null,"NR",null,"NR",null,null,null,null,null,"NR","NR",null,null,"NR","NR",null,"NR",null,null,null,"NR",null,null,null,null,null,null,null,null,null,null,null,"NR",null,null,null,null,null,null,"NR",null,null,"NR"]
["S14246001","04/11/2014","Trompettes","SURGELE","-","-","GOBAN/CLD","BOSNIE","Eurofins","NR","NR","NR","NR","NR",null,null,null,null,null,null,null,null,null,null,null,null,null,"NR",null,"NR",null,null,null,null,null,null,null,null,null,null,"NR",null,null,null,null,null,null,null,null,"NR",null,"NR",null,null,null,"NR","NR",null,null,"NR","NR",null,null,null,"NR","NR",null,null,"NR","NR",null,null,null,null,"NR","NR",null,null,null,"NR",null,null,"NR",null,null,null,null,"NR",null,null,"NR",null,"NR",null,null,null,null,"NR","NR","NR","NR",null,null,null,null,null,null,null,null,null,null,null,"NR",null,null,"NR",null,null,"NR","NR",null,null,null,null,null,null,null,null,"NR","NR",null,null,null,"NR","NR",null,"NR",null,null,null,"NR",null,null,"NR","NR",null,"NR","NR",null,null,"NR",null,"NR","NR",null,"NR","NR",null,null,null,null,null,"NR",null,null,"NR",null,"NR","NR","NR","NR","NR",null,null,null,"NR",null,null,null,null,null,null,null,null,null,"NR",null,null,null,"NR","NR",null,null,"NR","NR","NR",null,null,null,null,"NR",null,null,null,null,"NR",null,null,null,null,null,null,null,null,"NR","NR",null,null,null,null,null,null,null,null,null,null,"NR",null,null,"NR",null,null,null,null,null,"NR",null,null,"NR",null,"NR",null,null,null,null,null,"NR",null,null,"NR",null,null,null,null,null,null,null,null,null,null,"NR",null,null,null,null,"NR",null,null,null,null,null,null,null,null,null,null,"NR",null,"NR",null,null,null,"NR",null,"NR",null,null,null,null,"NR",null,null,null,null,"NR","NR",null,"NR","NR","NR","NR","NR","NR",null,null,null,null,"NR","NR","NR","NR",null,null,null,null,null,null,null,null,"NR","NR",null,null,null,null,null,"NR",null,null,null,null,null,null,null,null,"NR","NR","NR","NR",null,null,null,null,null,null,null,null,null,null,null,null,"NR",null,null,null,null,null,null,"NR","NR",null,null,"NR",null,null,null,null,null,null,null,"NR",null,"NR",null,null,"NR",null,null,null,null,null,null,null,"NR",null,null,null,null,null,null,"NR",null,null,null,null,"NR","NR",null,null,"NR",null,null,null,null,null,null,null,null,null,null,null,null,null,null,null,null,"NR",null,null,null,"NR",null,null,null,null,null,"NR","NR","NR","NR","NR","NR","NR",null,"NR",null,null,null,"NR",null,null,null,null,null,null,null,null,null,null,null,null,"NR",null,null,"NR","NR","NR",null,"NR",null,null,null,null,null,"NR","NR","NR","NR",null,"NR",null,null,null,null,"NR",null,null,null,null,null,null,"NR",null,null,null,null,"NR",null,"NR",null,null,"NR",null,null,null,null,null,null,null,null,null,null,null,"NR","NR",null,"NR","NR",null,null,null,"NR",null,null,null,null,null,null,"NR",null,null,null,null,null,null,null,"NR","NR",null,null,null,"NR",null,null,null,null,null,null,null,"NR",null,null,null,null,"NR",null,null,null,null,null,null,null,null,null,"NR",null,"NR",null,null,null,null,null,null,null,null,null,"NR",null,"NR","NR",null,null,null,null,"NR",null,null,null,"NR",null,null,null,null,"NR",null,null,"NR",null,null,"NR",null,null,null,null,null,null,null,"NR",null,null,null,null,"NR",null,"NR",null,"NR",null,null,null,null,null,null,null,null,"NR",null,null,null,null,null,null,null,null,null,null,null,null,"NR","NR",null,null,null,"NR","NR","NR",null,null,null,null,null,null,null,null,null,null,null,null,"NR","NR",null,null,null,null,null,null,null,"NR",null,null,null,"NR",null,null,null,null,null,null,null,null,null,null,null,null,null,null,null,null,"NR",null,null,null,null,null,null,null,null,null,null,null,null,"NR",null,"NR",null,null,null,null,null,null,null,null,null,null,null,null,null,null,null,null,null,null,null,"NR",null,null,null,null,null,null,"NR",null,null,null,"NR","NR","NR",null,null,null,null,null,null,null,null,null,null,null,"NR",null,null,null,null,null,null,"NR",null,null,null,"NR",null,null,"NR","NR",null,"NR",null,null,null,null,null,"NR",null,"NR",null,null,null,null,null,"NR","NR",null,null,"NR","NR",null,"NR",null,null,null,"NR",null,null,null,null,null,null,null,null,null,null,null,"NR",null,null,null,null,null,null,"NR",null,null,"NR"]
["A4306","24/11/2014","Cèpes","SURGELE","-","-","CHUXIONG HONGGUI GREEN FOOD","CHINE","Eurofins","NR","NR","NR","NR","NR",null,null,null,null,null,null,null,null,null,null,null,null,null,"NR",null,"NR",null,null,null,null,null,null,null,null,null,null,"NR",null,null,null,null,null,null,null,null,"NR",null,"NR",null,null,null,"NR","NR",null,null,"NR","NR",null,null,null,"NR","NR",null,null,"NR","NR",null,null,null,null,"NR","NR",null,null,null,"NR",null,null,"NR",null,null,null,null,"NR",null,null,"NR",null,"NR",null,null,null,null,"NR","NR","NR","NR",null,null,null,null,null,null,null,null,null,null,null,"NR",null,null,"NR",null,null,"NR","NR",null,null,null,null,null,null,null,null,"NR","NR",null,null,null,"NR","NR",null,"NR",null,null,null,"NR",null,null,"NR","NR",null,"NR","NR",null,null,"NR",null,"NR","NR",null,"NR","NR",null,null,null,null,null,"NR",null,null,"NR",null,"NR","NR","NR","NR","NR",null,null,null,"NR",null,null,null,null,null,null,null,null,null,"NR",null,null,null,"NR","NR",null,null,"NR","NR","NR",null,null,null,null,"NR",null,null,null,null,"NR",null,null,null,null,null,null,null,null,"NR","NR",null,null,null,null,null,null,null,null,null,null,"NR",null,null,"NR",null,null,null,null,null,"NR",null,null,"NR",null,"NR",null,null,null,null,null,"NR",null,null,"NR",null,null,null,null,null,null,null,null,null,null,"NR",null,null,null,null,"NR",null,null,null,null,null,null,null,null,null,null,"NR",null,"NR",null,null,null,"NR",null,"NR",null,null,null,null,"NR",null,null,null,null,"NR","NR",null,"NR","NR","NR","NR","NR","NR",null,null,null,null,"NR","NR","NR","NR",null,null,null,null,null,null,null,null,"NR","NR",null,null,null,null,null,"NR",null,null,null,null,null,null,null,null,"NR","NR","NR","NR",null,null,null,null,null,null,null,null,null,null,null,null,"NR",null,null,null,null,null,null,"NR","NR",null,null,"NR",null,null,null,null,null,null,null,"NR",null,"NR",null,null,"NR",null,null,null,null,null,null,null,"NR",null,null,null,null,null,null,"NR",null,null,null,null,"NR","NR",null,null,"NR",null,null,null,null,null,null,null,null,null,null,null,null,null,null,null,null,"NR",null,null,null,"NR",null,null,null,null,null,"NR","NR","NR","NR","NR","NR","NR",null,"NR",null,null,null,"NR",null,null,null,null,null,null,null,null,null,null,null,null,"NR",null,null,"NR","NR","NR",null,"NR",null,null,null,null,null,"NR","NR","NR","NR",null,"NR",null,null,null,null,"NR",null,null,null,null,null,null,"NR",null,null,null,null,"NR",null,"NR",null,null,"NR",null,null,null,null,null,null,null,null,null,null,null,"NR","NR",null,"NR","NR",null,null,null,"NR",null,null,null,null,null,null,"NR",null,null,null,null,null,null,null,"NR","NR",null,null,null,"NR",null,null,null,null,null,null,null,"NR",null,null,null,null,"NR",null,null,null,null,null,null,null,null,null,"NR",null,"NR",null,null,null,null,null,null,null,null,null,"NR",null,"NR","NR",null,null,null,null,"NR",null,null,null,"NR",null,null,null,null,"NR",null,null,"NR",null,null,"NR",null,null,null,null,null,null,null,"NR",null,null,null,null,"NR",null,"NR",null,"NR",null,null,null,null,null,null,null,null,"NR",null,null,null,null,null,null,null,null,null,null,null,null,"NR","NR",null,null,null,"NR","NR","NR",null,null,null,null,null,null,null,null,null,null,null,null,"NR","NR",null,null,null,null,null,null,null,"NR",null,null,null,"NR",null,null,null,null,null,null,null,null,null,null,null,null,null,null,null,null,"NR",null,null,null,null,null,null,null,null,null,null,null,null,"NR",null,"NR",null,null,null,null,null,null,null,null,null,null,null,null,null,null,null,null,null,null,null,"NR",null,null,null,null,null,null,"NR",null,null,null,"NR","NR","NR",null,null,null,null,null,null,null,null,null,null,null,"NR",null,null,null,null,null,null,"NR",null,null,null,"NR",null,null,"NR","NR",null,"NR",null,null,null,null,null,"NR",null,"NR",null,null,null,null,null,"NR","NR",null,null,"NR","NR",null,"NR",null,null,null,"NR",null,null,null,null,null,null,null,null,null,null,null,"NR",null,null,null,null,null,null,"NR",null,null,"NR"]
["A5182","25/03/2016","Girolles Blanchies","SURGELE","-","-","KASOL","RUSSIE","Eurofins","NR","NR","NR","NR","NR",null,null,null,null,null,null,null,null,null,null,null,null,null,"NR",null,"NR",null,null,null,null,null,null,null,null,null,null,"NR",null,null,null,null,null,null,null,null,"NR",null,"NR",null,null,null,"NR","NR",null,null,"NR","NR",null,null,null,"NR","NR",null,null,"NR","NR",null,null,null,null,"NR","NR",null,null,null,"NR",null,null,"NR",null,null,null,null,"NR",null,null,"NR",null,"NR",null,null,null,null,"NR","NR","NR","NR",null,null,null,null,null,null,null,null,null,null,null,"NR",null,null,"NR",null,null,"NR","NR",null,null,null,null,null,null,null,null,"NR","NR",null,null,null,"NR","NR",null,"NR",null,null,null,"NR",null,null,"NR","NR",null,"NR","NR",null,null,"NR",null,"NR","NR",null,"NR","NR",null,null,null,null,null,"NR",null,null,"NR",null,"NR","NR","NR","NR","NR",null,null,null,"NR",null,null,null,null,null,null,null,null,null,"NR",null,null,null,"NR","NR",null,null,"NR","NR","NR",null,null,null,null,"NR",null,null,null,null,"NR",null,null,null,null,null,null,null,null,"NR","NR",null,null,null,null,null,null,null,null,null,null,"NR",null,null,"NR",null,null,null,null,null,"NR",null,null,"NR",null,"NR",null,null,null,null,null,"NR",null,null,"NR",null,null,null,null,null,null,null,null,null,null,"NR",null,null,null,null,"NR",null,null,null,null,null,null,null,null,null,null,"NR",null,"NR",null,null,null,"NR",null,"NR",null,null,null,null,"NR",null,null,null,null,"NR","NR",null,"NR","NR","NR","NR","NR","NR",null,null,null,null,"NR","NR","NR","NR",null,null,null,null,null,null,null,null,"NR","NR",null,null,null,null,null,"NR",null,null,null,null,null,null,null,null,"NR","NR","NR","NR",null,null,null,null,null,null,null,null,null,null,null,null,"NR",null,null,null,null,null,null,"NR","NR",null,null,"NR",null,null,null,null,null,null,null,"NR",null,"NR",null,null,"NR",null,null,null,null,null,null,null,"NR",null,null,null,null,null,null,"NR",null,null,null,null,"NR","NR",null,null,"NR",null,null,null,null,null,null,null,null,null,null,null,null,null,null,null,null,"NR",null,null,null,"NR",null,null,null,null,null,"NR","NR","NR","NR","NR","NR","NR",null,"NR",null,null,null,"NR",null,null,null,null,null,null,null,null,null,null,null,null,"NR",null,null,"NR","NR","NR",null,"NR",null,null,null,null,null,"NR","NR","NR","NR",null,"NR",null,null,null,null,"NR",null,null,null,null,null,null,"NR",null,null,null,null,"NR",null,"NR",null,null,"NR",null,null,null,null,null,null,null,null,null,null,null,"NR","NR",null,"NR","NR",null,null,null,"NR",null,null,null,null,null,null,"NR",null,null,null,null,null,null,null,"NR","NR",null,null,null,"NR",null,null,null,null,null,null,null,"NR",null,null,null,null,"NR",null,null,null,null,null,null,null,null,null,"NR",null,"NR",null,null,null,null,null,null,null,null,null,"NR",null,"NR","NR",null,null,null,null,"NR",null,null,null,"NR",null,null,null,null,"NR",null,null,"NR",null,null,"NR",null,null,null,null,null,null,null,"NR",null,null,null,null,"NR",null,"NR",null,"NR",null,null,null,null,null,null,null,null,"NR",null,null,null,null,null,null,null,null,null,null,null,null,"NR","NR",null,null,null,"NR","NR","NR",null,null,null,null,null,null,null,null,null,null,null,null,"NR","NR",null,null,null,null,null,null,null,"NR",null,null,null,"NR",null,null,null,null,null,null,null,null,null,null,null,null,null,null,null,null,"NR",null,null,null,null,null,null,null,null,null,null,null,null,"NR",null,"NR",null,null,null,null,null,null,null,null,null,null,null,null,null,null,null,null,null,null,null,"NR",null,null,null,null,null,null,"NR",null,null,null,"NR","NR","NR",null,null,null,null,null,null,null,null,null,null,null,"NR",null,null,null,null,null,null,"NR",null,null,null,"NR",null,null,"NR","NR",null,"NR",null,null,null,null,null,"NR",null,"NR",null,null,null,null,null,"NR","NR",null,null,"NR","NR",null,"NR",null,null,null,"NR",null,null,null,null,null,null,null,null,null,null,null,"NR",null,null,null,null,null,null,"NR",null,null,"NR"]

{"sheet":"LMR","index":4,"n_rows":2,"n_cols":794,"rows_kept":2,"cut":false,"hidden":true,"merged":[]}
["1,1-dichloro-2,2-bis(4-éthylphényl)éthane","1,2-dibrométhane (dibromure d´éthylène) ","1,2-dichloroéthane (dichlorure d´éthlène) ","1,3-Dichloropropène","1-Méthylcyclopropène","2,4,5-T ","2,4-D","2,4-DB","2,4-DP ","2,4'-Formoxylidid","2,4-MCPA","2,4-MCPB","2,6-Dichlorobenzamide","2-Phénylphénol","3-Hydroxycarbofurane","4,4-Dibromobenzophénone","4-CPA (Acide 4-ChlorophenoxyAcetique)","6-Benzyladenine","8-hydroxyquinoline ","Abamectine","Acephate","Acequinocyl","Acetamipride","Acetochlor","Acibenzolar-s-methyl","Acide (2-naphtyloxy)acétique","Acide naphtylacétique","Acifluorfen","Aclonifen","Acrinathrine","Alachlor","Alanycarb","Aldicarb sulfone","Aldicarb sulfoxyde","Aldicarbe","Aldrin","Aldrin/ Dieldrin (somme)","Alléthrine ","Ametoctradin","Ametryne","Amidosulfuron ","Aminocarbe","Aminopyralide","Amisulbrone","Amitraze","Amitrole","Anilazine","Anilofos","Anthraquinone ","Aramite ","Asulam","Atrazine ","Atrazine déisopropyl","Atrazine-desethyl","Avermectine B1a","Avermectine B1b","Azaconazole","Azadirachtine","Azamethiphos","Azimsulfuron","Azocyclotin","Azoxystrobine","Azynphos-ethyl ","Azynphos-methyl","Barbane","Beflubutamid","Benalaxyl","Bendiocarb","Benfluraline","Benfuracarb","Benodanil","Benoxacor","Bensulfuron-methyl","Bensulide","Bentazone","Benthiavalicarb-isopropyl","Benzoximate","Benzoylprop-ethyl","Beta-endosulfan","Bifenazat","Bifenox ","Bifenthrine ","Binapacryl ","Biphényl","Bitertanol","Bixafen","Boscalide","Bromfenvinphos","Bromocyclen","Bromophos","Bromophos-éthyl","Bromopropylate","Bromoxynil","Bromuconazole (somme)","BTS 27271 ","BTS 44595","BTS 44596","Bupirimate","Buprofezine","Butachlore","Butafenacile","Butocarboxim sulfoxide","Butoxycarboxim","Butoxyde de Pipéronyl","Butraline","Buturon","Butylate","Cadusafos","Camphechlore","Captafol ","Captan","Carbaryl ","Carbendazime","Carbendazime (MBC) et benomyl","Carbendazime D4","Carbétamide","Carbofurane","Carbophenothion","Carbophenothion-methyl","Carbosulfan","Carboxine","Carfentrazone-ethyl","Carpropamide","Cation triméthylsulfonium","Chinomethionat","Chlorantraniliprole","Chlorbenside ","Chlorbromuron","Chlorbufam","Chlordane (somme)","Chlordane alpha","Chlordane alpha ","Chlordane gamma","Chlordécone ","Chlordimeform","Chlorfenapyr","Chlorfenprop-methyl","Chlorfenson ","Chlorfenvinphos","Chlorfluazuron","Chlorflurenol","Chloridazon ","Chlormephos","Chlormequat","Chlorobenzilate","Chloroneb","Chloropicrine","Chloropropylate","Chlorothalonil","Chlorotoluron","Chloroxuron","Chlorpropham","Chlorpyrifos","Chlorpyrifos-ethyl","Chlorpyrifos-methyl","Chlorsulfuron","Chlorthal diméthyle","Chlorthiamide","Chlorthion","Chlorthiophos","Chlorure de benzalkonium","Chlorure de didécyldiméthylammonium ","Chlozolinate","Chromafenoziod","Cinidon-éthyle","Cinosulfuron","Clefoxydim","Clethodim","Clethodim/Sethoxydim (Somme)","Climbazole","Clodinafop-propargyl","Clofentézine","Clomazone","Clomeprop","Cloprop","Clopyralid","Cloquintocet-mexyl","Clothianidin","Clothianidin/Thiamethoxam (total)","Composés du cuivre ","Composés du mercure","Coumaphos","Crimidine","Crotoxyphos","Crufomat","Cyanamide","Cyanazine","Cyanofenphos","Cyanophos","Cyazofamide","Cyclanilide ","Cycloate","Cycloxydime","Cyflufenamide","Cyfluthrine","Cyhalofop-butyl","Cyhexatin","Cyhexatin/Azocyclotin (Somme)","Cymoxanil","Cypermethrine","Cyphenothrine","Cyproconazole","Cyprodinile","Cyromazine","Dalapon","Daminozide ","Dazomet","DDD o,p-","DDD p,p-","DDE o,p-","DDE p,p-","DDT (somme)","DDT o,p-","DDT p,p-","DEET ","Deltamethrine","Demeton-O","Demeton-s-methyl","Demeton-s-methyl-sulfone","Demeton-s-methyl-sulfoxyde","Desethyl-terbutylazine","Desmedipham","Desmetryne","Desthio-prothioconazole","Diafenthiuron","Dialifos","Diallat","Diazinon","Dibrom","Dicamba","Dicapthon","Dichlobenil","Dichlofenthion","Dichlofluanide","Dichlormid","Dichlorobenzophenone","Dichlorprop","Dichlorvos","Diclobutrazole","Diclofop ","Dicloran","Dicofol (somme)","Dicrotophos","Dieldrine","Diethofencarbe","Difénamide","Difénoconazole","Difénoxuron","Diflubenzuron","Diflufenicanil","Dimefox","Dimefuron","Dimepiperate","Dimethachlor","Diméthénamide","Dimethipin","Dimethoate","Dimethomorphe","Dimetilan","Dimoxystrobine","Diniconazole","Dinocap","Dinoseb","Dinotefuran","Dinoterb","Dioxacarb","Dioxathion","Diphenylamine","Diquat","Disulfoton (somme)","Disulfoton sulfone","Disulfoton sulfoxyde","Ditalimfos","Dithianon","Dithiocarbamates ","Diuron","Diuron D6","DMSA","DMST","DNOC","Dodemorph","Dodine","Edifenphos","Emamectine","Emamectine B1a","Emamectine B1b","Endosulfane","Endosulfane alpha","Endosulfane beta","Endosulfane sulfate","Endrin","Endrinaldehyd","Endrin-Keton","EPN","Epoxiconazole","EPTC","Etaconazole","Éthalfluraline","Éthametsulfurone-méthyle","Ethéphon","Ethiofencarbe","Ethiofencarb-sulfone","Ethiofencarb-sulfoxyde","Ethion","Ethiprol","Ethirimol","Ethofenprox","Ethofumesate","Ethoprophos","Ethoxyquin","Ethoxysulfuron","Ethylchlozate","Etoxazole","Etridiazole","Etrimphos","Famoxadone","Famphur","Fenamidone","Fenamiphos","Fenamiphos-sulfone","Fenamiphos-sulfoxyde","Fenarimol","Fenazaquine","Fenbuconazole","Fenbutatin oxide","Fenchlorazol-ethyl","Fenchlorphos","Fenchlorphos (somme)","Fenfuram","Fenhexamid","Fenitrothion","Fenobucarb","Fenoprop","Fenoxaprop-P","Fenoxycarb","Fenpiclonil","Fenpropathrin","Fenpropidin","Fenpropimorph","Fenpyrazamine","Fenpyroximate","Fenson","Fensulfothion","Fenthion","Fenthion (somme)","Fenthion-oxone","Fenthion-PO-sulfoxid","Fenthion-PS-sulfoxid","Fentin","Fentine acétate","Fention-PO-sulfon","Fention-PS-sulfon","Fenuron","Fenvalerate ","Fenvalerate (RR-/SS-Isomere)","Fenvalerate (RS-/SR-Isomere)","Fipronil","Fipronil (somme)","Fipronil sulfite","Fipronil sulfon","Flamprop-isopropyl","Flamprop-méthyl","Flazasulfuron","Flonicamid (total)","Flonicamide","Florasulam","Fluazifop (somme)","Fluazifop-P","Fluazifop-P-butyle","Fluaziname","Fluazolate","Fluazuron","Flubendiamide","Fluchloralin","Flucycloxuron","Flucythrinate","Fludioxonil","Flufenacet","Flufenoxuron","Flufenzine","Flumetralin","Flumioxazin","Fluometuron","Fluopicolid","Fluopyram","Fluoroglycofène","Fluorure de sulfuryle","Fluotrimazol","Fluoxastrobine","Flupyrsulfuron-methyl","Fluquinconazole","Flurochloridone","Fluroxypyr","Fluroxypyr (somme)","Fluroxypyr-methylheptyl","Flurprimidol","Flurtamone","Flusilazole","Fluthiacet-methyl","Flutolanil","Flutriafol","Fluxapyroxade","FM-6-1","Folpet","Fomesafen","Fonofos","Foramsulfuron","Forchlorfenuron","Formetanate","Formothion","Fosétyl-A","Fosthiazate","Fuberidazole","Furalaxyl","Furametpyre","Furathiocarb","Furfural","Glufosinate-ammonium)","Glyphosate","Guazatine","Halfenprox","Halofenozid","Halosulfuron-methyl","Haloxyfop","Haloxyfop-2-ethoxyethyl","HCH Alpha","HCH Béta","HCH Delta","HCH Epsilon","HCH isomères (sauf lindane)","HCH, gamma - Lindane","Heptachlor","Heptachlor (somme)","Heptachlore époxide cis","Heptachlore époxide trans","Heptenophos","Hexachlorobenzene","Hexaconazole","Hexaflumuron","Hexazinone","Hexythiazox","Hydrazide maléique","Hymexazol","Imazalil","Imazamox ","Imazapic","Imazaquine","Imazethapyr","Imazosulfuron","Imibenconazole","Imidacloprid","Imidacloprid D4","Indaziflam","Indoxacarbe","Iodofenphos","Iodosulfuron methyl","Ion bromure","Ion fluorure","Ioxynil","Ipconazole","Iprobenfos","Iprodione","Iprovalicarb","Isazophos","Isocarbamid","Isocarbosos","Isofenphos","Isofenphos-méthyl","Isoprocarb","Isoprothiolane","Isoproturon","Isopyrazam","Isouron","Isoxaben","Isoxadifen-éthyle","Isoxaflutole","Isoxathion","Kresoxym-methyl","Lactofen","Lambda-Cyhalothrin","Lénacile","Leptophos","Linuron","Lufénuron","Malaoxon ","Malathion","Malathion (somme)","Mandipropamide","MCPA/MCPB (somme)","Mecarbam","Mécoprop","Mefenpyr-diéthyl","Mepanipyrim","Mephosfolan","Mépiquat","Mepronil","Meptyldinocap","Mésosulfuron-methyl","Mésotrione","Metaflumizone","Metalaxyl","Métaldéhyde","Metamitrone","Metazachlore","Metconazole","Methabenzthiazuron","Methacrifos","Methamidophos","Methfuroxam","Methidathion","Methiocarb (somme)","Methiocarb sulfone","Methiocarb sulfoxyde","Méthiocarbe","Methomyl","Méthomyl/Thiodicarbe (somme)","Méthoprène","Methoprotryn","Méthoxychlore","Methoxyfenozid","Methyl Parathion","Methylpentachlorphenylsulfid","Metobromuron","Metolachlor","Metolcarb","Métosulame","Métoxuron","Metrafenone","Metribuzine","Metsulfuron-methyl","Mevinphos","Milbectine (somme)","Milbemectin A3","Milbemectin A4","Mirex","Molinate","Monocrotophos","Monolinuron","Monuron","Myclobutanil","Naphthalene Acetamide","Napropamide","Neburon","Nicarbazine","Nicosulfuron","Nitenpyram","Nitralin","Nitrapyrine","Nitrofene","Nitrothal-isopropyle","Norflurazon","Novaluron","Noviflumuron","Nuarimol","Ofurace","Omethoate","Orthosulfamuron","Orysastrobine","Oryzalin","Oxadiargyl","Oxadiazon","Oxadixyl","Oxamyl","Oxamyl-oxime","Oxasulfuron","Oxaziclomefone","Oxfendazole","Oxycarboxine","Oxyde d´éthylène","Oxydemeton methyl","Oxydemeton-methyl (somme)","Oxyfluorfene","Paclobutrazol","Paraoxon","Paraoxon-ethyl","Paraoxon-methyl","Paraquat","Parathion","Parathion-ethyl","Parathion-methyl","Parathion-methyl (somme)","PCB 153","Pebulate","Penconazole","Pencycuron","Pendimethalin","Penoxsulame","Pentachlorbenzol","Pentachloroaniline","Pentachloroanisole (PCA)","Penthiopyrade","Permethrine","Perthan","Pethoxamide","Phenkapton","Phenmédiphane","Phénothrine","Phenthoate","Phorate","Phorate (somme)","Phorate-sulfoxide","Phorat-sulfon","Phosalone","Phosmet","Phosphamidon","Phosphines et phosphures","Phoxime","Picaridin","Picloram","Picolinafene","Picoxystrobin","Pinoxaden","Pirimicarb, desmethyl-formamido-","Pirimicarbe","Pirimicarbe (somme)","Pirimicarbe, desmethyl","Pirimiphos-ethyl","Pirimiphos-methyl","Pirimiphos-methyl, N-Desethyl-","Primisulfuron-methyl","Prochloraz","Procymidone","Profenofos","Profluralin","Profoxydim","Prohexadione (somme","Promecarb","Prométone","Prométryne","Propachlore","Propamocarbe","Propanile","Propaquizafop","Propargite","Propazine","Propétamphos","Propham","Propiconazole","Propinèbe ","Propisochlore","Propoxur","Propoxycarbazon (somme)","Propoxycarbazon-2-hydroxy","Propoxycarbazone","Propyzamide","Proquinazid","Prosulfocarbe","Prosulfuron","Prothioconazole","Prothiophos","Pymétrozine","Pyraclofos","Pyraclostrobine","Pyraflufen-éthyl","Pyrasulfotole","Pyrazophos","Pyréthrines (total)","Pyridabène","Pyridalyle","Pyridaphenthion","Pyridate","Pyrifenox","Pyrifluquinazone","Pyriméthanil","Pyrimidifen","Pyriproxyfen","Pyroxsulam","Quinalphos","Quinclorac","Quinmerac","Quinoclamine","Quinoxyfen","Quintozene","Quintozene (somme)","Quizalofop","Quizalofop (somme)","Quizalofop-P-ethyl","Resmethrin","Rimsulfuron","Rotenone","S 421","Saflufénacil","Sebuthylazine","Secbumeton","Sethoxydim","Silafluofen","Silthiofame","Simazine","Simeconazole","Simetryne","Spinetoram","Spinosad","Spirodiclofen","Spiromesifene","Spirotetramate","Spirotetramate (somme)","Spirotetramat-enol","Spirotetramat-enolglucoside","Spirotetramat-ketohydroxy","Spirotetramat-monohydroxy","Spiroxamine","Sulcotrione","Sulfentrazon","Sulfosulfuron","Sulfotep","Sulprofos-sulfoxide","Tau-fluvalinate ","Tébuconazole","Tebufénozide","Tebufenpyrad","Tebuthiuron","Tecnazène","Teflubenzuron","Tefluthrine","Tembotrione ","Temephos","TEPP","Tepraloxydim","Terbacile","Terbufos","Terbufos-sulfoxide","Terbumeton","Terbuthylazine","Terbutryne","Tetrachlorvinphos","Tetraconazole","Tetradifon","Tetramethrine","Tetrasul","TFNA","TFNG","Thiabendazole","Thiabendazole D6","Thiacloprid","Thiamethoxam","Thifensulfuron méthyle","Thiobencarb","Thiocyclam","Thiodicarbe","Thiofanox","Thiofanox-Sulfone","Thiofanox-Sulfoxid","Thiometon","Thionazin","Thiophanate-méthyl","Thirame ","THPI ","Tolclofos-methyl","Tolfenpyrad","Tolylfluanide","Tolylfluanide (somme)","Topramezone ","Tralkoxydim","Tralomethrin","Transfluthrin","Triadimefone","Triadiménol/Triadiméfone (somme de)","Triadimenole","Triallate","Triamiphos","Triasulfuron","Triazamate","Triazophos","Tribénuron-méthyle","Tribufos","Trichlorfon","Trichloronat","Triclopyr","Tricyclazole","Tridemorph","Trietazin","Trifloxystrobin","Triflumizole","Triflumizole (somme)","Triflumuron","Trifluralin","Triflusulfuron-methyl","Triforine","Trimethacarb 3.4.5","Trinexapac-ethyl","Triphénylétain acétate ","Triticonazole","Tritosulfuron","Uniconazole","Valifenalate","Vamidothion","Vamidothion-sulfone","Vamidothion-sulfoxide","Vinclozoline","Warfarine","XMC ","Xylylcarb","Zirame","Zoxamide"]
[0.01,0.01,0.01,0.01,0.01,0.01,0.05,0.01,null,null,null,null,null,0.05,null,null,0.01,0.01,0.01,0.01,0.01,0.01,0.01,0.01,0.01,0.01,0.05,null,0.05,0.05,0.01,0.01,null,null,null,null,0.01,0.01,0.01,0.01,0.01,null,0.01,0.01,0.05,0.01,0.01,0.01,0.01,0.01,0.05,0.05,null,null,null,null,0.01,1,0.01,0.01,0.01,0.01,0.02,0.05,0.01,0.02,0.05,0.01,0.02,0.02,0.01,null,0.01,0.01,0.03,0.01,0.01,0.01,null,0.01,0.01,0.05,0.05,0.01,0.01,0.01,0.5,null,0.01,0.01,0.01,0.01,0.01,0.05,null,null,null,0.05,0.05,0.01,null,0.01,0.01,null,0.01,null,0.01,0.01,0.01,0.02,0.02,0.01,null,1,null,0.1,0.01,0.01,null,0.01,0.1,0.01,0.01,null,0.01,0.01,0.01,0.01,0.01,0.01,null,null,null,0.01,null,0.01,null,0.01,0.01,0.01,0.01,0.5,0.01,10,0.02,0.01,5.0000000000000001E-3,0.01,0.5,0.01,0.01,0.01,0.05,0.05,0.05,0.05,0.01,0.01,null,0.01,null,null,0.01,0.01,0.05,0.01,null,null,0.1,null,0.02,0.02,0.01,0.01,null,0.5,null,0.05,0.05,20,null,0.01,0.01,null,null,0.01,0.01,null,null,0.01,0.05,0.01,0.05,0.02,0.02,0.02,null,0.01,0.05,1,null,0.05,0.02,10,0.05,0.02,0.02,null,null,null,null,0.05,null,null,null,0.05,null,0.01,0.01,null,null,0.05,0.01,null,0.01,0.01,0.01,0.01,null,0.05,null,0.01,0.01,0.01,null,null,0.05,0.01,0.01,0.05,0.01,0.02,0.01,null,0.05,null,0.05,0.01,2,0.01,0.01,0.01,0.01,0.02,0.01,0.05,0.02,0.01,null,0.01,0.01,0.02,0.02,0.01,0.01,0.01,0.01,0.05,0.05,0.01,null,null,0.01,0.01,0.05,0.01,null,null,null,0.01,0.01,0.05,0.01,null,0.01,null,0.05,null,null,null,0.01,null,null,0.01,0.05,0.01,0.01,0.01,0.01,0.05,0.01,null,null,0.01,0.01,0.05,0.01,0.05,0.02,0.05,0.01,0.01,0.02,0.05,0.01,0.01,null,0.02,0.02,null,null,0.02,0.01,0.05,0.05,null,null,0.01,0.01,0.01,0.01,0.01,0.01,0.1,0.05,0.01,0.01,0.01,0.05,0.01,0.05,0.01,null,null,0.01,null,null,null,0.05,0.02,null,null,0.01,0.02,null,null,null,5.0000000000000001E-3,null,null,0.01,0.01,0.01,0.05,0.05,0.01,null,null,0.2,0.05,null,null,0.01,null,0.01,0.01,0.01,0.05,0.05,0.02,0.01,0.02,0.01,0.01,0.01,0.01,null,null,0.05,0.02,0.05,0.1,null,0.01,null,0.01,0.02,0.01,null,0.01,0.05,0.01,null,0.02,0.01,0.01,0.01,0.01,0.01,0.01,2,0.02,0.05,0.01,null,0.01,1,0.1,0.1,0.1,0.01,null,0.01,0.05,null,null,null,null,null,0.01,0.01,null,0.01,null,null,0.01,0.01,0.01,0.01,0.01,0.5,null,0.05,0.05,0.05,0.01,0.05,0.01,0.01,0.01,0.05,null,0.01,0.02,0.01,0.01,null,null,0.01,0.01,0.01,0.01,0.01,0.01,0.01,0.01,0.01,null,0.01,0.01,0.01,0.01,0.01,0.02,null,0.02,0.01,0.01,0.01,0.5,0.1,null,0.05,0.02,null,null,0.02,0.01,0.05,0.01,0.05,null,0.01,0.01,0.05,0.01,0.05,0.01,0.05,0.05,0.05,0.05,0.1,0.02,0.02,0.01,0.01,0.01,0.01,0.02,0.1,null,null,null,null,0.02,0.02,0.01,0.01,0.01,null,null,0.01,0.05,0.01,0.01,0.01,0.4,0.1,0.01,0.01,0.02,null,null,0.01,0.01,0.01,0.01,0.01,0.02,0.01,0.05,0.01,null,0.01,0.01,0.01,null,0.01,0.01,0.01,0.01,null,0.01,0.01,null,0.01,0.01,0.01,0.01,0.05,0.01,0.01,null,0.01,null,null,0.01,null,null,0.01,0.05,0.02,null,null,null,0.02,0.05,null,null,0.01,null,0.01,0.05,0.05,0.05,0.01,null,null,null,0.01,0.05,null,0.01,null,0.05,0.02,null,null,0.01,null,null,0.01,0.05,0.01,null,0.01,null,0.01,0.01,0.01,0.02,null,null,0.5,null,null,null,null,null,3,0.01,0.01,null,0.05,0.01,0.01,null,0.01,0.02,0.01,0.01,0.05,0.01,0.01,0.01,0.01,0.05,0.05,0.01,0.05,0.02,null,null,0.01,0.02,0.01,0.01,0.02,0.01,0.02,0.01,0.02,0.02,0.01,0.01,1,0.05,0.01,0.01,0.05,0.01,0.01,0.01,0.01,0.05,0.01,0.01,0.01,0.1,0.01,0.02,null,0.02,null,0.05,null,0.01,0.01,0.01,null,0.03,null,0.01,null,0.01,0.01,0.01,0.01,null,0.05,0.02,0.02,0.02,null,0.1,null,null,null,null,0.05,0.05,0.01,0.01,0.01,0.01,0.01,0.02,0.05,0.05,0.01,0.01,0.05,0.05,0.02,0.01,0.01,0.1,0.01,0.01,null,0.01,0.05,0.01,0.01,0.02,0.01,0.01,0.01,null,null,10,null,0.01,0.05,0.01,0.01,0.01,null,0.01,null,null,0.01,0.01,0.1,0.1,null,0.05,0.01,null,0.01,0.01,0.02,0.01,null,null,0.1,null,0.1,null,0.05,0.01,0.01,0.01,0.01,0.01,0.01,0.1,0.05,0.01,null,0.01,null,0.1,0.05,0.01,0.02,0.01,null,0.01,null,0.01,0.01,0.01,0.01,0.01,null,null,0.01,0.01,0.01,null,0.1,0.02]